Service Area,Service Division,Expense Type,Expense Code,Detailed Expense Type,Payment Date,Transaction Number,Amount Exc VAT,Supplier Name
Regeneration and Local Services,Technical Services,Supplies and Services,304221,Equipment and Materials,02/01/2019,3534914-27522856,"1,156.52",AGGREGATE INDUSTRIES UK LTD.
Regeneration and Local Services,Technical Services,Supplies and Services,304221,Equipment and Materials,02/01/2019,3534914-27530029,881.60,AGGREGATE INDUSTRIES UK LTD.
Regeneration and Local Services,Technical Services,Supplies and Services,304221,Equipment and Materials,02/01/2019,3534914-27545749,538.88,AGGREGATE INDUSTRIES UK LTD.
Regeneration and Local Services,Technical Services,Supplies and Services,304221,Equipment and Materials,02/01/2019,3534914-27545752,"3,211.20",AGGREGATE INDUSTRIES UK LTD.
Regeneration and Local Services,Technical Services,Supplies and Services,304221,Equipment and Materials,02/01/2019,3534914-27556483,894.00,AGGREGATE INDUSTRIES UK LTD.
Regeneration and Local Services,Technical Services,Supplies and Services,304221,Equipment and Materials,02/01/2019,3534914-27569222,"1,404.04",AGGREGATE INDUSTRIES UK LTD.
Regeneration and Local Services,Technical Services,Supplies and Services,304221,Equipment and Materials,02/01/2019,3534914-27575718,"1,427.96",AGGREGATE INDUSTRIES UK LTD.
Regeneration and Local Services,Technical Services,Supplies and Services,304221,Equipment and Materials,02/01/2019,3534914-27577279,"1,684.68",AGGREGATE INDUSTRIES UK LTD.
Regeneration and Local Services,Direct Services,Third Party Payments 4THIRD,430100,Rendered by Private Contractors,02/01/2019,3534916-74092,910.00,ALAN SEWELL LTD.
Regeneration and Local Services,Culture & Sport,Supplies and Services,384199,Miscellaneous Expenses,02/01/2019,3534918-17-1814,600.00,ALEX SNEATH.
Regeneration and Local Services,Direct Services,Third Party Payments 4THIRD,430100,Rendered by Private Contractors,02/01/2019,3534925-INV-2952,938.15,ANNFIELD AUTO SERVICES.
Regeneration and Local Services,Direct Services,Third Party Payments 4THIRD,430100,Rendered by Private Contractors,02/01/2019,3534925-INV-2953,561.15,ANNFIELD AUTO SERVICES.
Non-Service Specific,Non Service Specific-Financing,Long Term Debtors,924001,Car loans,02/01/2019,3534932-114142,"1,210.00",ARRIVA NORTH EAST LTD.
Regeneration and Local Services,Culture & Sport,Supplies and Services,384199,Miscellaneous Expenses,02/01/2019,3534935-1518,799.50,ASH COOPER FREELANCE SERVICES.
Regeneration and Local Services,Direct Services,Fees,901002,Professional fees 901002,02/01/2019,3534938-ANL2018/212,"1,605.00",AURA NEWCASTLE LTD.
Regeneration and Local Services,Direct Services,Fees,901002,Professional fees 901002,02/01/2019,3534938-ANL2018/213,"3,477.50",AURA NEWCASTLE LTD.
Regeneration and Local Services,Direct Services,Third Party Payments 4THIRD,430100,Rendered by Private Contractors,02/01/2019,3534940-4100620395,"13,434.00",AWR ROOFING & ALUMIN RAINWATER SYSTEMS LTD.
Children and Young Peoples Services,Head of Education and Skills,Transport,230008,Contract Hire,02/01/2019,3534954-17413,945.00,BLUELINE TAXIS.
Children and Young Peoples Services,Head of Education and Skills,Transport,230007,Contract Hire,02/01/2019,3534954-19516,630.00,BLUELINE TAXIS.
Children and Young Peoples Services,Head of Education and Skills,Transport,230008,Contract Hire,02/01/2019,3534954-19532,"3,402.00",BLUELINE TAXIS.
Children and Young Peoples Services,Head of Education and Skills,Transport,230012,Contract Hire,02/01/2019,3534954-19622,"2,090.00",BLUELINE TAXIS.
Children and Young Peoples Services,Head of Education and Skills,Transport,230016,Contract Hire,02/01/2019,3534954-19625,990.00,BLUELINE TAXIS.
Regeneration and Local Services,Direct Services,Third Party Payments 4THIRD,430100,Rendered by Private Contractors,02/01/2019,3534957-SI0000386,"1,125.00",BOLTON GATE CO.
Regeneration and Local Services,Transport and Contracted Services,Supplies and Services,344033,Telephones,02/01/2019,3534965-20026339,"1,323.00",BRITISH TELECOMMUNICATIONS PLC.
Regeneration and Local Services,Technical Services,Stock A926,926900,Stock in hand-Inventory system,02/01/2019,3534990-468626,502.00,CMT EQUIPMENT LTD.
Adult and Health Services,Public Health,Third Party Payments 4THIRD,460803,Contract Payments,02/01/2019,3534992-3940016777,"24,906.00",CO DURHAM & DARLINGTON NHS FOUNDATION TRUST.
Regeneration and Local Services,Culture & Sport,Supplies and Services,332029,Printing Stationery and Gen Off Exps,02/01/2019,3534994-INV03717,"3,500.50",COMPETITION LINE UK LTD T/A LIFESTYLE FITNESS.
Regeneration and Local Services,Direct Services,Supplies and Services,304221,Equipment and Materials,02/01/2019,3535003-3019525,"12,646.40",CRAEMER UK LTD.
Regeneration and Local Services,Direct Services,Supplies and Services,304221,Equipment and Materials,02/01/2019,3535003-3019526,"7,873.60",CRAEMER UK LTD.
Regeneration and Local Services,Direct Services,Supplies and Services,304221,Equipment and Materials,02/01/2019,3535003-3019660,"3,500.00",CRAEMER UK LTD.
Regeneration and Local Services,Culture & Sport,Supplies and Services,384237,Miscellaneous Expenses,02/01/2019,3535006-979,"1,777.00",CREATIVE STREAK DESIGN LLP.
Regeneration and Local Services,Direct Services,Transport,210057,Repair and Maintenance of Vehicles,02/01/2019,3535019-96366686,506.95,DENNIS EAGLE LTD T/A TERBERG MATEC (UK) LTD.
Regeneration and Local Services,Spatial Policy Planning Assets & Environment,Supplies and Services,384199,Miscellaneous Expenses,02/01/2019,3535035-5820,"10,000.00",EAST DURHAM COMMUNITY DEVELOPMENT TRUST LTD T/A EAST DURHAM TRUST.
Regeneration and Local Services,Direct Services,Supplies and Services,304221,Equipment and Materials,02/01/2019,3535043-059-235313,"1,579.41",EDMUNDSON ELECTRICAL LTD.
Regeneration and Local Services,Direct Services,Transport,230005,Contract Hire,02/01/2019,3535050-13000164030,970.97,ENTERPRISE FLEX-E-RENT T/A BURNT TREE GROUP LTD.
Regeneration and Local Services,Technical Services,Supplies and Services,304221,Equipment and Materials,02/01/2019,3535051-1810\309,"2,043.49",EPPLETON QUARRY PRODUCTS LTD.
Children and Young Peoples Services,Head of Childrens Social Care,Third Party Payments 4THIRD,425021,Rendered by Voluntary Organisations,02/01/2019,3535064-489,"14,040.00",FOREVER CARE LTD.
Regeneration and Local Services,Technical Services,Supplies and Services,304358,Equipment and Materials,02/01/2019,3535076-74618,"3,013.00",GEORGE VARDY HAULAGE.
Regeneration and Local Services,Technical Services,Supplies and Services,304358,Equipment and Materials,02/01/2019,3535076-74619,676.00,GEORGE VARDY HAULAGE.
Non-Service Specific,Non Service Specific-Financing,Long Term Debtors,924001,Car loans,02/01/2019,3535078-68110,890.00,GO GATESHEAD LTD.
Regeneration and Local Services,Technical Services,Stock A926,926900,Stock in hand-Inventory system,02/01/2019,3535083-06/770036,988.26,GREENHAM TRADING LTD.
Regeneration and Local Services,Economic Development and Housing,Supplies and Services,368008,Incentives to Industrialists,02/01/2019,3535089-0000012838,"37,000.00",GROUNDWORK NORTH EAST.
Children and Young Peoples Services,Head of Childrens Social Care,Supplies and Services,384507,Miscellaneous Expenses,02/01/2019,3535090-INV-0003,528.00,H JOHNSON.
Dedicated Schools Grant,DSG High Needs Block,Third Party Payments 4THIRD,425005,Rendered by Voluntary Organisations,02/01/2019,3535107-4140000963,"9,671.68",HURWORTH HOUSE PRIORY.
Dedicated Schools Grant,DSG High Needs Block,Third Party Payments 4THIRD,425005,Rendered by Voluntary Organisations,02/01/2019,3535107-4140000968,"22,071.72",HURWORTH HOUSE PRIORY.
Regeneration and Local Services,Culture & Sport,Premises,120021,Energy Costs,02/01/2019,3535110-12182,"4,821.26",IMPALA ESTATES LTD.
Regeneration and Local Services,Technical Services,Third Party Payments 4THIRD,430100,Rendered by Private Contractors,02/01/2019,3535135-19073,"41,082.65",KIELY BROS LTD.
Regeneration and Local Services,Technical Services,Supplies and Services,304221,Equipment and Materials,02/01/2019,3535142-INV01857289,"2,500.50",LANES GROUP PLC.
Children and Young Peoples Services,Head of Education and Skills,Supplies and Services,384199,Miscellaneous Expenses,02/01/2019,3535146-6255,"2,684.00",LEE`S COACHES LTD.
Regeneration and Local Services,Culture & Sport,Supplies and Services,338047,Services,02/01/2019,3535165-FBC735,600.00,MEDIA EXCENTRIQUE.
Regeneration and Local Services,Direct Services,Transport,230005,Contract Hire,02/01/2019,3535167-416265,695.40,MINSTER SELF DRIVE.
Regeneration and Local Services,Culture & Sport,Supplies and Services,324001,Provisions E324,02/01/2019,3535169-904949714,"1,629.20",MOLSON COORS BREWING COMPANY (UK) LTD.
Children and Young Peoples Services,Head of Education and Skills,Supplies and Services,338027,Services,02/01/2019,3535177-0008,"2,000.00",MRS NATALIE ANNE DALTON (EDUCATIONAL CONSULTANT).
Adult and Health Services,Head of Adults,Third Party Payments 4THIRD,478151,Purchase of Care,02/01/2019,3535205-14/12/18,530.13,MRS VALERIE BRENNAN.
Adult and Health Services,Head of Adults,Third Party Payments 4THIRD,478151,Purchase of Care,02/01/2019,3535205-21/11/18,530.13,MRS VALERIE BRENNAN.
Adult and Health Services,Head of Adults,Third Party Payments 4THIRD,478151,Purchase of Care,02/01/2019,3535205-22/10/18,530.13,MRS VALERIE BRENNAN.
Transformation and Partnerships,Communications Management,Supplies and Services,336005,Advertising E336,02/01/2019,3535186-295755,"40,000.00",NEWS UK & IRELAND LTD T/A NEWS UK COMMERCIAL.
Regeneration and Local Services,Technical Services,Supplies and Services,304221,Equipment and Materials,02/01/2019,3535190-178526,500.00,NORTH EAST CONCRETE LTD.
Regeneration and Local Services,Technical Services,Construction work A908,908112,Capital - Drainage,02/01/2019,3535197-914419765,"50,000.00",NORTHUMBRIAN WATER LTD.
Regeneration and Local Services,Culture & Sport,Supplies and Services,384199,Miscellaneous Expenses,02/01/2019,3535200-00004848,674.40,NSL LTD.
Regeneration and Local Services,Direct Services,Transport,215005,Running Costs of Vehicles,02/01/2019,3535204-378949,"17,200.60",OIL NRG LTD.
Regeneration and Local Services,Direct Services,Transport,215005,Running Costs of Vehicles,02/01/2019,3535204-379894,"18,056.58",OIL NRG LTD.
Regeneration and Local Services,Direct Services,Transport,215022,Running Costs of Vehicles,02/01/2019,3535204-379910,"4,333.52",OIL NRG LTD.
Regeneration and Local Services,Technical Services,Stock A926,926900,Stock in hand-Inventory system,02/01/2019,3535214-XL230467,"1,100.00",PARK ELECTRICAL DISTRIBUTORS LTD.
Regeneration and Local Services,Technical Services,Stock A926,926900,Stock in hand-Inventory system,02/01/2019,3535214-XL232173,"1,370.00",PARK ELECTRICAL DISTRIBUTORS LTD.
Children and Young Peoples Services,Head of Education and Skills,Supplies and Services,384199,Miscellaneous Expenses,02/01/2019,3535221-18/19-04,525.00,PGI SMITH SOLUTIONS LTD.
Regeneration and Local Services,Technical Services,Supplies and Services,338066,Services,02/01/2019,3535224-5336,"3,203.52",PINKNEY BUILDING CONTRACTORS LTD.
Dedicated Schools Grant,DSG High Needs Block,Employees,080025,Agency Staff,02/01/2019,3535232-51348096,925.15,PROTOCOL EDUCATION LTD.
Dedicated Schools Grant,DSG High Needs Block,Employees,080025,Agency Staff,02/01/2019,3535232-51348098,589.69,PROTOCOL EDUCATION LTD.
Dedicated Schools Grant,DSG High Needs Block,Employees,080025,Agency Staff,02/01/2019,3535232-51348099,527.63,PROTOCOL EDUCATION LTD.
Dedicated Schools Grant,DSG High Needs Block,Employees,080025,Agency Staff,02/01/2019,3535232-51351073,979.45,PROTOCOL EDUCATION LTD.
Dedicated Schools Grant,DSG High Needs Block,Employees,080025,Agency Staff,02/01/2019,3535232-51351075,512.48,PROTOCOL EDUCATION LTD.
Dedicated Schools Grant,DSG High Needs Block,Employees,080025,Agency Staff,02/01/2019,3535232-51351076,527.63,PROTOCOL EDUCATION LTD.
Regeneration and Local Services,Culture & Sport,Supplies and Services,332029,Printing Stationery and Gen Off Exps,02/01/2019,3535234-7552,"2,982.00",PURPLE MOON PROMOTIONAL PRODUCTS LTD.
Adult and Health Services,Commissioning inc Supporting People,Supplies and Services,338094,Services,02/01/2019,3535246-2975,500.96,RIVERSIDE EVENTS LLP.
Regeneration and Local Services,Spatial Policy Planning Assets & Environment,Supplies and Services,338066,Services,02/01/2019,3535252-352910,"1,820.00",ROBIN WATSON SIGN & DESIGN LTD.
Resources,Finance & Transactional Services,Supplies and Services,340001,Postages E340,02/01/2019,3535254-9057817261,"11,525.91",ROYAL MAIL GROUP PLC.
Regeneration and Local Services,Technical Services,Supplies and Services,304358,Equipment and Materials,02/01/2019,3535258-1859,879.50,S & R LANDSCAPES.
Regeneration and Local Services,Technical Services,Stock A926,926900,Stock in hand-Inventory system,02/01/2019,3535276-192633,"2,368.80",SNAPFAST.
Regeneration and Local Services,Direct Services,Transport,210057,Repair and Maintenance of Vehicles,02/01/2019,3535277-INV357939,"1,195.77",SNOWBALLS LTD.
Regeneration and Local Services,Direct Services,Third Party Payments 4THIRD,430100,Rendered by Private Contractors,02/01/2019,3535279-105/18/28594,"1,050.00",SOCIETE GENERALE EQUIPMENT FINANCE LTD.
Children and Young Peoples Services,Childrens Services Operational Support,Supplies and Services,338099,Services,02/01/2019,3535281-12174617,"1,124.00",SOUTH TYNESIDE COUNCIL.
Regeneration and Local Services,Culture & Sport,Supplies and Services,304259,Equipment and Materials,02/01/2019,3535289-00350253A,"8,308.96",STAGE ELECTRICS PARTNERSHIP LTD.
Regeneration and Local Services,Technical Services,Supplies and Services,304221,Equipment and Materials,02/01/2019,3535306-9039052957,589.38,TARMAC TRADING LTD.
Regeneration and Local Services,Technical Services,Supplies and Services,304221,Equipment and Materials,02/01/2019,3535306-9039096943,670.00,TARMAC TRADING LTD.
Children and Young Peoples Services,Head of Education and Skills,Supplies and Services,384984,Miscellaneous Expenses,02/01/2019,3535317-KEY247434,"56,271.50",THE KEY SUPPORT SERVICES LTD.
Regeneration and Local Services,Culture & Sport,Supplies and Services,338047,Services,02/01/2019,3535321-SINRNT1003497,748.71,THE ROYAL NATIONAL THEATRE.
Transformation and Partnerships,Partnerships & Community Engagement Div.,Supplies and Services,384086,Miscellaneous Expenses,02/01/2019,3535322-VOUCHERSTEB02-18REPAYMENT,999.00,THE SALVATION ARMY.
Regeneration and Local Services,Direct Services,Supplies and Services,304221,Equipment and Materials,02/01/2019,3535328-31786,"1,180.00",TOTAL PUMP SOLUTIONS LTD.
Regeneration and Local Services,Direct Services,Third Party Payments 4THIRD,430100,Rendered by Private Contractors,02/01/2019,3535335-TS2672,"4,310.76",TYNE TEES THERMAL LTD.
Children and Young Peoples Services,Childrens Services Operational Support,Supplies and Services,338099,Services,02/01/2019,3535342-91544682,680.00,UNIVERSITY OF NORTHUMBRIA.*
Regeneration and Local Services,Direct Services,Transport,210057,Repair and Maintenance of Vehicles,02/01/2019,3535344-INV486613,"1,104.71",VERSALIFT DISTRIBUTORS (UK) LTD.
Resources,Digital and Customer Services,Supplies and Services,332001,Printing Stationery and Gen Off Exps,02/01/2019,3535347-612,503.55,VINOVIUM ASSOCIATES LTD.
Regeneration and Local Services,Direct Services,Third Party Payments 4THIRD,430100,Rendered by Private Contractors,02/01/2019,3535352-INV-1049,"1,147.00",WATER SOLUTIONS (EUROPE) LTD.
Regeneration and Local Services,Direct Services,Premises,135005,Water Services,02/01/2019,3535353-210364310085218638,"2,515.92",WAVE (AWBN).
Children and Young Peoples Services,Head of Childrens Social Care,Third Party Payments 4THIRD,425021,Rendered by Voluntary Organisations,02/01/2019,3535354-INV10331,"4,769.37",WE CARE RECRUITMENT SOLUTIONS LTD.
Children and Young Peoples Services,Head of Childrens Social Care,Third Party Payments 4THIRD,425021,Rendered by Voluntary Organisations,02/01/2019,3535354-INV10333,"4,995.78",WE CARE RECRUITMENT SOLUTIONS LTD.
Children and Young Peoples Services,Head of Childrens Social Care,Third Party Payments 4THIRD,425021,Rendered by Voluntary Organisations,02/01/2019,3535354-INV10334,"3,927.04",WE CARE RECRUITMENT SOLUTIONS LTD.
Children and Young Peoples Services,Head of Childrens Social Care,Third Party Payments 4THIRD,425021,Rendered by Voluntary Organisations,02/01/2019,3535354-INV10335,"5,749.41",WE CARE RECRUITMENT SOLUTIONS LTD.
Children and Young Peoples Services,Head of Childrens Social Care,Third Party Payments 4THIRD,425021,Rendered by Voluntary Organisations,02/01/2019,3535354-INV10337,"2,548.27",WE CARE RECRUITMENT SOLUTIONS LTD.
Children and Young Peoples Services,Head of Childrens Social Care,Third Party Payments 4THIRD,425021,Rendered by Voluntary Organisations,02/01/2019,3535354-INV10338,"5,176.97",WE CARE RECRUITMENT SOLUTIONS LTD.
Children and Young Peoples Services,Head of Childrens Social Care,Third Party Payments 4THIRD,425021,Rendered by Voluntary Organisations,02/01/2019,3535354-INV10339,"7,291.08",WE CARE RECRUITMENT SOLUTIONS LTD.
Children and Young Peoples Services,Head of Childrens Social Care,Third Party Payments 4THIRD,425021,Rendered by Voluntary Organisations,02/01/2019,3535354-INV10341,"5,434.85",WE CARE RECRUITMENT SOLUTIONS LTD.
Children and Young Peoples Services,Head of Childrens Social Care,Third Party Payments 4THIRD,425021,Rendered by Voluntary Organisations,02/01/2019,3535354-INV10342,"5,262.69",WE CARE RECRUITMENT SOLUTIONS LTD.
Children and Young Peoples Services,Head of Childrens Social Care,Third Party Payments 4THIRD,425021,Rendered by Voluntary Organisations,02/01/2019,3535354-INV10343,"5,244.03",WE CARE RECRUITMENT SOLUTIONS LTD.
Children and Young Peoples Services,Head of Childrens Social Care,Third Party Payments 4THIRD,425021,Rendered by Voluntary Organisations,02/01/2019,3535354-INV10345,"2,449.95",WE CARE RECRUITMENT SOLUTIONS LTD.
Children and Young Peoples Services,Head of Childrens Social Care,Third Party Payments 4THIRD,425021,Rendered by Voluntary Organisations,02/01/2019,3535354-INV10346,"4,951.15",WE CARE RECRUITMENT SOLUTIONS LTD.
Children and Young Peoples Services,Head of Childrens Social Care,Third Party Payments 4THIRD,425021,Rendered by Voluntary Organisations,02/01/2019,3535354-INV10347,"1,388.76",WE CARE RECRUITMENT SOLUTIONS LTD.
Adult and Health Services,Commissioning inc Supporting People,Supplies and Services,338045,Services,02/01/2019,3535361-3332576,"1,584.00",WOMBLE BOND DICKINSON (UK) LLP.
Regeneration and Local Services,Direct Services,Third Party Payments 4THIRD,430100,Rendered by Private Contractors,02/01/2019,3535362-C377/898,"12,288.00",WRAM FABRICATIONS LTD.
Resources,Digital and Customer Services,Supplies and Services,332029,Printing Stationery and Gen Off Exps,02/01/2019,3535364-900180975,"2,671.58",XEROX FINANCE LTD.
Children and Young Peoples Services,Head of Childrens Social Care,Third Party Payments 4THIRD,425021,Rendered by Voluntary Organisations,02/01/2019,3535366-04263,"15,500.00",YOUNG FOUNDATIONS LTD.
Regeneration and Local Services,Economic Development and Housing,Construction work A908,908105,Construction work,02/01/2019,3535367-1161/JM/20639,983.99,YOUNGS RPS LLP.
Regeneration and Local Services,Direct Services,Third Party Payments 4THIRD,430100,Rendered by Private Contractors,03/01/2019,3535372-973,840.00,ALL SEASONS ARBORISTS.
Regeneration and Local Services,Culture & Sport,Supplies and Services,384199,Miscellaneous Expenses,03/01/2019,3535374-7063,640.00,ARC ENTERTAINMENTS.
Regeneration and Local Services,Direct Services,Supplies and Services,338066,Services,03/01/2019,3535375-2683,920.00,ASSOCIATION OF GAS SERVICE MANAGERS.
Regeneration and Local Services,Direct Services,Construction work A908,908105,Construction work,03/01/2019,3535376-INS-MOUNTSETTCREMATORIUM,"57,929.51",ATI ENVIRONMENTAL UK LTD.
Adult and Health Services,Public Health,Third Party Payments 4THIRD,460803,Contract Payments,03/01/2019,3535380-A83052/QTR218-19/ALCOHOL,518.84,BISHOP`S CLOSE MEDICAL PRACTICE..
Transformation and Partnerships,Partnerships & Community Engagement Div.,Cap Exp on Grants & Other Financial Assistance (REFCUS),918004,Contributions to other bodies 918004,03/01/2019,3535381-VOUCHER18NB-TEES011,"3,000.00",BOWES LIGHTS.
Regeneration and Local Services,Direct Services,Third Party Payments 4THIRD,430100,Rendered by Private Contractors,03/01/2019,3535389-3787,"2,376.00",DEMETER LTD.
Resources,Legal & Democratic Services,Supplies and Services,338042,Services,03/01/2019,3535390-344927/INVDR598,540.00,DERE STREET BARRISTERS.
Regeneration and Local Services,Direct Services,Supplies and Services,304221,Equipment and Materials,03/01/2019,3535394-059-234803,963.55,EDMUNDSON ELECTRICAL LTD.
Children and Young Peoples Services,Head of Childrens Social Care,Third Party Payments 4THIRD,425021,Rendered by Voluntary Organisations,03/01/2019,3535397-500,"11,552.00",FOREVER CARE LTD.
Children and Young Peoples Services,Head of Childrens Social Care,Third Party Payments 4THIRD,440038,Other third party payments E440,03/01/2019,3535397-504,"23,104.00",FOREVER CARE LTD.
Regeneration and Local Services,Direct Services,Supplies and Services,304221,Equipment and Materials,03/01/2019,3535401-4615479,"1,193.40",HEADLAM (FLOORCOVERING DISTRIBUTORS) LTD.
Regeneration and Local Services,Economic Development and Housing,Construction work A908,908105,Construction work,03/01/2019,3535411-INS-DEMOLITION,"39,355.71",MGL DEMOLITION LTD.
Regeneration and Local Services,Culture & Sport,Supplies and Services,324001,Provisions E324,03/01/2019,3535412-904933078,"1,110.15",MOLSON COORS BREWING COMPANY (UK) LTD.
Regeneration and Local Services,Technical Services,Supplies and Services,372009,Subscriptions E372,03/01/2019,3535418-1238253,"8,625.35",NETWORK RAIL.
Children and Young Peoples Services,Head of Childrens Social Care,Third Party Payments 4THIRD,425041,Rendered by Voluntary Organisations,03/01/2019,3535419-1800009340201,"14,333.00",NEWCASTLE UPON TYNE CITY COUNCIL.
Regeneration and Local Services,Technical Services,Supplies and Services,384956,Miscellaneous Expenses,03/01/2019,3535421-914324764,570.00,NORTHUMBRIAN WATER LTD.
Regeneration and Local Services,Direct Services,Transport,215005,Running Costs of Vehicles,03/01/2019,3535422-378752,"12,165.60",OIL NRG LTD.
Regeneration and Local Services,Direct Services,Transport,215022,Running Costs of Vehicles,03/01/2019,3535422-378760,"2,210.80",OIL NRG LTD.
Regeneration and Local Services,Direct Services,Transport,215022,Running Costs of Vehicles,03/01/2019,3535422-378953,564.63,OIL NRG LTD.
Regeneration and Local Services,Culture & Sport,Supplies and Services,338047,Services,03/01/2019,3535424-19/12/2018,738.34,PGI SMITH SOLUTIONS LTD.
Children and Young Peoples Services,Head of Education and Skills,Third Party Payments 4THIRD,430100,Rendered by Private Contractors,03/01/2019,3535425-156660,"40,277.70",PREMIER TRAFFIC MANAGEMENT LTD.
Regeneration and Local Services,Direct Services,Supplies and Services,304259,Equipment and Materials,03/01/2019,3535428-RSIN0283829,976.20,RIGBY TAYLOR LTD.
Regeneration and Local Services,Technical Services,Stock A926,926900,Stock in hand-Inventory system,03/01/2019,3535435-NSIN00000476,"4,405.90",THOMAS OWEN & SONS (NEWCASTLE) LTD.
Children and Young Peoples Services,Head of Education and Skills,Transport,230012,Contract Hire,04/01/2019,3535436-1/12/18,"1,050.00",ABA TAXIS.
Children and Young Peoples Services,Head of Education and Skills,Transport,230006,Contract Hire,04/01/2019,3535438-814,"1,068.00",AC TAXIS.
Regeneration and Local Services,Direct Services,Third Party Payments 4THIRD,430100,Rendered by Private Contractors,04/01/2019,3535439-39995831-61,"1,552.00",ADT FIRE & SECURITY PLC.
Regeneration and Local Services,Technical Services,Supplies and Services,304221,Equipment and Materials,04/01/2019,3535441-27589146,"2,342.44",AGGREGATE INDUSTRIES UK LTD.
Regeneration and Local Services,Culture & Sport,Supplies and Services,384199,Miscellaneous Expenses,04/01/2019,3535443-19-05,850.00,ANDREW J STEPHENSON.
Children and Young Peoples Services,Head of Childrens Social Care,Supplies and Services,338044,Services,04/01/2019,3535446-PL0339,517.85,AR ASSESSMENTS.
Regeneration and Local Services,Culture & Sport,Premises,106082,Centrally Controlled Rep and Maint,04/01/2019,3535448-13902,"6,538.94",ASTRAL CONTROL SERVICES LTD.
Children and Young Peoples Services,Head of Education and Skills,Transport,230008,Contract Hire,04/01/2019,3535449-682,"1,635.00",AT TAXIS LTD.
Children and Young Peoples Services,Head of Education and Skills,Transport,230008,Contract Hire,04/01/2019,3535449-683,"1,920.00",AT TAXIS LTD.
Adult and Health Services,Head of Adults,Transport,230005,Contract Hire,04/01/2019,3535449-684,"1,785.00",AT TAXIS LTD.
Children and Young Peoples Services,Head of Education and Skills,Transport,230007,Contract Hire,04/01/2019,3535449-685,693.00,AT TAXIS LTD.
Children and Young Peoples Services,Head of Education and Skills,Transport,230007,Contract Hire,04/01/2019,3535449-686,"1,635.00",AT TAXIS LTD.
Children and Young Peoples Services,Head of Education and Skills,Transport,230008,Contract Hire,04/01/2019,3535451-DCC05DEC18,"1,417.50",ATLAS TAXIS BISHOP AUCKLAND.
Children and Young Peoples Services,Head of Education and Skills,Transport,230007,Contract Hire,04/01/2019,3535451-DCC11DEC18,"1,200.00",ATLAS TAXIS BISHOP AUCKLAND.
Children and Young Peoples Services,Head of Education and Skills,Transport,230008,Contract Hire,04/01/2019,3535451-DCC12DEC18,"1,095.00",ATLAS TAXIS BISHOP AUCKLAND.
Children and Young Peoples Services,Head of Education and Skills,Transport,230008,Contract Hire,04/01/2019,3535451-DCC13DEC18,"1,950.00",ATLAS TAXIS BISHOP AUCKLAND.
Children and Young Peoples Services,Head of Education and Skills,Transport,230008,Contract Hire,04/01/2019,3535451-DCC15DEC18,"1,200.00",ATLAS TAXIS BISHOP AUCKLAND.
Children and Young Peoples Services,Head of Education and Skills,Transport,230008,Contract Hire,04/01/2019,3535451-DCC4DEC18,"1,335.00",ATLAS TAXIS BISHOP AUCKLAND.
Children and Young Peoples Services,Head of Education and Skills,Transport,230008,Contract Hire,04/01/2019,3535451-DCC6DEC18,"1,800.00",ATLAS TAXIS BISHOP AUCKLAND.
Children and Young Peoples Services,Head of Education and Skills,Transport,230007,Contract Hire,04/01/2019,3535452-03877,555.00,ATLAS TAXIS CONSETT.
Children and Young Peoples Services,Head of Education and Skills,Transport,230007,Contract Hire,04/01/2019,3535452-03879,600.00,ATLAS TAXIS CONSETT.
Children and Young Peoples Services,Head of Education and Skills,Transport,230006,Contract Hire,04/01/2019,3535452-03886,753.04,ATLAS TAXIS CONSETT.
Regeneration and Local Services,Technical Services,Third Party Payments 4THIRD,430100,Rendered by Private Contractors,04/01/2019,3535453-CSUKOU/INV/64447,"9,670.43",BALFOUR BEATTY LIVING PLACES LTD.*
Regeneration and Local Services,Direct Services,Premises,106082,Centrally Controlled Rep and Maint,04/01/2019,3535456-4759,836.93,CATHEDRAL LOCK & SAFE SERVICES LTD.
Adult and Health Services,Public Health,Third Party Payments 4THIRD,460803,Contract Payments,04/01/2019,3535460-3980031224,"24,906.00",CO DURHAM & DARLINGTON NHS FOUNDATION TRUST.
Regeneration and Local Services,Technical Services,Stock A926,926900,Stock in hand-Inventory system,04/01/2019,3535461-219874,"1,652.16",COLAS LTD.
Children and Young Peoples Services,Head of Education and Skills,Transport,230007,Contract Hire,04/01/2019,3535464-DCC/4003/DEC18,"1,365.00",COUNTY COACHES.
Children and Young Peoples Services,Head of Education and Skills,Transport,230003,Contract Hire,04/01/2019,3535464-DCC/4016/DEC18,"1,540.00",COUNTY COACHES.
Children and Young Peoples Services,Head of Education and Skills,Transport,230003,Contract Hire,04/01/2019,3535464-DCC/4021/DEC18,"1,736.00",COUNTY COACHES.
Children and Young Peoples Services,Head of Education and Skills,Transport,230003,Contract Hire,04/01/2019,3535464-DCC/4025/DEC18,"1,512.00",COUNTY COACHES.
Children and Young Peoples Services,Head of Education and Skills,Transport,230007,Contract Hire,04/01/2019,3535464-DCC/4118/DEC18,"3,540.00",COUNTY COACHES.
Resources,Legal & Democratic Services,Supplies and Services,352001,Conference Expenses,04/01/2019,3535466-RES-01-2019-001,900.00,CRYSTALLISED LTD.
Children and Young Peoples Services,Head of Education and Skills,Transport,230007,Contract Hire,04/01/2019,3535473-10/2018-4376,979.80,DIANE GOOCH T/A COLLINS TAXIS.
Children and Young Peoples Services,Head of Education and Skills,Transport,230006,Contract Hire,04/01/2019,3535473-10/2018-F664,948.00,DIANE GOOCH T/A COLLINS TAXIS.
Adult and Health Services,Head of Adults,Supplies and Services,338066,Services,04/01/2019,3535475-1412201803012010,733.39,DR IMRAN MUNIR.
Adult and Health Services,Head of Adults,Supplies and Services,338066,Services,04/01/2019,3535476-1412201803012010,553.62,DR IPSITA MITRA T/A AIT MITRA LTD.
Adult and Health Services,Head of Adults,Supplies and Services,338066,Services,04/01/2019,3535477-1412201803012010,903.14,DR STEPHEN WILKINSON.
Regeneration and Local Services,Culture & Sport,Supplies and Services,338047,Services,04/01/2019,3535483-GALA32,"1,130.00",EMILY BAXENDALE.
Transformation and Partnerships,Partnerships & Community Engagement Div.,Premises,106082,Centrally Controlled Rep and Maint,04/01/2019,3535485-SI-83,"3,500.00",ENVIROROD LTD.
Resources - C A C,Welfare Assistance Fund,Third Party Payments 4THIRD,440999,Other third party payments E440,04/01/2019,3535489-21/12/18,"50,000.00",FAMILY FUND TRADING LTD T/A FAMILY FUND BUSINESS SERVICES.
Children and Young Peoples Services,Head of Childrens Social Care,Third Party Payments 4THIRD,486022,Service level agreements E486,04/01/2019,3535491-7612,686.50,FLEXIBLE SUPPORT OPTIONS LTD.
Children and Young Peoples Services,Head of Education and Skills,Transport,230008,Contract Hire,04/01/2019,3535493-BW003,"1,500.00",GAVIN ELLIOTT T/A LOCATION TAXIS.
Regeneration and Local Services,Culture & Sport,Supplies and Services,338047,Services,04/01/2019,3535495-5,960.00,GRACE CAMPBELL (COSTUME DESIGNER).
Regeneration and Local Services,Direct Services,Premises,145023,Cleaning and Domestic Supplies,04/01/2019,3535497-06/764502,"1,035.92",GREENHAM TRADING LTD.
Regeneration and Local Services,Direct Services,Supplies and Services,304221,Equipment and Materials,04/01/2019,3535501-INV18605,"6,555.60",HORTISYSTEMS UK LTD.
Regeneration and Local Services,Direct Services,Premises,108099,Service Repairs and Maintenance,04/01/2019,3535504-132128,614.64,HUTCHINSON ENVIRONMENTAL SOLUTIONS LTD.
Resources,Digital and Customer Services,Supplies and Services,372009,Subscriptions E372,04/01/2019,3535506-2606,"20,000.00",INSTITUTE OF CUSTOMER SERVICE LTD.
Regeneration and Local Services,Direct Services,Premises,108099,Service Repairs and Maintenance,04/01/2019,3535507-90028378,601.00,INTEGRATED UTILITY SERVICES LTD.*
Children and Young Peoples Services,Head of Education and Skills,Transport,230008,Contract Hire,04/01/2019,3535510-2818,"1,792.78",JEFF ANDERSON COACHES LTD.
Children and Young Peoples Services,Head of Education and Skills,Transport,230008,Contract Hire,04/01/2019,3535510-2819,"1,704.78",JEFF ANDERSON COACHES LTD.
Children and Young Peoples Services,Head of Education and Skills,Transport,230008,Contract Hire,04/01/2019,3535510-2832,"1,222.35",JEFF ANDERSON COACHES LTD.
Children and Young Peoples Services,Head of Education and Skills,Transport,230008,Contract Hire,04/01/2019,3535510-2833,"1,162.35",JEFF ANDERSON COACHES LTD.
Children and Young Peoples Services,Head of Education and Skills,Transport,230007,Contract Hire,04/01/2019,3535510-2834,"2,024.85",JEFF ANDERSON COACHES LTD.
Children and Young Peoples Services,Head of Education and Skills,Transport,230007,Contract Hire,04/01/2019,3535510-2836,"1,409.85",JEFF ANDERSON COACHES LTD.
Children and Young Peoples Services,Head of Education and Skills,Transport,230007,Contract Hire,04/01/2019,3535510-2837,"1,087.35",JEFF ANDERSON COACHES LTD.
Children and Young Peoples Services,Head of Education and Skills,Transport,230003,Contract Hire,04/01/2019,3535515-6259-4017,"2,023.00",LEE`S COACHES LTD.
Children and Young Peoples Services,Head of Education and Skills,Transport,230003,Contract Hire,04/01/2019,3535515-6259-4020,"1,764.00",LEE`S COACHES LTD.
Children and Young Peoples Services,Head of Education and Skills,Transfer Payments,510027,School Children,04/01/2019,3535517-0065/2018LSEY,"1,644.30",LITTLE STARS EARLY YEARS.
Children and Young Peoples Services,Head of Education and Skills,Transfer Payments,510027,School Children,04/01/2019,3535517-0066/2018OF,990.00,LITTLE STARS EARLY YEARS.
Regeneration and Local Services,Technical Services,Stock A926,926900,Stock in hand-Inventory system,04/01/2019,3535518-139652,"13,383.50",MALLATITE LTD T/A MALLATITE PLASTICS LTD.
Resources - C A C,Centrally Administered costs,Supplies and Services,338013,Services,04/01/2019,3535520-1482264,"4,900.00",MAZARS LLP.
Regeneration and Local Services,Culture & Sport,Supplies and Services,324001,Provisions E324,04/01/2019,3535523-904955790,636.30,MOLSON COORS BREWING COMPANY (UK) LTD.
Children and Young Peoples Services,Head of Education and Skills,Transport,230012,Contract Hire,04/01/2019,3535526-79-N227-DEC18,"1,204.00",MR LJ TARRY T/A TARRY`S TAXI`S.
Children and Young Peoples Services,Head of Education and Skills,Transport,230007,Contract Hire,04/01/2019,3535527-ESH1118,660.00,MR STUART SCOTT T/A AIRPORT CARS DURHAM
Children and Young Peoples Services,Head of Education and Skills,Transport,230006,Contract Hire,04/01/2019,3535527-THORN1118,884.00,MR STUART SCOTT T/A AIRPORT CARS DURHAM
Children and Young Peoples Services,Head of Education and Skills,Transport,230006,Contract Hire,04/01/2019,3535527-THORN1218,612.00,MR STUART SCOTT T/A AIRPORT CARS DURHAM
Dedicated Schools Grant,DSG High Needs Block,Transport,230010,Contract Hire,04/01/2019,3535527-WOOD1118,624.00,MR STUART SCOTT T/A AIRPORT CARS DURHAM
Dedicated Schools Grant,DSG High Needs Block,Transport,230010,Contract Hire,04/01/2019,3535527-WOOD1218,585.00,MR STUART SCOTT T/A AIRPORT CARS DURHAM
Regeneration and Local Services,Technical Services,Supplies and Services,304221,Equipment and Materials,04/01/2019,3535535-180221,825.50,NORTH EAST CONCRETE LTD.
Non-Service Specific,Insurances,Expenditure 8INSEX,810012,Insurance Expenditure,04/01/2019,3535536-DI20307690,"1,234.38",NORTHERN POWERGRID (NORTHEAST) LTD.
Regeneration and Local Services,Direct Services,Transport,215005,Running Costs of Vehicles,04/01/2019,3535537-378954,"4,086.22",OIL NRG LTD.
Regeneration and Local Services,Direct Services,Transport,215022,Running Costs of Vehicles,04/01/2019,3535537-378955,565.77,OIL NRG LTD.
Regeneration and Local Services,Direct Services,Transport,215005,Running Costs of Vehicles,04/01/2019,3535537-380528,"7,905.60",OIL NRG LTD.
Regeneration and Local Services,Direct Services,Transport,215005,Running Costs of Vehicles,04/01/2019,3535537-380613,"4,085.20",OIL NRG LTD.
Dedicated Schools Grant,DSG High Needs Block,Employees,080025,Agency Staff,04/01/2019,3535544-51354127,979.45,PROTOCOL EDUCATION LTD.
Dedicated Schools Grant,DSG High Needs Block,Employees,080025,Agency Staff,04/01/2019,3535544-51354129,512.48,PROTOCOL EDUCATION LTD.
Dedicated Schools Grant,DSG High Needs Block,Employees,080025,Agency Staff,04/01/2019,3535544-51354130,527.63,PROTOCOL EDUCATION LTD.
Adult and Health Services,Head of Adults,Supplies and Services,338066,Services,04/01/2019,3535545-1412201803012010,917.93,PSYCH ONE LTD.
Regeneration and Local Services,Economic Development and Housing,Supplies and Services,338066,Services,04/01/2019,3535547-AU199,"5,000.00",REDKITE INNOVATIONS LTD.
Adult and Health Services,Head of Adults,Transport,230005,Contract Hire,04/01/2019,3535550-004-DM149-DEC18,765.00,RONS TAXI (CHESTER LE ST).
Children and Young Peoples Services,Head of Education and Skills,Transport,230008,Contract Hire,04/01/2019,3535550-004-N050-DEC18,"1,662.50",RONS TAXI (CHESTER LE ST).
Transformation and Partnerships,Partnerships & Community Engagement Div.,Cap Exp on Grants & Other Financial Assistance (REFCUS),918004,Contributions to other bodies 918004,04/01/2019,3535553-VOUCHER18NB-DCTY014,"2,580.00",SHERBURN COMMUNITY ASSOCIATION.
Regeneration and Local Services,Direct Services,Supplies and Services,304245,Equipment and Materials,04/01/2019,3535555-714560117123,990.62,SIG TRADING LTD.
Regeneration and Local Services,Technical Services,Stock A926,926900,Stock in hand-Inventory system,04/01/2019,3535557-270215633,706.94,SOVEREIGN CHEMICALS LTD.
Regeneration and Local Services,Direct Services,Supplies and Services,304221,Equipment and Materials,04/01/2019,3535563-57226,709.00,T CROSSLING & CO LTD.
Regeneration and Local Services,Culture & Sport,Supplies and Services,304259,Equipment and Materials,04/01/2019,3535564-10137,800.00,TECHNICAL LAMP SUPPLIES UK LTD.
Regeneration and Local Services,Culture & Sport,Supplies and Services,338047,Services,04/01/2019,3535565-LW/27142,978.47,THE NARROW ROAD COMPANY.
Regeneration and Local Services,Technical Services,Stock A926,926900,Stock in hand-Inventory system,04/01/2019,3535568-NSIN00002648,"1,174.22",THOMAS OWEN & SONS (NEWCASTLE) LTD.
Transformation and Partnerships,Partnerships & Community Engagement Div.,Cap Exp on Grants & Other Financial Assistance (REFCUS),918004,Contributions to other bodies 918004,04/01/2019,3535569-VOUCHER18NB-EDUR038,"1,357.00",THORNLEY PARISH COUNCIL.
Regeneration and Local Services,Culture & Sport,Premises,106082,Centrally Controlled Rep and Maint,04/01/2019,3535572-DL929090,"1,357.00",TYCO FIRE & INTEGRATED SOLUTIONS (UK) LTD.
Dedicated Schools Grant,DSG High Needs Block,Supplies and Services,352001,Conference Expenses,04/01/2019,3535574-Y0251726,535.00,UNIVERSITY OF EDINBURGH.
Children and Young Peoples Services,Head of Childrens Social Care,Transport,235073,Public Transport,04/01/2019,3535577-CAS-01-2019-001,"1,966.00",WRIXON SECURITY SERVICES LTD T/A WRIXON CARE.
Children and Young Peoples Services,Head of Childrens Social Care,Transport,235073,Public Transport,04/01/2019,3535577-CAS-01-2019-002,"1,457.75",WRIXON SECURITY SERVICES LTD T/A WRIXON CARE.
Children and Young Peoples Services,Head of Education and Skills,Transport,230007,Contract Hire,07/01/2019,3535593-575,532.00,A BARKER.
Regeneration and Local Services,Technical Services,Supplies and Services,304221,Equipment and Materials,07/01/2019,3535597-27596165,"1,791.60",AGGREGATE INDUSTRIES UK LTD.
Regeneration and Local Services,Technical Services,Supplies and Services,304221,Equipment and Materials,07/01/2019,3535597-27596169,797.92,AGGREGATE INDUSTRIES UK LTD.
Regeneration and Local Services,Technical Services,Supplies and Services,304221,Equipment and Materials,07/01/2019,3535597-27603529,"1,373.44",AGGREGATE INDUSTRIES UK LTD.
Regeneration and Local Services,Technical Services,Supplies and Services,304221,Equipment and Materials,07/01/2019,3535597-27603533,673.98,AGGREGATE INDUSTRIES UK LTD.
Children and Young Peoples Services,Head of Education and Skills,Transport,230008,Contract Hire,07/01/2019,3535598-38895871,"1,087.50",ALAN SOUTHERN T/A ALANS TAXIS PELTON FELL.
Resources,Digital and Customer Services,Supplies and Services,342051,Computers and Communications,07/01/2019,3535602-2019-003-141-007501,"33,002.00",AMERICAN EXPRESS SERVICES EUROPE LTD.
Regeneration and Local Services,Culture & Sport,Supplies and Services,312013,Newspapers books and periodicals E312,07/01/2019,3535602-2019-003-141-007508,"2,762.43",AMERICAN EXPRESS SERVICES EUROPE LTD.
Regeneration and Local Services,Direct Services,Supplies and Services,352001,Conference Expenses,07/01/2019,3535606-1819/1577,"1,147.50",APSE.
Regeneration and Local Services,Culture & Sport,Supplies and Services,338047,Services,07/01/2019,3535610-1520,826.50,ASH COOPER FREELANCE SERVICES.
Children and Young Peoples Services,Head of Education and Skills,Supplies and Services,338001,Services,07/01/2019,3535612-18048306,"3,500.00",ATKINS GLOBAL.
Children and Young Peoples Services,Head of Education and Skills,Supplies and Services,338001,Services,07/01/2019,3535612-18048311,"2,500.00",ATKINS GLOBAL.
Children and Young Peoples Services,Head of Education and Skills,Supplies and Services,338001,Services,07/01/2019,3535612-18048314,"3,600.00",ATKINS GLOBAL.
Children and Young Peoples Services,Head of Education and Skills,Transport,230008,Contract Hire,07/01/2019,3535614-211212,"1,200.00",AVALON TAXIS.
Children and Young Peoples Services,Head of Education and Skills,Transport,230008,Contract Hire,07/01/2019,3535619-SMITH1/DECEMBER18,"1,365.00",BEELINE PRIVATE HIRE.
Children and Young Peoples Services,Head of Education and Skills,Transport,230016,Contract Hire,07/01/2019,3535619-SMITH2/DECEMBER18,585.00,BEELINE PRIVATE HIRE.
Regeneration and Local Services,Direct Services,Third Party Payments 4THIRD,430100,Rendered by Private Contractors,07/01/2019,3535620-6330,548.00,BELL CONTROL SOLUTIONS LTD.
Regeneration and Local Services,Economic Development and Housing,Supplies and Services,384700,Miscellaneous Expenses,07/01/2019,3535625-RED-01-2019-021,"1,000.00",BISHOPS BEDS LTD.
Children and Young Peoples Services,Head of Education and Skills,Transport,230008,Contract Hire,07/01/2019,3535628-DC04,"1,620.00",BOWES TRAVEL.
Children and Young Peoples Services,Head of Education and Skills,Transport,230008,Contract Hire,07/01/2019,3535638-BIL0145,750.00,CA MUSGROVE.
Adult and Health Services,Commissioning inc Supporting People,Third Party Payments 4THIRD,479111,Purchase of Care,07/01/2019,3535643-3649,"4,295.01",CARERS FEDERATION LTD.
Regeneration and Local Services,Direct Services,Transport,210057,Repair and Maintenance of Vehicles,07/01/2019,3535647-3437297940,"2,274.54",CHEMETALL LTD.
Dedicated Schools Grant,DSG High Needs Block,Third Party Payments 4THIRD,440080,Other third party payments E440,07/01/2019,3535649-I0024861,"11,656.12",CITY OF SUNDERLAND COLLEGE.
Children and Young Peoples Services,Head of Education and Skills,Transport,230007,Contract Hire,07/01/2019,3535650-1084,"1,120.00",CLIVE HUBERY.
Children and Young Peoples Services,Head of Education and Skills,Transport,230003,Contract Hire,07/01/2019,3535653-C/10619,"1,927.50",COCHRANES T/A KELVIN TRAVEL.
Children and Young Peoples Services,Head of Education and Skills,Transport,230003,Contract Hire,07/01/2019,3535653-C/10620,"2,077.50",COCHRANES T/A KELVIN TRAVEL.
Children and Young Peoples Services,Head of Education and Skills,Transport,230007,Contract Hire,07/01/2019,3535653-C/10621,"2,527.50",COCHRANES T/A KELVIN TRAVEL.
Children and Young Peoples Services,Head of Education and Skills,Transport,230008,Contract Hire,07/01/2019,3535653-C/10622,"1,950.00",COCHRANES T/A KELVIN TRAVEL.
Adult and Health Services,Head of Adults,Third Party Payments 4THIRD,478151,Purchase of Care,07/01/2019,3535654-421R138691,"1,095.76",COMMUNITY INTEGRATED CARE LTD.
Adult and Health Services,Head of Adults,Third Party Payments 4THIRD,478151,Purchase of Care,07/01/2019,3535654-421R139459,"2,314.57",COMMUNITY INTEGRATED CARE LTD.
Children and Young Peoples Services,Head of Education and Skills,Transport,230008,Contract Hire,07/01/2019,3535655-1514,"1,380.00",CONNORS MINI BUSES.*
Children and Young Peoples Services,Head of Education and Skills,Transport,230008,Contract Hire,07/01/2019,3535655-1515,"1,470.00",CONNORS MINI BUSES.*
Children and Young Peoples Services,Head of Education and Skills,Transport,230008,Contract Hire,07/01/2019,3535655-1516,"1,410.00",CONNORS MINI BUSES.*
Children and Young Peoples Services,Head of Education and Skills,Transport,230008,Contract Hire,07/01/2019,3535655-1517,"1,800.00",CONNORS MINI BUSES.*
Dedicated Schools Grant,DSG High Needs Block,Supplies and Services,304259,Equipment and Materials,07/01/2019,3535659-111673,"1,108.00",CORECARE GLOBAL LTD T/A YORKSHIRE CARE EQUIPMENT.
Regeneration and Local Services,Economic Development and Housing,Premises,120021,Energy Costs,07/01/2019,3535661-13658946,526.76,CORONA ENERGY RETAIL 2 LTD.
Adult and Health Services,Head of Adults,Third Party Payments 4THIRD,478151,Purchase of Care,07/01/2019,3535667-0000353483,"1,554.56",CREATIVE SUPPORT LTD.
Children and Young Peoples Services,Head of Education and Skills,Transport,230009,Contract Hire,07/01/2019,3535675-3379,750.00,DAVES MINIBUSES.
Children and Young Peoples Services,Head of Education and Skills,Transport,230008,Contract Hire,07/01/2019,3535675-3380,"1,275.00",DAVES MINIBUSES.
Children and Young Peoples Services,Head of Education and Skills,Transport,230008,Contract Hire,07/01/2019,3535675-3381,"1,845.00",DAVES MINIBUSES.
Children and Young Peoples Services,Head of Education and Skills,Transport,230008,Contract Hire,07/01/2019,3535675-3382,"1,275.00",DAVES MINIBUSES.
Children and Young Peoples Services,Head of Education and Skills,Transport,230008,Contract Hire,07/01/2019,3535675-3383,"1,650.00",DAVES MINIBUSES.
Children and Young Peoples Services,Head of Education and Skills,Transport,230008,Contract Hire,07/01/2019,3535675-3384,"1,350.00",DAVES MINIBUSES.
Resources,Digital and Customer Services,Stock A926,926900,Stock in hand-Inventory system,07/01/2019,3535676-7402492298,"1,573.02",DELL COMPUTER CORPORATION LTD.
Resources,Legal & Democratic Services,Supplies and Services,338042,Services,07/01/2019,3535678-345087/INVMT1X167,550.00,DERE STREET BARRISTERS.
Adult and Health Services,Commissioning inc Supporting People,Supplies and Services,384700,Miscellaneous Expenses,07/01/2019,3535679-CHESTER-LE-STREETACTIVITIES2018-Q3,"3,750.00",DERWENTSIDE MIND.
Resources,Legal & Democratic Services,Supplies and Services,338057,Services,07/01/2019,3535681-MSNORTH32018,"5,754.00",DR M SHARMA.
Children and Young Peoples Services,Head of Childrens Social Care,Third Party Payments 4THIRD,425028,Rendered by Voluntary Organisations,07/01/2019,3535683-004-2018-19,"8,750.00",DURHAM AREA DISABILITY LEISURE GROUP (DADLG).
Children and Young Peoples Services,Head of Education and Skills,Transport,230003,Contract Hire,07/01/2019,3535685-27380,"2,025.00",DURHAM CITY COACHES.
Regeneration and Local Services,Culture & Sport,Third Party Payments 4THIRD,430100,Rendered by Private Contractors,07/01/2019,3535689-INV-567,"4,500.00",ECO ENTERPRISES LTD.
Regeneration and Local Services,Direct Services,Supplies and Services,304221,Equipment and Materials,07/01/2019,3535690-059-236193,"1,418.77",EDMUNDSON ELECTRICAL LTD.
Regeneration and Local Services,Direct Services,Supplies and Services,304221,Equipment and Materials,07/01/2019,3535690-059-236656,563.90,EDMUNDSON ELECTRICAL LTD.
Regeneration and Local Services,Direct Services,Supplies and Services,304221,Equipment and Materials,07/01/2019,3535690-059-236776,"1,518.60",EDMUNDSON ELECTRICAL LTD.
Children and Young Peoples Services,Head of Education and Skills,Transport,230006,Contract Hire,07/01/2019,3535697-N220/DEC/18,637.20,EMMA RAMSHAW T/A EMMA`S CABS.
Resources - C A C,Centrally Administered costs,Supplies and Services,338066,Services,07/01/2019,3535699-GB10700052058,"22,414.00",ERNST & YOUNG LLP.
Resources,Legal & Democratic Services,Supplies and Services,338057,Services,07/01/2019,3535706-PNC20180259,600.00,FORENSIC PATHOLOGY LTD.
Regeneration and Local Services,Direct Services,Supplies and Services,304259,Equipment and Materials,07/01/2019,3535711-300223734,"4,680.00",FREIGHT TRANSPORT ASSOCIATION.
Children and Young Peoples Services,Head of Education and Skills,Transport,230008,Contract Hire,07/01/2019,3535723-000050,"1,575.00",GP TAXIS.
Regeneration and Local Services,Culture & Sport,Supplies and Services,384237,Miscellaneous Expenses,07/01/2019,3535724-DIS6-AUG2018,960.00,GRAEME FOREMAN T/A GF INTERNATIONAL SOLUTIONS.
Children and Young Peoples Services,Head of Education and Skills,Transport,230009,Contract Hire,07/01/2019,3535732-03,"1,185.00",HARDIP SINGH MAHIL T/A AMBER CARS.
Adult and Health Services,Head of Adults,Third Party Payments 4THIRD,474101,Purchase of Care,07/01/2019,3535735-2508009,"1,349.04",HC-ONE LTD T/A FALSTONE MANOR CARE HOME.
Adult and Health Services,Head of Adults,Third Party Payments 4THIRD,470101,Purchase of Care,07/01/2019,3535735-2526486,"2,541.84",HC-ONE LTD T/A FALSTONE MANOR CARE HOME.
Regeneration and Local Services,Direct Services,Supplies and Services,304358,Equipment and Materials,07/01/2019,3535738-58048,708.00,HF COLTON PLANT HIRE LTD.*
Children and Young Peoples Services,Head of Childrens Social Care,Third Party Payments 4THIRD,425023,Rendered by Voluntary Organisations,07/01/2019,3535739-DU01/548/1018,"11,970.34",HILLSIDE SCHOOL (ABERDOUR) LTD.
Children and Young Peoples Services,Head of Childrens Social Care,Third Party Payments 4THIRD,425021,Rendered by Voluntary Organisations,07/01/2019,3535739-DU01/550/102018,"11,970.34",HILLSIDE SCHOOL (ABERDOUR) LTD.
Regeneration and Local Services,Direct Services,Supplies and Services,304221,Equipment and Materials,07/01/2019,3535743-A38/0100067,"1,707.24",HOWDENS JOINERY LTD.
Children and Young Peoples Services,Head of Education and Skills,Transport,230006,Contract Hire,07/01/2019,3535749-DCC0004,592.50,JANICE BRADSHAW T/A JAN PRIVATE HIRE.
Children and Young Peoples Services,Head of Education and Skills,Transport,230007,Contract Hire,07/01/2019,3535750-2835,"1,477.20",JEFF ANDERSON COACHES LTD.
Children and Young Peoples Services,Head of Education and Skills,Transport,230007,Contract Hire,07/01/2019,3535750-2838,"1,177.35",JEFF ANDERSON COACHES LTD.
Regeneration and Local Services,Technical Services,Supplies and Services,304358,Equipment and Materials,07/01/2019,3535758-28917,"1,253.00",JOHN R BUTTERFIELD LTD.
Regeneration and Local Services,Technical Services,Supplies and Services,304358,Equipment and Materials,07/01/2019,3535758-28980,851.00,JOHN R BUTTERFIELD LTD.
Regeneration and Local Services,Technical Services,Supplies and Services,304358,Equipment and Materials,07/01/2019,3535758-29002,"1,137.00",JOHN R BUTTERFIELD LTD.
Regeneration and Local Services,Technical Services,Supplies and Services,304358,Equipment and Materials,07/01/2019,3535758-29032,"1,137.00",JOHN R BUTTERFIELD LTD.
Regeneration and Local Services,Direct Services,Supplies and Services,304358,Equipment and Materials,07/01/2019,3535759-0000081822,916.00,JOHN WADE (HAULAGE) LTD.
Regeneration and Local Services,Direct Services,Supplies and Services,304358,Equipment and Materials,07/01/2019,3535759-0000081825,"1,120.00",JOHN WADE (HAULAGE) LTD.
Regeneration and Local Services,Technical Services,Supplies and Services,304358,Equipment and Materials,07/01/2019,3535759-0000081832,800.00,JOHN WADE (HAULAGE) LTD.
Children and Young Peoples Services,Head of Education and Skills,Transport,230009,Contract Hire,07/01/2019,3535760-723124,"1,275.00",JOVIAL PRIVATE HIRE.
Children and Young Peoples Services,Head of Education and Skills,Transport,230008,Contract Hire,07/01/2019,3535760-M00916,975.00,JOVIAL PRIVATE HIRE.
Children and Young Peoples Services,Head of Education and Skills,Transport,230008,Contract Hire,07/01/2019,3535760-M01515,885.00,JOVIAL PRIVATE HIRE.
Children and Young Peoples Services,Head of Education and Skills,Transport,230008,Contract Hire,07/01/2019,3535760-M01715,660.00,JOVIAL PRIVATE HIRE.
Children and Young Peoples Services,Head of Education and Skills,Transport,230008,Contract Hire,07/01/2019,3535760-N30104,"1,125.75",JOVIAL PRIVATE HIRE.
Regeneration and Local Services,Direct Services,Supplies and Services,304221,Equipment and Materials,07/01/2019,3535762-BII276974,738.50,JT DOVE LTD.
Regeneration and Local Services,Technical Services,Supplies and Services,304358,Equipment and Materials,07/01/2019,3535766-2560,"1,036.50",KEVIN SNOWDON GROUNDWORKS LTD.
Regeneration and Local Services,Technical Services,Supplies and Services,304358,Equipment and Materials,07/01/2019,3535766-2561,"1,099.00",KEVIN SNOWDON GROUNDWORKS LTD.
Regeneration and Local Services,Technical Services,Supplies and Services,304358,Equipment and Materials,07/01/2019,3535766-2562,851.00,KEVIN SNOWDON GROUNDWORKS LTD.
Regeneration and Local Services,Technical Services,Supplies and Services,304358,Equipment and Materials,07/01/2019,3535766-2563,666.00,KEVIN SNOWDON GROUNDWORKS LTD.
Regeneration and Local Services,Technical Services,Supplies and Services,304358,Equipment and Materials,07/01/2019,3535766-2564,666.00,KEVIN SNOWDON GROUNDWORKS LTD.
Regeneration and Local Services,Technical Services,Supplies and Services,304358,Equipment and Materials,07/01/2019,3535766-2565,851.00,KEVIN SNOWDON GROUNDWORKS LTD.
Regeneration and Local Services,Technical Services,Supplies and Services,304358,Equipment and Materials,07/01/2019,3535766-2567,634.25,KEVIN SNOWDON GROUNDWORKS LTD.
Regeneration and Local Services,Technical Services,Supplies and Services,304358,Equipment and Materials,07/01/2019,3535766-2568,"1,099.00",KEVIN SNOWDON GROUNDWORKS LTD.
Regeneration and Local Services,Technical Services,Supplies and Services,304358,Equipment and Materials,07/01/2019,3535766-2569,"1,054.00",KEVIN SNOWDON GROUNDWORKS LTD.
Regeneration and Local Services,Technical Services,Supplies and Services,304358,Equipment and Materials,07/01/2019,3535766-2571,603.75,KEVIN SNOWDON GROUNDWORKS LTD.
Children and Young Peoples Services,Head of Education and Skills,Transport,230007,Contract Hire,07/01/2019,3535771-3909,"1,087.24",LINCAB TAXIS.
Children and Young Peoples Services,Head of Education and Skills,Transport,230007,Contract Hire,07/01/2019,3535771-3910,"1,211.00",LINCAB TAXIS.
Children and Young Peoples Services,Head of Education and Skills,Transport,230008,Contract Hire,07/01/2019,3535771-3912,"1,687.00",LINCAB TAXIS.
Children and Young Peoples Services,Head of Education and Skills,Transport,230008,Contract Hire,07/01/2019,3535771-3915,"1,542.90",LINCAB TAXIS.
Regeneration and Local Services,Direct Services,Supplies and Services,304358,Equipment and Materials,07/01/2019,3535775-23BB,812.50,M & E & MR WALTON.
Regeneration and Local Services,Direct Services,Supplies and Services,304358,Equipment and Materials,07/01/2019,3535775-24BB,606.25,M & E & MR WALTON.
Children and Young Peoples Services,Head of Education and Skills,Transport,230006,Contract Hire,07/01/2019,3535779-F745-DEC18,"1,050.00",MARK FOWKES T/A CONSETT TAXIS.
Children and Young Peoples Services,Head of Education and Skills,Transport,230013,Contract Hire,07/01/2019,3535783-INV161,630.00,MICHAEL COBB T/A HAIL TAXIS.
Resources,Legal & Democratic Services,Supplies and Services,338042,Services,07/01/2019,3535785-127933,600.00,MISS SARAH LOUISE FEARON (WILBERFORCE CHAMBERS).
Children and Young Peoples Services,Head of Education and Skills,Transport,230007,Contract Hire,07/01/2019,3535789-AT166,900.00,MR AG WILSON T/A ALAN`S TAXIS (DURHAM CITY).
Children and Young Peoples Services,Head of Education and Skills,Transport,230008,Contract Hire,07/01/2019,3535792-15-W028-DEC18,900.00,MR BW YOUNG T/A ESH TAXIS.
Children and Young Peoples Services,Head of Education and Skills,Transport,230008,Contract Hire,07/01/2019,3535796-3060,"1,275.00",MR S BOWERS T/A DH7 TAXIS.
Resources,Digital and Customer Services,Supplies and Services,342053,Computers and Communications,07/01/2019,3535801-92522759,"2,793.28",NEOPOST LTD.
Regeneration and Local Services,Spatial Policy Planning Assets & Environment,Supplies and Services,336005,Advertising E336,07/01/2019,3535803-27555076,683.28,NEWSQUEST (YORKSHIRE & NORTH EAST) LTD.
Adult and Health Services,Public Health,Supplies and Services,384155,Miscellaneous Expenses,07/01/2019,3535804-1000058440,"71,184.87",NHS BUSINESS SERVICES AUTHORITY (NHSBSA).
Regeneration and Local Services,Economic Development and Housing,Construction work A908,908105,Construction work,07/01/2019,3535809-NEI-EXP-01-2019-001,840.21,NORTHERN POWERGRID (NORTHEAST) LTD.
Adult and Health Services,Head of Adults,Third Party Payments 4THIRD,478151,Purchase of Care,07/01/2019,3535830-8655,"23,193.92",POTENSIAL LTD.
Adult and Health Services,Commissioning inc Supporting People,Third Party Payments 4THIRD,479102,Purchase of Care,07/01/2019,3535836-18792,"28,158.85",RETHINK MENTAL ILLNESS LTD.
Adult and Health Services,Commissioning inc Supporting People,Third Party Payments 4THIRD,479102,Purchase of Care,07/01/2019,3535836-18793,"27,798.25",RETHINK MENTAL ILLNESS LTD.
Adult and Health Services,Head of Adults,Third Party Payments 4THIRD,478101,Purchase of Care,07/01/2019,3535838-AD012001850,"1,114.40",RICHMOND FELLOWSHIP.
Regeneration and Local Services,Culture & Sport,Supplies and Services,384540,Miscellaneous Expenses,07/01/2019,3535845-3882,525.00,SAVILLS UK LTD.
Regeneration and Local Services,Technical Services,Stock A926,926900,Stock in hand-Inventory system,07/01/2019,3535853-192662,"2,368.80",SNAPFAST.
Regeneration and Local Services,Direct Services,Third Party Payments 4THIRD,430100,Rendered by Private Contractors,07/01/2019,3535858-6492,"4,942.50",ST ASTIER LTD.
Regeneration and Local Services,Direct Services,Third Party Payments 4THIRD,430100,Rendered by Private Contractors,07/01/2019,3535858-6493,"10,975.00",ST ASTIER LTD.
Regeneration and Local Services,Direct Services,Third Party Payments 4THIRD,430100,Rendered by Private Contractors,07/01/2019,3535858-6527,"1,500.00",ST ASTIER LTD.
Regeneration and Local Services,Direct Services,Third Party Payments 4THIRD,430100,Rendered by Private Contractors,07/01/2019,3535858-6528,"2,400.00",ST ASTIER LTD.
Regeneration and Local Services,Technical Services,Supplies and Services,304358,Equipment and Materials,07/01/2019,3535871-31315,893.00,TEWARD BROS LTD.
Adult and Health Services,Commissioning inc Supporting People,Third Party Payments 4THIRD,479102,Purchase of Care,07/01/2019,3535872-37953,"5,285.00",THE APPROPRIATE ADULT SERVICE LTD.
Regeneration and Local Services,Direct Services,Supplies and Services,304221,Equipment and Materials,07/01/2019,3535874-NSIN00002798,775.30,THOMAS OWEN & SONS (NEWCASTLE) LTD.
Regeneration and Local Services,Direct Services,Supplies and Services,304221,Equipment and Materials,07/01/2019,3535874-NSIN00002799,"1,318.40",THOMAS OWEN & SONS (NEWCASTLE) LTD.
Regeneration and Local Services,Direct Services,Supplies and Services,304221,Equipment and Materials,07/01/2019,3535874-NSIN00002800,748.80,THOMAS OWEN & SONS (NEWCASTLE) LTD.
Regeneration and Local Services,Technical Services,Supplies and Services,304221,Equipment and Materials,07/01/2019,3535880-SIN504733.,"3,456.57",TRIMLINE.
Regeneration and Local Services,Technical Services,Supplies and Services,304358,Equipment and Materials,07/01/2019,3535888-46172,"1,906.00",W MARLEY AGRICULTURAL CONTRACTORS LTD.
Regeneration and Local Services,Technical Services,Supplies and Services,304221,Equipment and Materials,07/01/2019,3535889-22467,792.15,WARD TIMBER LTD.
Regeneration and Local Services,Spatial Policy Planning Assets & Environment,Supplies and Services,384199,Miscellaneous Expenses,07/01/2019,3535890-1000,"3,637.50",WAVEHILL SOCIAL & ECONOMIC RESEARCH.
Children and Young Peoples Services,Head of Education and Skills,Supplies and Services,304259,Equipment and Materials,08/01/2019,3535908-DCCS2019001,612.04,ADDED BRASS T/A DURHAM MUSIC SHOP.
Regeneration and Local Services,Technical Services,Supplies and Services,304221,Equipment and Materials,08/01/2019,3535910-27252498,595.52,AGGREGATE INDUSTRIES UK LTD.
Regeneration and Local Services,Technical Services,Supplies and Services,304221,Equipment and Materials,08/01/2019,3535910-27259187,845.04,AGGREGATE INDUSTRIES UK LTD.
Regeneration and Local Services,Technical Services,Supplies and Services,304221,Equipment and Materials,08/01/2019,3535910-27265785,959.32,AGGREGATE INDUSTRIES UK LTD.
Regeneration and Local Services,Technical Services,Supplies and Services,304221,Equipment and Materials,08/01/2019,3535910-27273574,"1,444.20",AGGREGATE INDUSTRIES UK LTD.
Regeneration and Local Services,Technical Services,Supplies and Services,304221,Equipment and Materials,08/01/2019,3535910-27280421,736.52,AGGREGATE INDUSTRIES UK LTD.
Regeneration and Local Services,Technical Services,Supplies and Services,304221,Equipment and Materials,08/01/2019,3535910-27367784,"2,307.24",AGGREGATE INDUSTRIES UK LTD.
Regeneration and Local Services,Technical Services,Supplies and Services,304221,Equipment and Materials,08/01/2019,3535910-27376757,"1,147.24",AGGREGATE INDUSTRIES UK LTD.
Regeneration and Local Services,Technical Services,Supplies and Services,304221,Equipment and Materials,08/01/2019,3535910-27437196,944.96,AGGREGATE INDUSTRIES UK LTD.
Regeneration and Local Services,Technical Services,Supplies and Services,304221,Equipment and Materials,08/01/2019,3535910-27438844,755.00,AGGREGATE INDUSTRIES UK LTD.
Regeneration and Local Services,Technical Services,Supplies and Services,304221,Equipment and Materials,08/01/2019,3535910-27445268,"2,805.66",AGGREGATE INDUSTRIES UK LTD.
Regeneration and Local Services,Technical Services,Supplies and Services,304221,Equipment and Materials,08/01/2019,3535910-27445269,680.96,AGGREGATE INDUSTRIES UK LTD.
Regeneration and Local Services,Culture & Sport,Supplies and Services,384999,Miscellaneous Expenses,08/01/2019,3535916-5546,"17,355.00",ALLIANCE LEISURE SERVICES LTD.
Non-Service Specific,Non Service Specific-Financing,Long Term Debtors,924001,Car loans,08/01/2019,3535922-114751,620.00,ARRIVA NORTH EAST LTD.
Non-Service Specific,Non Service Specific-Financing,Long Term Debtors,924001,Car loans,08/01/2019,3535922-114778,620.00,ARRIVA NORTH EAST LTD.
Adult and Health Services,Public Health,Third Party Payments 4THIRD,460803,Contract Payments,08/01/2019,3535927-DVMM/00000123NRT,668.51,ASDA PHARMACY.*
Children and Young Peoples Services,Head of Education and Skills,Supplies and Services,338001,Services,08/01/2019,3535930-18048307,"7,500.00",ATKINS GLOBAL.
Adult and Health Services,Public Health,Third Party Payments 4THIRD,460803,Contract Payments,08/01/2019,3535939-FGKQ/00000104NRT,894.56,BESTWAY NATIONAL CHEMIST LTD T/A WELL.
Adult and Health Services,Public Health,Third Party Payments 4THIRD,460803,Contract Payments,08/01/2019,3535972-DXNF/00000143NRT,900.65,BRITTON & ROBSON LTD.
Regeneration and Local Services,Economic Development and Housing,Third Party Payments 4THIRD,460305,Contract Payments,08/01/2019,3535975-13133,"39,087.50",BUSINESS & ENTERPRISE COMMERCIAL LTD T/A BE GROUP.
Adult and Health Services,Public Health,Third Party Payments 4THIRD,460803,Contract Payments,08/01/2019,3535982-DVQC/00000124NRT,567.08,CENTRECHEM DISPENSING CHEMIST.
Adult and Health Services,Public Health,Third Party Payments 4THIRD,460802,Contract Payments,08/01/2019,3535993-3940016775,"368,605.00",CO DURHAM & DARLINGTON NHS FOUNDATION TRUST.
Children and Young Peoples Services,Head of Education and Skills,Supplies and Services,338094,Services,08/01/2019,3535997-3065,666.00,CORNERSTONES CENTRE FOR THE COMMUNITY.
Adult and Health Services,Head of Adults,Supplies and Services,338042,Services,08/01/2019,3536011-341349/INVSRG63,"2,345.00",DERE STREET BARRISTERS.
Adult and Health Services,Head of Adults,Supplies and Services,338042,Services,08/01/2019,3536011-344096/INVDR597,550.00,DERE STREET BARRISTERS.
Dedicated Schools Grant,DSG High Needs Block,Transfer Payments,510034,School Children,08/01/2019,3536036-LACPP1819AUTUMN.,600.00,FAIRFIELD ACADEMY C/O DAVID ROSS EDUCATION TRUST.
Regeneration and Local Services,Culture & Sport,Fees,901002,Professional fees 901002,08/01/2019,3536037-125349/04,625.00,FAIRHURST.
Children and Young Peoples Services,Head of Childrens Social Care,Supplies and Services,338044,Services,08/01/2019,3536044-33847,758.80,FORENSIC TESTING SERVICE LTD.
Children and Young Peoples Services,Head of Childrens Social Care,Supplies and Services,338044,Services,08/01/2019,3536044-33848,962.60,FORENSIC TESTING SERVICE LTD.
Children and Young Peoples Services,Head of Childrens Social Care,Employees,080025,Agency Staff,08/01/2019,3536055-1363918,"108,615.97",GEOMETRIC RESULTS INTERNATIONAL.
Children and Young Peoples Services,Head of Childrens Social Care,Employees,080025,Agency Staff,08/01/2019,3536055-1450847,"56,231.65",GEOMETRIC RESULTS INTERNATIONAL.
Resources,Digital and Customer Services,Supplies and Services,304639,Equipment and Materials,08/01/2019,3536056-IN20001081360,"3,164.00",GETGO TECHNOLOGIES UK LTD.
Regeneration and Local Services,Culture & Sport,Premises,145023,Cleaning and Domestic Supplies,08/01/2019,3536061-06/774989,841.62,GREENHAM TRADING LTD.
Adult and Health Services,Public Health,Third Party Payments 4THIRD,460803,Contract Payments,08/01/2019,3536086-DYBQ/00000145NRT,633.66,INTRAHEALTH LTD.*
Regeneration and Local Services,Technical Services,Supplies and Services,304221,Equipment and Materials,08/01/2019,3536102-BII271492,515.90,JT DOVE LTD.
Regeneration and Local Services,Direct Services,Supplies and Services,304221,Equipment and Materials,08/01/2019,3536102-GOI1199/D,"1,215.00",JT DOVE LTD.
Regeneration and Local Services,Technical Services,Third Party Payments 4THIRD,460157,Contract Payments,08/01/2019,3536107-62430,"1,029.50",KENFIELD LTD.
Children and Young Peoples Services,Head of Education and Skills,Transfer Payments,510027,School Children,08/01/2019,3536109-NOV/DEC2018,567.00,KIDZONE.
Adult and Health Services,Public Health,Third Party Payments 4THIRD,460803,Contract Payments,08/01/2019,3536134-FPZD/00000131NRT,955.04,LYDON PHARMACY GROUP LTD.
Regeneration and Local Services,Economic Development and Housing,Supplies and Services,377015,County Durham Development,08/01/2019,3536158-904899879,"5,148.83",MOLSON COORS BREWING COMPANY (UK) LTD.
Regeneration and Local Services,Culture & Sport,Supplies and Services,324117,Provisions E324,08/01/2019,3536158-904964160,"1,185.53",MOLSON COORS BREWING COMPANY (UK) LTD.
Adult and Health Services,Public Health,Third Party Payments 4THIRD,460803,Contract Payments,08/01/2019,3536172-DWBT/00000103NRT,"1,245.23",NORCHEM HEALTHCARE LTD.
Dedicated Schools Grant,DSG High Needs Block,Central Support and Other Recharges,689996,Unclassified E690,08/01/2019,3536177-RES-01-2019-013,811.74,NORTH EAST LEARNING TRUST (NELT).
Regeneration and Local Services,Direct Services,Transport,215005,Running Costs of Vehicles,08/01/2019,3536179-380825,"15,850.17",OIL NRG LTD.
Regeneration and Local Services,Direct Services,Transport,215022,Running Costs of Vehicles,08/01/2019,3536179-380827,"1,082.32",OIL NRG LTD.
Resources,Digital and Customer Services,Supplies and Services,304245,Equipment and Materials,08/01/2019,3536202-9576110,532.89,PREMIER PAPER GROUP LTD.
Adult and Health Services,Public Health,Third Party Payments 4THIRD,460803,Contract Payments,08/01/2019,3536215-DXGC/00000149NRT,540.94,ROBERT & ROBERTS LTD T/A BEWICK PHARMACY.*
Resources,Digital and Customer Services,Supplies and Services,340001,Postages E340,08/01/2019,3536219-9057859178,"12,691.01",ROYAL MAIL GROUP PLC.
Regeneration and Local Services,Direct Services,Supplies and Services,304221,Equipment and Materials,08/01/2019,3536229-714560117122,600.22,SIG TRADING LTD.
Regeneration and Local Services,Direct Services,Transport,210057,Repair and Maintenance of Vehicles,08/01/2019,3536232-105/18/28415,"1,325.00",SOCIETE GENERALE EQUIPMENT FINANCE LTD.
Regeneration and Local Services,Culture & Sport,Supplies and Services,338047,Services,08/01/2019,3536248-GALA006,"1,399.00",SUSAN MULHOLLAND (ENTERTAINER).
Regeneration and Local Services,Technical Services,Supplies and Services,304221,Equipment and Materials,08/01/2019,3536251-9039183125,935.97,TARMAC TRADING LTD.
Adult and Health Services,Public Health,Third Party Payments 4THIRD,460803,Contract Payments,08/01/2019,3536254-FDLJ/00000132NRT,645.44,TESCO PHARMACY.*
Resources,Legal & Democratic Services,Supplies and Services,338042,Services,08/01/2019,3536267-246077/INVGR67,975.00,TRINITY CHAMBERS.
Resources,Legal & Democratic Services,Supplies and Services,338042,Services,08/01/2019,3536267-254668/INVRSH26,500.00,TRINITY CHAMBERS.
Resources,Digital and Customer Services,Supplies and Services,344015,Telephones,08/01/2019,3536280-LQ41053,582.00,VODAFONE LTD.
Resources,Digital and Customer Services,Supplies and Services,344015,Telephones,08/01/2019,3536280-LQ96024,"1,043.00",VODAFONE LTD.
Regeneration and Local Services,Culture & Sport,Supplies and Services,338047,Services,08/01/2019,3536285-22706902,544.00,WARNER BROS ENTERTAINMENT UK LTD.
Children and Young Peoples Services,Head of Education and Skills,Transport,230006,Contract Hire,09/01/2019,3537053-10/F769,529.20,A & C TAXIS.
Children and Young Peoples Services,Head of Education and Skills,Transport,230007,Contract Hire,09/01/2019,3537053-8/3369,"1,596.80",A & C TAXIS.
Children and Young Peoples Services,Head of Education and Skills,Transport,230008,Contract Hire,09/01/2019,3537054-A220804,"1,035.00",A MURRAY TRAVEL.
Children and Young Peoples Services,Head of Education and Skills,Transport,230008,Contract Hire,09/01/2019,3537054-EA2220800,"1,785.00",A MURRAY TRAVEL.
Children and Young Peoples Services,Head of Education and Skills,Transport,230006,Contract Hire,09/01/2019,3537054-HA220806,742.50,A MURRAY TRAVEL.
Children and Young Peoples Services,Head of Education and Skills,Transport,230008,Contract Hire,09/01/2019,3537054-N025,742.50,A MURRAY TRAVEL.
Children and Young Peoples Services,Head of Education and Skills,Transport,230008,Contract Hire,09/01/2019,3537057-D9/SK,"1,632.66",AABAT TAXIS.
Regeneration and Local Services,Technical Services,Supplies and Services,304221,Equipment and Materials,09/01/2019,3537060-27480740,"1,169.28",AGGREGATE INDUSTRIES UK LTD.
Regeneration and Local Services,Technical Services,Supplies and Services,304221,Equipment and Materials,09/01/2019,3537060-27522855,569.64,AGGREGATE INDUSTRIES UK LTD.
Regeneration and Local Services,Technical Services,Supplies and Services,304221,Equipment and Materials,09/01/2019,3537060-27612125,"1,581.48",AGGREGATE INDUSTRIES UK LTD.
Dedicated Schools Grant,DSG High Needs Block,Transport,230010,Contract Hire,09/01/2019,3537061-2,"1,200.00",AJT CARS (TAXIS).
Children and Young Peoples Services,Head of Education and Skills,Transport,230007,Contract Hire,09/01/2019,3537062-183,"2,112.00",ALANS TAXIS BARNARD CASTLE.
Children and Young Peoples Services,Head of Education and Skills,Transport,230007,Contract Hire,09/01/2019,3537062-184,"1,785.00",ALANS TAXIS BARNARD CASTLE.
Children and Young Peoples Services,Head of Education and Skills,Transport,230007,Contract Hire,09/01/2019,3537062-185,"1,848.00",ALANS TAXIS BARNARD CASTLE.
Children and Young Peoples Services,Head of Education and Skills,Transport,230008,Contract Hire,09/01/2019,3537066-4392-DEC,900.00,ANDREW PYGALL T/A ARP TAXIS.
Children and Young Peoples Services,Head of Education and Skills,Transport,230008,Contract Hire,09/01/2019,3537066-E053-DEC,"1,350.00",ANDREW PYGALL T/A ARP TAXIS.
Children and Young Peoples Services,Head of Childrens Social Care,Supplies and Services,384507,Miscellaneous Expenses,09/01/2019,3537070-ARC1819-222,600.00,ARC ADOPTION NORTH EAST.
Children and Young Peoples Services,Head of Childrens Social Care,Supplies and Services,384507,Miscellaneous Expenses,09/01/2019,3537070-ARC1819-231,"1,800.00",ARC ADOPTION NORTH EAST.
Children and Young Peoples Services,Head of Childrens Social Care,Supplies and Services,384507,Miscellaneous Expenses,09/01/2019,3537070-ARC1819-243,"2,600.00",ARC ADOPTION NORTH EAST.
Children and Young Peoples Services,Head of Childrens Social Care,Supplies and Services,384507,Miscellaneous Expenses,09/01/2019,3537070-ARC1819-248,"1,600.00",ARC ADOPTION NORTH EAST.
Regeneration and Local Services,Technical Services,Construction work A908,908105,Construction work,09/01/2019,3537075-MS1802886,"5,579.80",ATG ACCESS LTD.
Regeneration and Local Services,Technical Services,Stock A926,926900,Stock in hand-Inventory system,09/01/2019,3537079-INV127541,556.50,AZTEC CHEMICALS LTD.
Regeneration and Local Services,Technical Services,Third Party Payments 4THIRD,430100,Rendered by Private Contractors,09/01/2019,3537081-CSUKOU/INV/65346,"12,010.94",BALFOUR BEATTY LIVING PLACES LTD.*
Regeneration and Local Services,Technical Services,Third Party Payments 4THIRD,430100,Rendered by Private Contractors,09/01/2019,3537081-CSUKOU/INV/65349,"19,917.14",BALFOUR BEATTY LIVING PLACES LTD.*
Regeneration and Local Services,Direct Services,Third Party Payments 4THIRD,430100,Rendered by Private Contractors,09/01/2019,3537082-1062124,"1,261.00",BARNSHAW SECTION BENDERS LTD.
Children and Young Peoples Services,Head of Education and Skills,Transport,230003,Contract Hire,09/01/2019,3537084-STJOHNSRC1218-3003,"1,920.00",BELL BROTHERS TRAVEL.
Children and Young Peoples Services,Head of Education and Skills,Transport,230003,Contract Hire,09/01/2019,3537084-STJOHNSRC1218-3005,"3,720.00",BELL BROTHERS TRAVEL.
Regeneration and Local Services,Direct Services,Third Party Payments 4THIRD,430100,Rendered by Private Contractors,09/01/2019,3537085-6329,800.00,BELL CONTROL SOLUTIONS LTD.
Adult and Health Services,Head of Adults,Transport,230005,Contract Hire,09/01/2019,3537094-0078-SED100,576.00,BIRDS TAXIS LTD.
Adult and Health Services,Head of Adults,Transport,230005,Contract Hire,09/01/2019,3537094-0081,664.00,BIRDS TAXIS LTD.
Adult and Health Services,Head of Adults,Transport,230005,Contract Hire,09/01/2019,3537094-0082-WV115,532.00,BIRDS TAXIS LTD.
Regeneration and Local Services,Technical Services,Supplies and Services,304221,Equipment and Materials,09/01/2019,3537097-593422,900.00,BLUEBAY BUILDING PRODUCTS LTD.
Children and Young Peoples Services,Head of Education and Skills,Transport,230006,Contract Hire,09/01/2019,3537098-19716,"1,295.00",BLUELINE TAXIS.
Children and Young Peoples Services,Head of Education and Skills,Transport,230006,Contract Hire,09/01/2019,3537098-19717,"1,680.00",BLUELINE TAXIS.
Children and Young Peoples Services,Head of Education and Skills,Transport,230008,Contract Hire,09/01/2019,3537099-5-W076DEC18,"1,050.00",BOBS TAXIS.
Regeneration and Local Services,Direct Services,Supplies and Services,304221,Equipment and Materials,09/01/2019,3537105-190195,"1,100.00",BRAMBLEDOWN LANDSCAPE SERVICES LTD.
Children and Young Peoples Services,Head of Education and Skills,Transport,230008,Contract Hire,09/01/2019,3537108-BZ00284,735.00,BREZ`S TAXIS.
Children and Young Peoples Services,Head of Education and Skills,Transport,230008,Contract Hire,09/01/2019,3537108-BZ00285,810.00,BREZ`S TAXIS.
Adult and Health Services,Head of Adults,Transport,230005,Contract Hire,09/01/2019,3537108-BZ00286,576.00,BREZ`S TAXIS.
Children and Young Peoples Services,Head of Education and Skills,Transport,230008,Contract Hire,09/01/2019,311532-N010/15,"1,050.00",C STEWART.
Children and Young Peoples Services,Head of Education and Skills,Transport,230009,Contract Hire,09/01/2019,3537116-BIL0146,720.00,CA MUSGROVE.
Regeneration and Local Services,Direct Services,Supplies and Services,304221,Equipment and Materials,09/01/2019,3537119-851803351,915.76,CARLISLE CONSTRUCTION MATERIALS LTD.
Regeneration and Local Services,Direct Services,Transport,210057,Repair and Maintenance of Vehicles,09/01/2019,3537122-230257,586.00,CARRS BILLINGTON AGRICULTURE.
Dedicated Schools Grant,DSG High Needs Block,Central Support and Other Recharges,689995,Unclassified E690,09/01/2019,3537130-CAS-01-2019-032,"5,811.34",CHILTON ACADEMY.
Regeneration and Local Services,Technical Services,Stock A926,926900,Stock in hand-Inventory system,09/01/2019,3537140-220043,946.80,COLAS LTD.
Adult and Health Services,Head of Adults,Transport,230005,Contract Hire,09/01/2019,3537142-WV104/1218,570.00,COLVIN`S CABS.
Children and Young Peoples Services,Head of Education and Skills,Transport,230007,Contract Hire,09/01/2019,3537152-108640,"1,571.10",CROFT BUSINESS SERVICES (UK) LTD T/A CROFT TAXIS.
Children and Young Peoples Services,Head of Education and Skills,Transport,230009,Contract Hire,09/01/2019,3537152-108642,697.50,CROFT BUSINESS SERVICES (UK) LTD T/A CROFT TAXIS.
Children and Young Peoples Services,Head of Education and Skills,Transport,230009,Contract Hire,09/01/2019,3537152-108643,"1,498.05",CROFT BUSINESS SERVICES (UK) LTD T/A CROFT TAXIS.
Children and Young Peoples Services,Head of Education and Skills,Transport,230008,Contract Hire,09/01/2019,3537152-108645,"2,875.05",CROFT BUSINESS SERVICES (UK) LTD T/A CROFT TAXIS.
Children and Young Peoples Services,Head of Education and Skills,Transport,230008,Contract Hire,09/01/2019,3537152-108646,"1,498.05",CROFT BUSINESS SERVICES (UK) LTD T/A CROFT TAXIS.
Children and Young Peoples Services,Head of Education and Skills,Transport,230008,Contract Hire,09/01/2019,3537152-108647,"3,186.30",CROFT BUSINESS SERVICES (UK) LTD T/A CROFT TAXIS.
Children and Young Peoples Services,Head of Education and Skills,Transport,230008,Contract Hire,09/01/2019,3537152-108648,"2,403.78",CROFT BUSINESS SERVICES (UK) LTD T/A CROFT TAXIS.
Children and Young Peoples Services,Head of Education and Skills,Transport,230008,Contract Hire,09/01/2019,3537152-108651,"1,781.40",CROFT BUSINESS SERVICES (UK) LTD T/A CROFT TAXIS.
Children and Young Peoples Services,Head of Education and Skills,Transport,230008,Contract Hire,09/01/2019,3537152-108652,991.05,CROFT BUSINESS SERVICES (UK) LTD T/A CROFT TAXIS.
Children and Young Peoples Services,Head of Education and Skills,Transport,230016,Contract Hire,09/01/2019,3537152-108653,"1,045.68",CROFT BUSINESS SERVICES (UK) LTD T/A CROFT TAXIS.
Children and Young Peoples Services,Head of Education and Skills,Supplies and Services,338099,Services,09/01/2019,3537155-JRSI14,"3,600.00",CYC JOSEPH ROWNTREE SCHOOL.
Regeneration and Local Services,Technical Services,Third Party Payments 4THIRD,430127,Rendered by Private Contractors,09/01/2019,3537158-013,"2,708.50",D & L HOPPS.
Dedicated Schools Grant,DSG High Needs Block,Third Party Payments 4THIRD,440080,Other third party payments E440,09/01/2019,3537163-SLINV/00002253,"1,416.60",DARLINGTON COLLEGE.
Dedicated Schools Grant,DSG High Needs Block,Third Party Payments 4THIRD,440080,Other third party payments E440,09/01/2019,3537163-SLINV/00002288,"1,416.60",DARLINGTON COLLEGE.
Regeneration and Local Services,Technical Services,Third Party Payments 4THIRD,430100,Rendered by Private Contractors,09/01/2019,3537160-N522389,"8,750.00",D-DRILL (MASTER DRILLERS) LTD.
Regeneration and Local Services,Direct Services,Third Party Payments 4THIRD,430100,Rendered by Private Contractors,09/01/2019,3537166-96367185,873.72,DENNIS EAGLE LTD T/A TERBERG MATEC (UK) LTD.
Dedicated Schools Grant,DSG High Needs Block,Third Party Payments 4THIRD,440080,Other third party payments E440,09/01/2019,3537168-60001383,"114,000.00",DERWENTSIDE COLLEGE.
Regeneration and Local Services,EnvironmentHealth & Consumer Protection,Supplies and Services,332047,Printing Stationery and Gen Off Exps,09/01/2019,3537169-0000303066,617.60,DIGITAL ID LTD.
Children and Young Peoples Services,Head of Education and Skills,Transfer Payments,510027,School Children,09/01/2019,3537170-DCCRB001,704.70,DO RE MI DAY NURSERY.
Regeneration and Local Services,Culture & Sport,Supplies and Services,338047,Services,09/01/2019,3537178-326201,"2,250.53",DURHAM UNIVERSITY.
Regeneration and Local Services,Direct Services,Supplies and Services,304221,Equipment and Materials,09/01/2019,3537183-059-236418,"1,315.99",EDMUNDSON ELECTRICAL LTD.
Dedicated Schools Grant,DSG High Needs Block,Supplies and Services,304259,Equipment and Materials,09/01/2019,3537204-164621,547.00,G & S SMIRTHWAITE LTD.
Children and Young Peoples Services,Head of Education and Skills,Transport,230007,Contract Hire,09/01/2019,3537205-13,"1,366.00",G ANGHEL T/A A TAXI.
Children and Young Peoples Services,Head of Childrens Social Care,Employees,080025,Agency Staff,09/01/2019,3537210-1537450,"75,404.70",GEOMETRIC RESULTS INTERNATIONAL.
Regeneration and Local Services,Technical Services,Supplies and Services,304358,Equipment and Materials,09/01/2019,3537211-74681,"1,246.39",GEORGE VARDY HAULAGE.
Regeneration and Local Services,Transport and Contracted Services,Third Party Payments 4THIRD,430106,Rendered by Private Contractors,09/01/2019,3537214-90/137,"1,206.00",GRAHAMS MOTOR SERVICES LTD.
Regeneration and Local Services,Direct Services,Supplies and Services,304221,Equipment and Materials,09/01/2019,3537218-J6816REPROVIDED,"2,080.00",GROVE REED.
Regeneration and Local Services,Technical Services,Third Party Payments 4THIRD,430100,Rendered by Private Contractors,09/01/2019,3537226-2866,"5,744.46",HIGHWAY CONSTRUCTION SERVICES LTD.
Regeneration and Local Services,Technical Services,Third Party Payments 4THIRD,430100,Rendered by Private Contractors,09/01/2019,3537226-2867,"6,046.80",HIGHWAY CONSTRUCTION SERVICES LTD.
Regeneration and Local Services,Direct Services,Third Party Payments 4THIRD,430100,Rendered by Private Contractors,09/01/2019,3537227-9268,656.14,HILLCREST AUTO ELECTRICS.
Children and Young Peoples Services,Head of Education and Skills,Transport,230007,Contract Hire,09/01/2019,3537229-14935,"1,051.60",HODGSONS COACH OPERATORS LTD.
Children and Young Peoples Services,Head of Education and Skills,Transport,230007,Contract Hire,09/01/2019,3537229-14936,"1,742.40",HODGSONS COACH OPERATORS LTD.
Children and Young Peoples Services,Head of Education and Skills,Transport,230007,Contract Hire,09/01/2019,3537229-14938,"1,749.00",HODGSONS COACH OPERATORS LTD.
Children and Young Peoples Services,Head of Education and Skills,Transport,230007,Contract Hire,09/01/2019,3537229-14939,"1,309.00",HODGSONS COACH OPERATORS LTD.
Children and Young Peoples Services,Head of Education and Skills,Transport,230007,Contract Hire,09/01/2019,3537229-14940,"2,087.40",HODGSONS COACH OPERATORS LTD.
Children and Young Peoples Services,Head of Education and Skills,Transport,230007,Contract Hire,09/01/2019,3537229-14942,"2,079.00",HODGSONS COACH OPERATORS LTD.
Children and Young Peoples Services,Head of Education and Skills,Transport,230007,Contract Hire,09/01/2019,3537229-14943,"3,127.95",HODGSONS COACH OPERATORS LTD.
Children and Young Peoples Services,Head of Education and Skills,Transport,230007,Contract Hire,09/01/2019,3537229-14944,"3,234.00",HODGSONS COACH OPERATORS LTD.
Children and Young Peoples Services,Head of Education and Skills,Transport,230007,Contract Hire,09/01/2019,3537229-14945,"3,003.00",HODGSONS COACH OPERATORS LTD.
Children and Young Peoples Services,Head of Education and Skills,Transport,230007,Contract Hire,09/01/2019,3537229-14946,"2,420.00",HODGSONS COACH OPERATORS LTD.
Children and Young Peoples Services,Head of Education and Skills,Transport,230007,Contract Hire,09/01/2019,3537229-14947,"1,848.00",HODGSONS COACH OPERATORS LTD.
Regeneration and Local Services,Direct Services,Third Party Payments 4THIRD,430100,Rendered by Private Contractors,09/01/2019,3537230-75747,"1,886.45",HOGARTH COACHWORKS LTD.
Dedicated Schools Grant,DSG High Needs Block,Transport,230010,Contract Hire,09/01/2019,3537234-004-B016DEC18,"2,047.50",IAN SOULSBY.
Regeneration and Local Services,Technical Services,Supplies and Services,304358,Equipment and Materials,09/01/2019,3537235-C322,"4,681.50",IAN WILSON.
Regeneration and Local Services,Culture & Sport,Supplies and Services,324117,Provisions E324,09/01/2019,3537243-74462,"1,035.76",J MORAN LTD T/A CAFFE VINCI.
Regeneration and Local Services,Technical Services,Supplies and Services,304358,Equipment and Materials,09/01/2019,3537244-5305596,"1,165.00",JA GILSON (AGRICULTURAL CONTRACTORS) LTD.
Children and Young Peoples Services,Head of Education and Skills,Transport,230007,Contract Hire,09/01/2019,3537251-72-5234DEC18,"1,350.00",JOHN CRAKE & SONS MINI BUSES LTD.
Regeneration and Local Services,Technical Services,Supplies and Services,304221,Equipment and Materials,09/01/2019,3537253-GOI1295/D,"2,028.25",JT DOVE LTD.
Regeneration and Local Services,Technical Services,Stock A926,926900,Stock in hand-Inventory system,09/01/2019,3537253-STI491000,"1,818.21",JT DOVE LTD.
Regeneration and Local Services,Technical Services,Third Party Payments 4THIRD,430100,Rendered by Private Contractors,09/01/2019,3537255-35085,"1,081.71",KAEFER LTD.
Regeneration and Local Services,Culture & Sport,Supplies and Services,384199,Miscellaneous Expenses,09/01/2019,3537256-INV1750,625.00,KAYLEIGH LAVERICK T/A THE GARAGE URBAN STYLES.
Children and Young Peoples Services,Head of Education and Skills,Transport,230006,Contract Hire,09/01/2019,3537259-2105,668.40,KEN HINDS.
Children and Young Peoples Services,Head of Education and Skills,Transport,230008,Contract Hire,09/01/2019,3537261-011218,"1,500.00",KEVIN EDMUNDSON.
Dedicated Schools Grant,DSG High Needs Block,Central Support and Other Recharges,689996,Unclassified E690,09/01/2019,3537264-CAS-01-2019-035,"10,688.50",KING JAMES I ACADEMY.
Children and Young Peoples Services,Head of Education and Skills,Transport,230007,Contract Hire,09/01/2019,3537269-6256,"4,500.00",LEE`S COACHES LTD.
Children and Young Peoples Services,Head of Education and Skills,Transport,230007,Contract Hire,09/01/2019,3537269-6256/4226,"3,000.00",LEE`S COACHES LTD.
Children and Young Peoples Services,Head of Education and Skills,Transport,230007,Contract Hire,09/01/2019,3537269-6256/4227,"2,175.00",LEE`S COACHES LTD.
Children and Young Peoples Services,Head of Education and Skills,Transport,230003,Contract Hire,09/01/2019,3537269-6258,"1,935.00",LEE`S COACHES LTD.
Regeneration and Local Services,Technical Services,Stock A926,926900,Stock in hand-Inventory system,09/01/2019,3537270-NI041692,"24,117.00",LIGHT & ENERGY DISTRIBUTION LTD.
Regeneration and Local Services,Technical Services,Third Party Payments 4THIRD,430100,Rendered by Private Contractors,09/01/2019,3537271-921197,"12,258.00",LIGHTING & ILLUMINATION TECHNOLOGY EXPERIENCE LTD (LITE).
Dedicated Schools Grant,DSG High Needs Block,Transport,230010,Contract Hire,09/01/2019,3537272-3908,"1,388.80",LINCAB TAXIS.
Resources,Finance & Transactional Services,Supplies and Services,384180,Miscellaneous Expenses,09/01/2019,3537275-0179723,"5,705.91",LOOMIS UK LTD.
Regeneration and Local Services,Technical Services,Supplies and Services,304358,Equipment and Materials,09/01/2019,3537277-MS1295,873.00,M SPENCE SURFACING LTD.
Regeneration and Local Services,Technical Services,Supplies and Services,304358,Equipment and Materials,09/01/2019,3537277-MS1301,551.70,M SPENCE SURFACING LTD.
Regeneration and Local Services,Technical Services,Supplies and Services,304358,Equipment and Materials,09/01/2019,3537277-MS1368,"1,305.00",M SPENCE SURFACING LTD.
Regeneration and Local Services,Technical Services,Third Party Payments 4THIRD,430100,Rendered by Private Contractors,09/01/2019,3537279-9009067696,985.00,MAMMOET UK LTD.
Children and Young Peoples Services,Head of Education and Skills,Transport,230008,Contract Hire,09/01/2019,3537283-INV12/1809,"1,170.00",MARK & JOHN CHISHOLM T/A (CHEVRON).
Children and Young Peoples Services,Head of Education and Skills,Transport,230008,Contract Hire,09/01/2019,3537283-INV12/1810,"1,560.00",MARK & JOHN CHISHOLM T/A (CHEVRON).
Children and Young Peoples Services,Head of Education and Skills,Transport,230008,Contract Hire,09/01/2019,3537284-211218,518.00,MARK MUSGROVE T/A MARKS TAXIS.
Children and Young Peoples Services,Head of Education and Skills,Transport,230009,Contract Hire,09/01/2019,3537284-211218/7325,810.00,MARK MUSGROVE T/A MARKS TAXIS.
Children and Young Peoples Services,Head of Education and Skills,Transport,230008,Contract Hire,09/01/2019,3537285-0007,"1,035.00",MARK WATSON T/A MARK`S TAXIS.
Children and Young Peoples Services,Head of Education and Skills,Transport,230008,Contract Hire,09/01/2019,3537293-004,"1,770.00",MOLLY`S TAXIS LTD.
Children and Young Peoples Services,Head of Education and Skills,Transport,230006,Contract Hire,09/01/2019,3537293-004/A001,"1,650.00",MOLLY`S TAXIS LTD.
Children and Young Peoples Services,Head of Education and Skills,Transport,230008,Contract Hire,09/01/2019,3537293-004/A007,"1,650.00",MOLLY`S TAXIS LTD.
Children and Young Peoples Services,Head of Education and Skills,Transport,230008,Contract Hire,09/01/2019,3537293-004/N030,"1,800.00",MOLLY`S TAXIS LTD.
Children and Young Peoples Services,Head of Education and Skills,Transport,230008,Contract Hire,09/01/2019,3537293-N023/12,826.00,MOLLY`S TAXIS LTD.
Regeneration and Local Services,Culture & Sport,Supplies and Services,324117,Provisions E324,09/01/2019,3537294-904910019,530.68,MOLSON COORS BREWING COMPANY (UK) LTD.
Children and Young Peoples Services,Head of Education and Skills,Transport,230008,Contract Hire,09/01/2019,3537295-CEW504,"1,275.00",MOOR PRIVATE HIRE.
Children and Young Peoples Services,Head of Education and Skills,Transport,230008,Contract Hire,09/01/2019,3537297-0004/N035,"1,082.20",MR A MILLWARD T/A SWISS CABS PRIVATE HIRE.
Children and Young Peoples Services,Head of Education and Skills,Transport,230008,Contract Hire,09/01/2019,3537303-OC/12/18,799.20,MR J AGAR T/A PARK TAXIS.
Children and Young Peoples Services,Head of Education and Skills,Transport,230008,Contract Hire,09/01/2019,3537303-SFB/12/18,"1,260.00",MR J AGAR T/A PARK TAXIS.
Regeneration and Local Services,EnvironmentHealth & Consumer Protection,Supplies and Services,338099,Services,09/01/2019,311547-14/12/2018,550.00,MR RICHARD BENNETT (FOUNTAIN CHAMBERS).
Regeneration and Local Services,Direct Services,Transport,230005,Contract Hire,09/01/2019,3537326-123239,"2,900.00",ND BROWN LTD.
Regeneration and Local Services,Direct Services,Transport,230005,Contract Hire,09/01/2019,3537326-123240,"1,500.00",ND BROWN LTD.
Children and Young Peoples Services,Head of Education and Skills,Transport,230008,Contract Hire,09/01/2019,3537328-48,"1,350.00",NEIL PASSMOOR T/A NEIL`S TAXI.
Children and Young Peoples Services,"Head of Early Help, Inclusion and Vulnerable Children",Supplies and Services,340001,Postages E340,09/01/2019,3537330-CAS-01-2019-025,600.00,NEOPOST CREDIFON.
Dedicated Schools Grant,DSG High Needs Block,Central Support and Other Recharges,615208,Support Services,09/01/2019,3537331-RES-01-2019-015,"6,651.60",NEW COLLEGE ACADEMIES TRUST - CONSETT ACADEMY.
Children and Young Peoples Services,Head of Education and Skills,Supplies and Services,338094,Services,09/01/2019,3537334-3132,840.00,NEWTON AYCLIFFE YOUTH & COMMUNITY CENTRE.
Dedicated Schools Grant,DSG High Needs Block,Central Support and Other Recharges,689996,Unclassified E690,09/01/2019,3537339-CAS-01-2019-036,"6,956.95",NORTH EAST LEARNING TRUST (NELT).
Regeneration and Local Services,Direct Services,Transport,210057,Repair and Maintenance of Vehicles,09/01/2019,3537341-21815905,565.02,NORTH EAST TRUCK & VAN LTD.
Regeneration and Local Services,Direct Services,Supplies and Services,304259,Equipment and Materials,09/01/2019,3537344-67708,"1,157.00",NORTHERN TOOLS & ACCESSORIES.
Regeneration and Local Services,Direct Services,Transport,230005,Contract Hire,09/01/2019,3537345-SL05345216INV,533.40,NORTHGATE VEHICLE HIRE LTD.
Regeneration and Local Services,Technical Services,Premises,120009,Energy Costs,09/01/2019,3537346-NNO76ZPJ,"22,399.27",NPOWER.
Regeneration and Local Services,Direct Services,Supplies and Services,304221,Equipment and Materials,09/01/2019,3537347-10350,"1,250.00",OCTANE HOLDING GROUP LTD.
Dedicated Schools Grant,DSG High Needs Block,Central Support and Other Recharges,689996,Unclassified E690,09/01/2019,3537354-CAS-01-2019-033,"11,816.87",OUSTON PRIMARY SCHOOL (PART OF JIGSAW LEARNING TRUST).
Children and Young Peoples Services,Head of Education and Skills,Transport,230003,Contract Hire,09/01/2019,3537356-7669,"1,395.00",OVERLANDER LTD.
Regeneration and Local Services,Technical Services,Stock A926,926900,Stock in hand-Inventory system,09/01/2019,3537359-XL233758,"3,487.40",PARK ELECTRICAL DISTRIBUTORS LTD.
Regeneration and Local Services,Technical Services,Stock A926,926900,Stock in hand-Inventory system,09/01/2019,3537359-XL233770,"3,459.60",PARK ELECTRICAL DISTRIBUTORS LTD.
Dedicated Schools Grant,DSG High Needs Block,Central Support and Other Recharges,689996,Unclassified E690,09/01/2019,3537360-CAS-01-2019-034,"7,667.15",PARK VIEW ACADEMY.
Children and Young Peoples Services,Head of Education and Skills,Transport,230007,Contract Hire,09/01/2019,3537363-4/5228,"1,395.00",PAUL ROSE T/A PAUL`S TAXIS.
Regeneration and Local Services,Technical Services,Supplies and Services,304221,Equipment and Materials,09/01/2019,3537370-310788,839.56,PEART FENCING LTD.
Regeneration and Local Services,Technical Services,Supplies and Services,338027,Services,09/01/2019,3537371-W180519,"6,190.00",PELL FRISCHMANN CONSULTANTS LTD.
Adult and Health Services,Head of Adults,Transport,230005,Contract Hire,09/01/2019,3537376-0711,"1,464.00",PETER`S PRIVATE HIRE/PETER BEST.
Adult and Health Services,Head of Adults,Transport,230005,Contract Hire,09/01/2019,3537376-0712,"1,230.00",PETER`S PRIVATE HIRE/PETER BEST.
Children and Young Peoples Services,Head of Education and Skills,Transport,230008,Contract Hire,09/01/2019,3537376-0713,"1,080.00",PETER`S PRIVATE HIRE/PETER BEST.
Children and Young Peoples Services,Head of Education and Skills,Transport,230008,Contract Hire,09/01/2019,3537376-0714,"1,185.00",PETER`S PRIVATE HIRE/PETER BEST.
Children and Young Peoples Services,Head of Education and Skills,Transport,230008,Contract Hire,09/01/2019,3537376-0715,"1,452.00",PETER`S PRIVATE HIRE/PETER BEST.
Children and Young Peoples Services,Head of Education and Skills,Transport,230006,Contract Hire,09/01/2019,3537376-0716,"1,482.00",PETER`S PRIVATE HIRE/PETER BEST.
Children and Young Peoples Services,Head of Education and Skills,Transport,230007,Contract Hire,09/01/2019,3537376-0718,"1,635.00",PETER`S PRIVATE HIRE/PETER BEST.
Children and Young Peoples Services,Head of Education and Skills,Transport,230008,Contract Hire,09/01/2019,3537376-0719,540.00,PETER`S PRIVATE HIRE/PETER BEST.
Children and Young Peoples Services,Head of Education and Skills,Transport,230008,Contract Hire,09/01/2019,3537376-0720,"1,080.00",PETER`S PRIVATE HIRE/PETER BEST.
Dedicated Schools Grant,DSG High Needs Block,Transport,230010,Contract Hire,09/01/2019,3537374-601,"1,050.00",PETERLEE EXECUTIVE CARS.
Children and Young Peoples Services,Head of Education and Skills,Transport,230007,Contract Hire,09/01/2019,3537374-602,900.00,PETERLEE EXECUTIVE CARS.
Children and Young Peoples Services,Head of Education and Skills,Transport,230007,Contract Hire,09/01/2019,3537374-603,560.00,PETERLEE EXECUTIVE CARS.
Children and Young Peoples Services,Head of Education and Skills,Transport,230008,Contract Hire,09/01/2019,3537377-827,"1,275.00",PG TRIPS.
Children and Young Peoples Services,Head of Education and Skills,Transport,230008,Contract Hire,09/01/2019,3537379-PT4,"1,037.00",PHILLY`S TAXI.
Children and Young Peoples Services,Head of Education and Skills,Transport,230006,Contract Hire,09/01/2019,3537380-27177,"1,254.00",PHOENIX TAXIS T/A PRATT`S TAXIS.
Dedicated Schools Grant,DSG High Needs Block,Third Party Payments 4THIRD,440080,Other third party payments E440,09/01/2019,3537383-OR-12-DC,"2,311.36",POSSIBILITES NE LTD.
Regeneration and Local Services,Technical Services,Third Party Payments 4THIRD,430100,Rendered by Private Contractors,09/01/2019,3537389-114882,550.00,PROTECTOR SECURITY GROUP LTD.
Regeneration and Local Services,Technical Services,Third Party Payments 4THIRD,430100,Rendered by Private Contractors,09/01/2019,3537389-115074,550.00,PROTECTOR SECURITY GROUP LTD.
Regeneration and Local Services,Technical Services,Third Party Payments 4THIRD,430100,Rendered by Private Contractors,09/01/2019,3537389-115400,550.00,PROTECTOR SECURITY GROUP LTD.
Regeneration and Local Services,Technical Services,Third Party Payments 4THIRD,430100,Rendered by Private Contractors,09/01/2019,3537389-115578,550.00,PROTECTOR SECURITY GROUP LTD.
Regeneration and Local Services,Technical Services,Third Party Payments 4THIRD,430100,Rendered by Private Contractors,09/01/2019,3537389-115729,550.00,PROTECTOR SECURITY GROUP LTD.
Regeneration and Local Services,Technical Services,Third Party Payments 4THIRD,430100,Rendered by Private Contractors,09/01/2019,3537389-115871,550.00,PROTECTOR SECURITY GROUP LTD.
Regeneration and Local Services,Technical Services,Third Party Payments 4THIRD,430100,Rendered by Private Contractors,09/01/2019,3537389-116220,550.00,PROTECTOR SECURITY GROUP LTD.
Regeneration and Local Services,Technical Services,Third Party Payments 4THIRD,430100,Rendered by Private Contractors,09/01/2019,3537389-116335,550.00,PROTECTOR SECURITY GROUP LTD.
Regeneration and Local Services,Technical Services,Third Party Payments 4THIRD,430100,Rendered by Private Contractors,09/01/2019,3537389-116450,550.00,PROTECTOR SECURITY GROUP LTD.
Regeneration and Local Services,Technical Services,Third Party Payments 4THIRD,430100,Rendered by Private Contractors,09/01/2019,3537389-116451,550.00,PROTECTOR SECURITY GROUP LTD.
Regeneration and Local Services,Economic Development and Housing,Fees,901003,Capital - Contract Supervision,09/01/2019,3537405-J/18/02/11/APK/TM,"2,000.00",RNJ PARTNERSHIP LLP.
Regeneration and Local Services,Business Support,Supplies and Services,340001,Postages E340,09/01/2019,3537408-9057899900,"1,779.26",ROYAL MAIL GROUP PLC.
Resources,Digital and Customer Services,Supplies and Services,340001,Postages E340,09/01/2019,3537408-9057902211,"8,351.51",ROYAL MAIL GROUP PLC.
Resources,Digital and Customer Services,Supplies and Services,340001,Postages E340,09/01/2019,3537408-9057982967,"1,379.76",ROYAL MAIL GROUP PLC.
Regeneration and Local Services,Technical Services,Supplies and Services,304358,Equipment and Materials,09/01/2019,3537411-1836,"2,440.75",S & R LANDSCAPES.
Regeneration and Local Services,Technical Services,Supplies and Services,304358,Equipment and Materials,09/01/2019,3537411-1883,999.50,S & R LANDSCAPES.
Regeneration and Local Services,Technical Services,Supplies and Services,304358,Equipment and Materials,09/01/2019,3537411-1886,610.00,S & R LANDSCAPES.
Regeneration and Local Services,Technical Services,Supplies and Services,304358,Equipment and Materials,09/01/2019,3537411-1888,"1,127.00",S & R LANDSCAPES.
Regeneration and Local Services,Technical Services,Supplies and Services,304358,Equipment and Materials,09/01/2019,3537411-1889,"1,076.00",S & R LANDSCAPES.
Regeneration and Local Services,Technical Services,Supplies and Services,304358,Equipment and Materials,09/01/2019,3537411-1890,795.50,S & R LANDSCAPES.
Regeneration and Local Services,Direct Services,Premises,145009,Cleaning and Domestic Supplies,09/01/2019,3537415-PI266328,704.07,SAFETY KLEEN UK LTD.
Regeneration and Local Services,Direct Services,Transport,230005,Contract Hire,09/01/2019,3537422-11022733,750.68,SHB HIRE LTD.
Children and Young Peoples Services,Head of Education and Skills,Transport,230008,Contract Hire,09/01/2019,3537423-74405,"1,557.00",SHOTTON PRIVATE HIRE.
Children and Young Peoples Services,Head of Education and Skills,Transport,230008,Contract Hire,09/01/2019,3537423-74406,"1,800.00",SHOTTON PRIVATE HIRE.
Children and Young Peoples Services,Head of Education and Skills,Transport,230008,Contract Hire,09/01/2019,3537423-74407,"1,450.40",SHOTTON PRIVATE HIRE.
Children and Young Peoples Services,Head of Education and Skills,Transport,230008,Contract Hire,09/01/2019,3537423-74414,"2,397.20",SHOTTON PRIVATE HIRE.
Children and Young Peoples Services,Head of Education and Skills,Transport,230008,Contract Hire,09/01/2019,3537427-1300,"1,380.00",SIMONS TAXIS.
Children and Young Peoples Services,Head of Education and Skills,Transport,230012,Contract Hire,09/01/2019,3537430-696A,"1,800.00",SJ MACKENZIE T/A SCOTTS TAXIS.
Children and Young Peoples Services,Head of Education and Skills,Transport,230008,Contract Hire,09/01/2019,3537430-697A,"1,125.00",SJ MACKENZIE T/A SCOTTS TAXIS.
Children and Young Peoples Services,Head of Education and Skills,Transport,230008,Contract Hire,09/01/2019,3537430-700A,"1,500.00",SJ MACKENZIE T/A SCOTTS TAXIS.
Children and Young Peoples Services,Head of Education and Skills,Transport,230008,Contract Hire,09/01/2019,3537430-701A,"1,575.00",SJ MACKENZIE T/A SCOTTS TAXIS.
Children and Young Peoples Services,Head of Education and Skills,Transport,230016,Contract Hire,09/01/2019,3537430-702A,"1,125.00",SJ MACKENZIE T/A SCOTTS TAXIS.
Children and Young Peoples Services,Head of Education and Skills,Transport,230008,Contract Hire,09/01/2019,3537430-703A,"1,500.00",SJ MACKENZIE T/A SCOTTS TAXIS.
Children and Young Peoples Services,Head of Education and Skills,Transport,230031,Contract Hire,09/01/2019,3537436-52195,"1,034.10",STANLEY TRAVEL (NORTH EAST) LTD.
Children and Young Peoples Services,Head of Education and Skills,Transport,230008,Contract Hire,09/01/2019,3537437-25-E002DEC18,"1,350.00",STEELYS TAXIS.
Children and Young Peoples Services,Head of Education and Skills,Transport,230008,Contract Hire,09/01/2019,3537439-1002,"2,070.00",STEPHEN REED T/A STEVE`S TAXIS.
Regeneration and Local Services,Technical Services,Supplies and Services,304221,Equipment and Materials,09/01/2019,3537440-112965,578.08,STONEGRAVE AGGREGATES LTD.
Regeneration and Local Services,Technical Services,Supplies and Services,304221,Equipment and Materials,09/01/2019,3537440-113473,600.16,STONEGRAVE AGGREGATES LTD.
Children and Young Peoples Services,Head of Education and Skills,Transport,230003,Contract Hire,09/01/2019,3537441-STNE0929,"1,035.00",STYLE TRAVEL NORTH EAST.
Regeneration and Local Services,Economic Development and Housing,Cap Exp on Grants & Other Financial Assistance (REFCUS),918501,Exp assets not owned by authority,09/01/2019,3537443-2821020789,"5,459.00",SUNDERLAND CITY COUNCIL.
Children and Young Peoples Services,Head of Childrens Social Care,Transport,240045,Car allowances E240,09/01/2019,3537446-9092,"51,556.41",SUPPORTIVE SRC LTD.
Adult and Health Services,Commissioning inc Supporting People,Transport,240045,Car allowances E240,09/01/2019,3537446-9093,"8,470.69",SUPPORTIVE SRC LTD.
Regeneration and Local Services,Culture & Sport,Supplies and Services,328041,Clothing uniforms and laundry E328,09/01/2019,3537448-IN158045,"1,836.20",SWIFT INDUSTRIAL SUPPLIES LTD.
Regeneration and Local Services,Direct Services,Third Party Payments 4THIRD,430100,Rendered by Private Contractors,09/01/2019,3537456-2722,700.00,TEAM VALLEY TRANSMISSIONS LTD.
Regeneration and Local Services,Direct Services,Third Party Payments 4THIRD,430100,Rendered by Private Contractors,09/01/2019,3537457-I128414,"3,555.00",TESGL LTD T/A SSE ENTERPRISE ENERGY SOLUTIONS.
Regeneration and Local Services,Technical Services,Third Party Payments 4THIRD,460503,Contract Payments,09/01/2019,3537458-22645,"52,762.13",TEXTUREBLAST LTD.
Children and Young Peoples Services,Head of Education and Skills,Transfer Payments,510026,School Children,09/01/2019,3537466-THENURSERYEOAUTUMN18,"1,057.05",THE NURSERY.
Regeneration and Local Services,Technical Services,Stock A926,926900,Stock in hand-Inventory system,09/01/2019,3537474-101389,"1,344.00",TOTAL RENTAL SOLUTIONS.
Regeneration and Local Services,Direct Services,Supplies and Services,304221,Equipment and Materials,09/01/2019,3537474-101390,"1,629.00",TOTAL RENTAL SOLUTIONS.
Regeneration and Local Services,Technical Services,Stock A926,926900,Stock in hand-Inventory system,09/01/2019,3537474-101391,"4,630.00",TOTAL RENTAL SOLUTIONS.
Regeneration and Local Services,Technical Services,Stock A926,926900,Stock in hand-Inventory system,09/01/2019,3537474-101392,"2,325.00",TOTAL RENTAL SOLUTIONS.
Regeneration and Local Services,Technical Services,Stock A926,926900,Stock in hand-Inventory system,09/01/2019,3537474-101393,"1,212.48",TOTAL RENTAL SOLUTIONS.
Regeneration and Local Services,Transport and Contracted Services,Supplies and Services,304245,Equipment and Materials,09/01/2019,3537482-31N/10329474,"8,918.00",TUNSTALL HEALTHCARE (UK) LTD.
Regeneration and Local Services,Direct Services,Third Party Payments 4THIRD,430100,Rendered by Private Contractors,09/01/2019,3537483-57547,"1,345.00",TURF CARE SPECIALISTS LTD.
Regeneration and Local Services,Direct Services,Supplies and Services,304221,Equipment and Materials,09/01/2019,3537486-16380,631.50,TYNE TEES THERMAL LTD.
Regeneration and Local Services,Direct Services,Transport,230005,Contract Hire,09/01/2019,3537496-78410,900.00,WARREN ACCESS LTD.
Regeneration and Local Services,Technical Services,Third Party Payments 4THIRD,430100,Rendered by Private Contractors,09/01/2019,3537498-201850108,"2,820.00",WEMO-TEC UK LTD.
Regeneration and Local Services,Technical Services,Third Party Payments 4THIRD,430100,Rendered by Private Contractors,09/01/2019,3537498-201850269,"2,250.00",WEMO-TEC UK LTD.
Children and Young Peoples Services,Head of Childrens Social Care,Transport,235073,Public Transport,09/01/2019,3537500-37792,571.00,WRIXON SECURITY SERVICES LTD T/A WRIXON CARE.
Resources,Legal & Democratic Services,Supplies and Services,338042,Services,09/01/2019,3537505-INV/JEM49,"1,250.00",ZENITH CHAMBERS.
Regeneration and Local Services,Direct Services,Supplies and Services,304357,Equipment and Materials,10/01/2019,3537510-2775,"1,881.00",A & J GUTHRIE.
Children and Young Peoples Services,Head of Education and Skills,Transport,230008,Contract Hire,10/01/2019,3537513-48,795.00,A HJ JOBLING T/A CASTLE TAXIS.
Children and Young Peoples Services,Head of Education and Skills,Transport,230008,Contract Hire,10/01/2019,3537515-C1/SA,"2,100.00",AABAT TAXIS.
Children and Young Peoples Services,Head of Education and Skills,Transport,230012,Contract Hire,10/01/2019,3537515-C12/ST,885.00,AABAT TAXIS.
Adult and Health Services,Head of Adults,Transport,230005,Contract Hire,10/01/2019,3537515-C19/SM,"1,281.60",AABAT TAXIS.
Adult and Health Services,Head of Adults,Transport,230005,Contract Hire,10/01/2019,3537515-C20/AC,621.00,AABAT TAXIS.
Children and Young Peoples Services,Head of Education and Skills,Transport,230008,Contract Hire,10/01/2019,3537515-C6/SH,"1,320.00",AABAT TAXIS.
Children and Young Peoples Services,Head of Education and Skills,Transport,230008,Contract Hire,10/01/2019,3537515-C9/SP,"1,800.00",AABAT TAXIS.
Adult and Health Services,Head of Adults,Transport,230005,Contract Hire,10/01/2019,3537515-D8/SJ-DM178,735.00,AABAT TAXIS.
Children and Young Peoples Services,Head of Education and Skills,Transport,230007,Contract Hire,10/01/2019,3537518-343,900.00,ACE TAXIS (WINSTON).
Children and Young Peoples Services,Head of Education and Skills,Transport,230006,Contract Hire,10/01/2019,3537518-345-20/12/18,"1,640.00",ACE TAXIS (WINSTON).
Regeneration and Local Services,Direct Services,Third Party Payments 4THIRD,430100,Rendered by Private Contractors,10/01/2019,3537519-IN5136,"27,625.00",ACROL AIR CONDITIONING CO LTD.
Resources,Legal & Democratic Services,Supplies and Services,332029,Printing Stationery and Gen Off Exps,10/01/2019,3537520-PSI0078037,883.88,ADARE SEC LTD.
Regeneration and Local Services,Technical Services,Supplies and Services,304221,Equipment and Materials,10/01/2019,3537523-27562755,593.60,AGGREGATE INDUSTRIES UK LTD.
Regeneration and Local Services,Technical Services,Supplies and Services,304221,Equipment and Materials,10/01/2019,3537523-27569228,680.96,AGGREGATE INDUSTRIES UK LTD.
Regeneration and Local Services,Technical Services,Supplies and Services,304221,Equipment and Materials,10/01/2019,3537523-27583345,"1,173.92",AGGREGATE INDUSTRIES UK LTD.
Regeneration and Local Services,Technical Services,Supplies and Services,304221,Equipment and Materials,10/01/2019,3537523-27589149,"1,155.36",AGGREGATE INDUSTRIES UK LTD.
Regeneration and Local Services,Technical Services,Supplies and Services,304221,Equipment and Materials,10/01/2019,3537523-27596167,"1,144.92",AGGREGATE INDUSTRIES UK LTD.
Regeneration and Local Services,Technical Services,Supplies and Services,304221,Equipment and Materials,10/01/2019,3537523-27596170,786.56,AGGREGATE INDUSTRIES UK LTD.
Regeneration and Local Services,Technical Services,Supplies and Services,304221,Equipment and Materials,10/01/2019,3537523-27603530,"1,143.76",AGGREGATE INDUSTRIES UK LTD.
Regeneration and Local Services,Technical Services,Supplies and Services,304221,Equipment and Materials,10/01/2019,3537523-27603536,654.24,AGGREGATE INDUSTRIES UK LTD.
Regeneration and Local Services,Technical Services,Supplies and Services,304221,Equipment and Materials,10/01/2019,3537523-27612121,818.08,AGGREGATE INDUSTRIES UK LTD.
Regeneration and Local Services,Technical Services,Supplies and Services,304221,Equipment and Materials,10/01/2019,3537523-27612126,766.40,AGGREGATE INDUSTRIES UK LTD.
Regeneration and Local Services,Technical Services,Supplies and Services,304221,Equipment and Materials,10/01/2019,3537523-27617919,736.64,AGGREGATE INDUSTRIES UK LTD.
Regeneration and Local Services,Technical Services,Supplies and Services,304221,Equipment and Materials,10/01/2019,3537523-27617925,892.08,AGGREGATE INDUSTRIES UK LTD.
Regeneration and Local Services,Technical Services,Supplies and Services,304221,Equipment and Materials,10/01/2019,3537523-27617926,"1,749.84",AGGREGATE INDUSTRIES UK LTD.
Regeneration and Local Services,Technical Services,Supplies and Services,304221,Equipment and Materials,10/01/2019,3537523-27617931,782.36,AGGREGATE INDUSTRIES UK LTD.
Transformation and Partnerships,Partnerships & Community Engagement Div.,Supplies and Services,384199,Miscellaneous Expenses,10/01/2019,3537524-2364,"3,270.00",ALAN HILLARY EVENTS LTD.
Regeneration and Local Services,Direct Services,Supplies and Services,304221,Equipment and Materials,10/01/2019,3537526-0000017937,686.70,AMBEROL LTD.
Children and Young Peoples Services,Head of Education and Skills,Transport,230008,Contract Hire,10/01/2019,3537528-154,"1,760.00",ANDY CABS.
Children and Young Peoples Services,Head of Education and Skills,Transport,230008,Contract Hire,10/01/2019,3537535-DEC2018-02,"1,005.00",ARMSTRONG`S TAXIS.
Non-Service Specific,Non Service Specific-Financing,Long Term Debtors,924001,Car loans,10/01/2019,3537536-114815,620.00,ARRIVA NORTH EAST LTD.
Regeneration and Local Services,Transport and Contracted Services,Third Party Payments 4THIRD,430106,Rendered by Private Contractors,10/01/2019,3537537-114777,"33,403.32",ARRIVA NORTH EAST LTD.
Adult and Health Services,Head of Adults,Transport,230005,Contract Hire,10/01/2019,3537538-DCC14DEC18,"1,170.00",ATLAS TAXIS BISHOP AUCKLAND.
Children and Young Peoples Services,Head of Education and Skills,Transport,230008,Contract Hire,10/01/2019,3537538-DCC1DEC18,"1,693.49",ATLAS TAXIS BISHOP AUCKLAND.
Adult and Health Services,Head of Adults,Transport,230005,Contract Hire,10/01/2019,3537538-DCC2DEC18,"1,520.00",ATLAS TAXIS BISHOP AUCKLAND.
Children and Young Peoples Services,Head of Education and Skills,Transport,230007,Contract Hire,10/01/2019,3537539-03876,926.00,ATLAS TAXIS CONSETT.
Children and Young Peoples Services,Head of Education and Skills,Transport,230007,Contract Hire,10/01/2019,3537539-03878,615.00,ATLAS TAXIS CONSETT.
Children and Young Peoples Services,Head of Education and Skills,Transport,230007,Contract Hire,10/01/2019,3537539-03881,766.18,ATLAS TAXIS CONSETT.
Children and Young Peoples Services,Head of Education and Skills,Transport,230007,Contract Hire,10/01/2019,3537539-03882,"1,134.00",ATLAS TAXIS CONSETT.
Children and Young Peoples Services,Head of Education and Skills,Transport,230006,Contract Hire,10/01/2019,3537539-03885,"1,144.50",ATLAS TAXIS CONSETT.
Children and Young Peoples Services,Head of Education and Skills,Transport,230009,Contract Hire,10/01/2019,3537539-03887,"1,539.40",ATLAS TAXIS CONSETT.
Regeneration and Local Services,Culture & Sport,Supplies and Services,338047,Services,10/01/2019,3537540-SIN021605,500.00,AVALON PROMOTIONS LTD.
Regeneration and Local Services,Culture & Sport,Supplies and Services,338047,Services,10/01/2019,3537540-SIN021608,"2,000.00",AVALON PROMOTIONS LTD.
Regeneration and Local Services,Culture & Sport,Employees,080030,Agency Staff,10/01/2019,3537543-4100628917-18/12/18,750.00,BECCY OWEN (MUSICIAN).
Children and Young Peoples Services,Head of Education and Skills,Transport,230008,Contract Hire,10/01/2019,3537544-820,500.85,BEELINE MINI BUSES.
Children and Young Peoples Services,Head of Education and Skills,Transport,230008,Contract Hire,10/01/2019,3537544-822,"1,123.95",BEELINE MINI BUSES.
Children and Young Peoples Services,Head of Education and Skills,Transport,230008,Contract Hire,10/01/2019,3537544-823,523.65,BEELINE MINI BUSES.
Regeneration and Local Services,Direct Services,Supplies and Services,304221,Equipment and Materials,10/01/2019,3537545-6338,720.00,BELL CONTROL SOLUTIONS LTD.
Children and Young Peoples Services,Head of Education and Skills,Transport,230008,Contract Hire,10/01/2019,3537548-A017-DEC,"1,440.00",BIG MAMA`S TAXI.
Dedicated Schools Grant,DSG High Needs Block,Transport,230010,Contract Hire,10/01/2019,3537548-B006-DEC,960.00,BIG MAMA`S TAXI.
Children and Young Peoples Services,Head of Education and Skills,Transport,230006,Contract Hire,10/01/2019,3537548-F728-DEC,950.40,BIG MAMA`S TAXI.
Adult and Health Services,Head of Adults,Supplies and Services,304516,Equipment and Materials,10/01/2019,3537549-INV-0208,882.00,BILL SCOTT TAXIS LTD.
Children and Young Peoples Services,Head of Education and Skills,Transport,230007,Contract Hire,10/01/2019,3537550-04-1202,675.00,BILL`S TAXIS.
Adult and Health Services,Public Health,Third Party Payments 4THIRD,460803,Contract Payments,10/01/2019,3537791-1629,"6,831.63",BIONCAL SOLUTIONS LTD.
Children and Young Peoples Services,Head of Education and Skills,Transport,230008,Contract Hire,10/01/2019,3537551-19523,616.00,BLUELINE TAXIS.
Children and Young Peoples Services,Head of Education and Skills,Transport,230008,Contract Hire,10/01/2019,3537551-19523-NOV,"1,159.64",BLUELINE TAXIS.
Children and Young Peoples Services,Head of Education and Skills,Transport,230008,Contract Hire,10/01/2019,3537551-19555,"1,646.50",BLUELINE TAXIS.
Children and Young Peoples Services,Head of Education and Skills,Transport,230003,Contract Hire,10/01/2019,3537552-2196,"1,512.00",BOB SMITH COACHES.
Children and Young Peoples Services,Head of Education and Skills,Transport,230008,Contract Hire,10/01/2019,3537553-7027-21/12/18,"2,250.00",BOBBY DOVE.
Children and Young Peoples Services,Head of Education and Skills,Transport,230009,Contract Hire,10/01/2019,3537556-003-G006,"1,200.00",BOWBURN TAXIS.
Children and Young Peoples Services,Head of Education and Skills,Transport,230008,Contract Hire,10/01/2019,3537558-4-E070,"1,125.00",BRIAN PURVIS T/A BJ`S TAXIS.
Regeneration and Local Services,Spatial Policy Planning Assets & Environment,Premises,155001,Insurance of Premises,10/01/2019,3537561-148921,"2,389.17",BURROW HUMPHREYS LTD.
Children and Young Peoples Services,Head of Education and Skills,Transport,230008,Contract Hire,10/01/2019,3537562-A028015,"1,020.00",C & R TAXIS.
Children and Young Peoples Services,Head of Education and Skills,Transport,230008,Contract Hire,10/01/2019,3537562-S026015,960.00,C & R TAXIS.
Children and Young Peoples Services,Head of Education and Skills,Transport,230008,Contract Hire,10/01/2019,3537562-W04002,"1,500.00",C & R TAXIS.
Children and Young Peoples Services,Head of Education and Skills,Transport,230008,Contract Hire,10/01/2019,3537562-WO78015,"1,800.00",C & R TAXIS.
Adult and Health Services,Head of Adults,Supplies and Services,338366,Services,10/01/2019,3537565-55280,828.35,CARE ABILITY HEALTHCARE LTD.
Adult and Health Services,Commissioning inc Supporting People,Third Party Payments 4THIRD,479102,Purchase of Care,10/01/2019,3537566-15220DCC,"6,060.00",CASTLE CARE TEESDALE LTD.
Children and Young Peoples Services,Head of Education and Skills,Transport,230008,Contract Hire,10/01/2019,3537571-018,"1,373.55",CHANNER`S CABS.
Children and Young Peoples Services,Head of Education and Skills,Transport,230008,Contract Hire,10/01/2019,3537571-019,852.60,CHANNER`S CABS.
Children and Young Peoples Services,Head of Education and Skills,Transport,230007,Contract Hire,10/01/2019,3537573-04/2060,726.00,CHAPMAN TRAVEL.
Children and Young Peoples Services,Head of Education and Skills,Transport,230007,Contract Hire,10/01/2019,3537573-23,900.00,CHAPMAN TRAVEL.
Children and Young Peoples Services,Head of Education and Skills,Transport,230008,Contract Hire,10/01/2019,3537574-ES04,"1,087.50",CHIPPERS TAXIS.
Children and Young Peoples Services,Childrens Services Operational Support,Supplies and Services,338026,Services,10/01/2019,3537575-RT56,"1,470.00",CHOICES & VOICES CARE LTD.
Children and Young Peoples Services,Head of Education and Skills,Transport,230007,Contract Hire,10/01/2019,3537576-46537,"1,680.00",CHRISTOPHER JAMES GRIERSON T/A GRIERSONS COACHES.
Children and Young Peoples Services,Head of Education and Skills,Transport,230003,Contract Hire,10/01/2019,3537576-46538,"2,235.00",CHRISTOPHER JAMES GRIERSON T/A GRIERSONS COACHES.
Children and Young Peoples Services,Head of Education and Skills,Transport,230003,Contract Hire,10/01/2019,3537576-46539,"5,580.00",CHRISTOPHER JAMES GRIERSON T/A GRIERSONS COACHES.
Children and Young Peoples Services,Head of Education and Skills,Transport,230003,Contract Hire,10/01/2019,3537576-46540,"2,100.00",CHRISTOPHER JAMES GRIERSON T/A GRIERSONS COACHES.
Children and Young Peoples Services,Head of Education and Skills,Transport,230003,Contract Hire,10/01/2019,3537576-46541,"1,950.00",CHRISTOPHER JAMES GRIERSON T/A GRIERSONS COACHES.
Children and Young Peoples Services,Head of Education and Skills,Transport,230006,Contract Hire,10/01/2019,3537577-F763/04,960.00,CHRISTOPHER MADDISON (TAXI).
Children and Young Peoples Services,Head of Childrens Social Care,Third Party Payments 4THIRD,440039,Other third party payments E440,10/01/2019,3537580-2476,685.68,CITY OF SUNDERLAND YMCA LTD.
Resources,Legal & Democratic Services,Supplies and Services,338025,Services,10/01/2019,3537584-S44995-01634,540.00,CO-OPERATIVE FUNERAL CARE.
Adult and Health Services,Commissioning inc Supporting People,Third Party Payments 4THIRD,479102,Purchase of Care,10/01/2019,3537589-08012019,"6,060.00",CRESCENT HOMECARE LTD.
Children and Young Peoples Services,Head of Education and Skills,Transport,230008,Contract Hire,10/01/2019,3537590-108649-M051,"2,820.37",CROFT BUSINESS SERVICES (UK) LTD T/A CROFT TAXIS.
Children and Young Peoples Services,Head of Education and Skills,Transport,230008,Contract Hire,10/01/2019,3537590-108649-N304,576.75,CROFT BUSINESS SERVICES (UK) LTD T/A CROFT TAXIS.
Adult and Health Services,Head of Adults,Transport,230005,Contract Hire,10/01/2019,3537590-108650,"1,330.28",CROFT BUSINESS SERVICES (UK) LTD T/A CROFT TAXIS.
Dedicated Schools Grant,DSG High Needs Block,Transport,230010,Contract Hire,10/01/2019,3537590-108654,"1,845.24",CROFT BUSINESS SERVICES (UK) LTD T/A CROFT TAXIS.
Regeneration and Local Services,Culture & Sport,Supplies and Services,384302,Miscellaneous Expenses,10/01/2019,3537591-151,"1,000.00",CULTURE FOR KIDS CIC.
Children and Young Peoples Services,Head of Education and Skills,Transport,230008,Contract Hire,10/01/2019,3537592-41,861.80,CUTHBERT CABS.
Children and Young Peoples Services,Head of Education and Skills,Transport,230008,Contract Hire,10/01/2019,3537597-18,"1,120.00",D CROOK T/A CK TAXIS.
Children and Young Peoples Services,Head of Education and Skills,Transport,230007,Contract Hire,10/01/2019,3537597-19,600.00,D CROOK T/A CK TAXIS.
Children and Young Peoples Services,Head of Education and Skills,Transport,230008,Contract Hire,10/01/2019,3537598-HOW1812,992.40,D IRVING T/A BJ TAXIS.
Adult and Health Services,Head of Adults,Transport,230005,Contract Hire,10/01/2019,3537598-THOR1218,568.52,D IRVING T/A BJ TAXIS.
Children and Young Peoples Services,Head of Education and Skills,Transport,230008,Contract Hire,10/01/2019,3537599-D120812,945.00,D&I TAXIS.
Children and Young Peoples Services,Head of Education and Skills,Transport,230007,Contract Hire,10/01/2019,3537600-1607,600.00,DA TAXIS.
Children and Young Peoples Services,Head of Education and Skills,Transport,230008,Contract Hire,10/01/2019,3537600-1608,"1,035.00",DA TAXIS.
Children and Young Peoples Services,Head of Education and Skills,Transport,230006,Contract Hire,10/01/2019,3537600-1609,"1,950.00",DA TAXIS.
Children and Young Peoples Services,Head of Education and Skills,Transport,230008,Contract Hire,10/01/2019,3537601-310,"1,120.00",DA TRAVEL.
Children and Young Peoples Services,Head of Education and Skills,Transport,230008,Contract Hire,10/01/2019,3537601-312,930.00,DA TRAVEL.
Children and Young Peoples Services,Head of Education and Skills,Transport,230008,Contract Hire,10/01/2019,3537601-314,945.00,DA TRAVEL.
Children and Young Peoples Services,Head of Education and Skills,Transport,230007,Contract Hire,10/01/2019,3537602-SCEADEC1801,"1,260.00",DALELINK PRIVATE HIRE.
Adult and Health Services,Head of Adults,Transport,230005,Contract Hire,10/01/2019,3537603-NCL017/12,"1,272.00",DAVES TAXIS (BLACKHALL).
Children and Young Peoples Services,Head of Education and Skills,Transport,230008,Contract Hire,10/01/2019,3537604-C004,900.00,DAVID BRIDDICK T/A COUNDONS TAXIS.
Children and Young Peoples Services,Head of Education and Skills,Transport,230008,Contract Hire,10/01/2019,3537605-A87,"1,425.00",DAVID FOREMAN T/A DAVES TAXIS.
Children and Young Peoples Services,Head of Education and Skills,Transport,230008,Contract Hire,10/01/2019,3537605-A88,975.00,DAVID FOREMAN T/A DAVES TAXIS.
Children and Young Peoples Services,Head of Education and Skills,Transport,230008,Contract Hire,10/01/2019,3537605-A89,525.00,DAVID FOREMAN T/A DAVES TAXIS.
Children and Young Peoples Services,Head of Education and Skills,Supplies and Services,384199,Miscellaneous Expenses,10/01/2019,3537606-001,975.00,DAVID MARC PISARO (MUSICIAN).
Children and Young Peoples Services,Head of Education and Skills,Transport,230008,Contract Hire,10/01/2019,3537609-1218-001,"1,200.00",DCM TAXIS.
Children and Young Peoples Services,Head of Education and Skills,Transport,230012,Contract Hire,10/01/2019,3537614-007-E013,"1,303.05",DEXTERS PRIVATE HIRE.
Children and Young Peoples Services,Head of Education and Skills,Transport,230007,Contract Hire,10/01/2019,3537615-10/2018-2067,"1,000.50",DIANE GOOCH T/A COLLINS TAXIS.
Children and Young Peoples Services,Head of Education and Skills,Transport,230008,Contract Hire,10/01/2019,3537615-10/2018-W080,"1,632.00",DIANE GOOCH T/A COLLINS TAXIS.
Children and Young Peoples Services,Head of Education and Skills,Transport,230007,Contract Hire,10/01/2019,3537615-11/2018-2067,"1,380.00",DIANE GOOCH T/A COLLINS TAXIS.
Children and Young Peoples Services,Head of Education and Skills,Transport,230006,Contract Hire,10/01/2019,3537615-11/2018-F664,"1,738.00",DIANE GOOCH T/A COLLINS TAXIS.
Children and Young Peoples Services,Head of Education and Skills,Transport,230006,Contract Hire,10/01/2019,3537615-11/2018-F748,531.00,DIANE GOOCH T/A COLLINS TAXIS.
Children and Young Peoples Services,Head of Education and Skills,Transport,230008,Contract Hire,10/01/2019,3537615-11/2018-W080,"2,730.00",DIANE GOOCH T/A COLLINS TAXIS.
Dedicated Schools Grant,DSG High Needs Block,Transport,230010,Contract Hire,10/01/2019,3537616-18/54,"2,001.54",DMG PRIVATE HIRE.
Children and Young Peoples Services,Head of Childrens Social Care,Supplies and Services,338044,Services,10/01/2019,3537619-SC/LS17-9,580.59,DR SUSAN COOPER.
Children and Young Peoples Services,Head of Childrens Social Care,Supplies and Services,338044,Services,10/01/2019,3537620-MS-1-111018,899.25,DR URSULA CAWTHORNE T/A CAWTHORNE PSYCHOLOGICAL SERVICES LTD.
Children and Young Peoples Services,Head of Education and Skills,Transport,230003,Contract Hire,10/01/2019,3537622-4019/7589,"1,284.00",DURHAM CITY COACHES.
Children and Young Peoples Services,Head of Education and Skills,Transport,230003,Contract Hire,10/01/2019,3537622-7589,677.50,DURHAM CITY COACHES.
Children and Young Peoples Services,Head of Education and Skills,Transport,230003,Contract Hire,10/01/2019,3537622-7589/4015,"1,219.50",DURHAM CITY COACHES.
Children and Young Peoples Services,Head of Education and Skills,Transport,230003,Contract Hire,10/01/2019,3537622-7589/4019,963.00,DURHAM CITY COACHES.
Children and Young Peoples Services,Head of Education and Skills,Transport,230003,Contract Hire,10/01/2019,3537622-7589/4023,"1,813.00",DURHAM CITY COACHES.
Regeneration and Local Services,Economic Development and Housing,Fees,901001,Internal fees,10/01/2019,3537626-107937,711.00,E3 ECOLOGY LTD.
Children and Young Peoples Services,Head of Education and Skills,Transport,230008,Contract Hire,10/01/2019,3537628-19122018/01,"1,860.00",EAST DURHAM TAXIS.
Children and Young Peoples Services,Head of Education and Skills,Transport,230008,Contract Hire,10/01/2019,3537628-19122018/02,"1,710.00",EAST DURHAM TAXIS.
Children and Young Peoples Services,Head of Education and Skills,Transport,230008,Contract Hire,10/01/2019,3537628-19122018/03,"2,160.00",EAST DURHAM TAXIS.
Children and Young Peoples Services,Head of Education and Skills,Transport,230008,Contract Hire,10/01/2019,3537628-19122018/05,"2,145.00",EAST DURHAM TAXIS.
Children and Young Peoples Services,Head of Education and Skills,Transport,230007,Contract Hire,10/01/2019,3537633-5124/1218,592.50,ELLIOTTS OF TRIMDON.
Children and Young Peoples Services,Head of Education and Skills,Transport,230008,Contract Hire,10/01/2019,3537633-E019/1218,"1,346.25",ELLIOTTS OF TRIMDON.
Children and Young Peoples Services,Head of Education and Skills,Transport,230008,Contract Hire,10/01/2019,3537633-E065/1218,"1,080.00",ELLIOTTS OF TRIMDON.
Children and Young Peoples Services,Head of Education and Skills,Transport,230008,Contract Hire,10/01/2019,3537633-E122/1218,885.00,ELLIOTTS OF TRIMDON.
Regeneration and Local Services,Direct Services,Supplies and Services,384956,Miscellaneous Expenses,10/01/2019,3537635-Y00001824T,"3,154.00",ENVIRONMENT AGENCY.
Regeneration and Local Services,Direct Services,Supplies and Services,384956,Miscellaneous Expenses,10/01/2019,3537635-Y00001825T,"8,658.30",ENVIRONMENT AGENCY.
Regeneration and Local Services,Culture & Sport,Supplies and Services,384199,Miscellaneous Expenses,10/01/2019,3537636-199,553.61,FAT HIPPO RESTAURANTS LTD.
Children and Young Peoples Services,Head of Education and Skills,Transport,230008,Contract Hire,10/01/2019,3537641-0443,"1,215.00",FMR SILVA PITA.
Children and Young Peoples Services,Head of Education and Skills,Transport,230007,Contract Hire,10/01/2019,3537641-0444,525.00,FMR SILVA PITA.
Children and Young Peoples Services,Head of Education and Skills,Transport,230007,Contract Hire,10/01/2019,3537641-0445,600.00,FMR SILVA PITA.
Children and Young Peoples Services,Head of Childrens Social Care,Third Party Payments 4THIRD,440038,Other third party payments E440,10/01/2019,3537642-495,"9,500.00",FOREVER CARE LTD.
Children and Young Peoples Services,Head of Childrens Social Care,Third Party Payments 4THIRD,440038,Other third party payments E440,10/01/2019,3537642-499,"3,157.00",FOREVER CARE LTD.
Children and Young Peoples Services,Head of Childrens Social Care,Third Party Payments 4THIRD,425021,Rendered by Voluntary Organisations,10/01/2019,3537642-503,"11,552.00",FOREVER CARE LTD.
Children and Young Peoples Services,Head of Education and Skills,Transport,230008,Contract Hire,10/01/2019,3537644-1811,"1,350.00",FRANK ATKINSON T/A FJ MINIBUS TRAVEL.
Adult and Health Services,Head of Adults,Transport,230005,Contract Hire,10/01/2019,3537649-101044,833.00,G & P JOHNSON LTD T/A NIGHTINGALE COACHES.
Adult and Health Services,Head of Adults,Transport,230005,Contract Hire,10/01/2019,3537651-003DEC,630.00,GAIL MADDISON T/A CENTRAL TAXIS.
Regeneration and Local Services,Technical Services,Supplies and Services,304357,Equipment and Materials,10/01/2019,3537652-DCC021218,"17,781.76",GAP GROUP LTD.
Children and Young Peoples Services,Head of Education and Skills,Employees,080025,Agency Staff,10/01/2019,3537653-42449,"4,495.00",GATENBY SANDERSON LTD.
Children and Young Peoples Services,Head of Education and Skills,Transport,230003,Contract Hire,10/01/2019,3537654-4842,"1,802.08",GEM TRAVEL.
Children and Young Peoples Services,Head of Education and Skills,Transport,230003,Contract Hire,10/01/2019,3537654-4843,"1,802.08",GEM TRAVEL.
Children and Young Peoples Services,Head of Education and Skills,Transport,230003,Contract Hire,10/01/2019,3537654-4844,"1,195.95",GEM TRAVEL.
Resources,Legal & Democratic Services,Supplies and Services,338025,Services,10/01/2019,3537655-SI511218,"1,570.00",GIBSONS FUNERAL SERVICES LTD.
Regeneration and Local Services,Technical Services,Supplies and Services,304221,Equipment and Materials,10/01/2019,3537656-SI764826,974.58,GLASDON UK LTD.
Regeneration and Local Services,Technical Services,Third Party Payments 4THIRD,430100,Rendered by Private Contractors,10/01/2019,3537662-1812\007,"4,079.44",HALL CONSTRUCTION SERVICES LTD.
Regeneration and Local Services,Technical Services,Third Party Payments 4THIRD,430100,Rendered by Private Contractors,10/01/2019,3537662-1812\008,"3,446.98",HALL CONSTRUCTION SERVICES LTD.
Resources,Corporate Finance & Commercial Services,Supplies and Services,338220,Services,10/01/2019,3537665-OCT-DEC2018,"2,970.00",HARTLEPOOL & EAST DURHAM MIND.
Children and Young Peoples Services,Head of Education and Skills,Transport,230008,Contract Hire,10/01/2019,3537669-25-W075,675.00,HENRY FOREMAN T/A HENRY`S TAXIS.
Regeneration and Local Services,Culture & Sport,Supplies and Services,304259,Equipment and Materials,10/01/2019,3537670-20575,"1,690.00",HI TECH SECURITY PRINT LTD.
Regeneration and Local Services,Culture & Sport,Supplies and Services,304252,Equipment and Materials,10/01/2019,3537670-20576,"1,249.00",HI TECH SECURITY PRINT LTD.
Children and Young Peoples Services,Head of Childrens Social Care,Third Party Payments 4THIRD,440038,Other third party payments E440,10/01/2019,3537680-68617,949.28,HOME GROUP LTD FORMERLY STONHAM HOUSING ASSOCIATION LTD.
Children and Young Peoples Services,Head of Education and Skills,Transport,230008,Contract Hire,10/01/2019,3537682-22,"1,170.00",HORNDALE TAXIS LTD.
Children and Young Peoples Services,Head of Education and Skills,Transport,230007,Contract Hire,10/01/2019,3537682-23,975.00,HORNDALE TAXIS LTD.
Children and Young Peoples Services,Head of Education and Skills,Transport,230006,Contract Hire,10/01/2019,3537682-24,949.00,HORNDALE TAXIS LTD.
Children and Young Peoples Services,Head of Childrens Social Care,Third Party Payments 4THIRD,425023,Rendered by Voluntary Organisations,10/01/2019,3537683-4837,"3,520.00",HOWARD HOUSE CARE LTD.
Children and Young Peoples Services,Head of Childrens Social Care,Third Party Payments 4THIRD,425023,Rendered by Voluntary Organisations,10/01/2019,3537683-4846,"3,520.00",HOWARD HOUSE CARE LTD.
Children and Young Peoples Services,Head of Childrens Social Care,Third Party Payments 4THIRD,425023,Rendered by Voluntary Organisations,10/01/2019,3537683-4855,"3,520.00",HOWARD HOUSE CARE LTD.
Children and Young Peoples Services,Head of Education and Skills,Transport,230016,Contract Hire,10/01/2019,3537686-IR1812001,"1,425.00",I & R EXECUTIVE TRAVEL.
Adult and Health Services,Head of Adults,Transport,230005,Contract Hire,10/01/2019,3537686-IR1812005,"1,050.00",I & R EXECUTIVE TRAVEL.
Children and Young Peoples Services,Head of Education and Skills,Transport,230008,Contract Hire,10/01/2019,3537686-IR1912003,"1,380.00",I & R EXECUTIVE TRAVEL.
Regeneration and Local Services,Direct Services,Third Party Payments 4THIRD,430100,Rendered by Private Contractors,10/01/2019,3537687-2580,"2,580.00",IAN C LIDDLE.
Regeneration and Local Services,Technical Services,Third Party Payments 4THIRD,430127,Rendered by Private Contractors,10/01/2019,3537687-2585,"2,742.00",IAN C LIDDLE.
Regeneration and Local Services,Technical Services,Third Party Payments 4THIRD,430127,Rendered by Private Contractors,10/01/2019,3537687-2586,"2,823.00",IAN C LIDDLE.
Regeneration and Local Services,Technical Services,Third Party Payments 4THIRD,430127,Rendered by Private Contractors,10/01/2019,3537687-2587,"1,202.50",IAN C LIDDLE.
Regeneration and Local Services,Technical Services,Third Party Payments 4THIRD,430127,Rendered by Private Contractors,10/01/2019,3537687-2588,"1,658.00",IAN C LIDDLE.
Regeneration and Local Services,Technical Services,Third Party Payments 4THIRD,430100,Rendered by Private Contractors,10/01/2019,3537688-58664,557.00,IAN FARMER ASSOCIATES (1998) LTD.
Regeneration and Local Services,Technical Services,Supplies and Services,304358,Equipment and Materials,10/01/2019,3537689-C323,924.30,IAN WILSON.
Regeneration and Local Services,Technical Services,Supplies and Services,304358,Equipment and Materials,10/01/2019,3537689-C327,"4,033.60",IAN WILSON.
Regeneration and Local Services,Technical Services,Supplies and Services,304358,Equipment and Materials,10/01/2019,3537689-C329,"4,231.70",IAN WILSON.
Regeneration and Local Services,Technical Services,Supplies and Services,304358,Equipment and Materials,10/01/2019,3537689-C331,"4,220.80",IAN WILSON.
Regeneration and Local Services,Technical Services,Supplies and Services,304358,Equipment and Materials,10/01/2019,3537689-C350,"3,376.00",IAN WILSON.
Regeneration and Local Services,Direct Services,Supplies and Services,338027,Services,10/01/2019,3537691-81205,"1,470.00",INITIAL PROJECTS LTD T/A ENITIAL.
Regeneration and Local Services,Technical Services,Third Party Payments 4THIRD,430127,Rendered by Private Contractors,10/01/2019,3537696-1217/2018,"2,104.00",J & JG GILL & SONS LTD.
Regeneration and Local Services,Technical Services,Third Party Payments 4THIRD,430128,Rendered by Private Contractors,10/01/2019,3537696-1218/2018,600.00,J & JG GILL & SONS LTD.
Regeneration and Local Services,Technical Services,Third Party Payments 4THIRD,430127,Rendered by Private Contractors,10/01/2019,3537698-5305610,550.00,JA GILSON (AGRICULTURAL CONTRACTORS) LTD.
Regeneration and Local Services,Technical Services,Third Party Payments 4THIRD,430127,Rendered by Private Contractors,10/01/2019,3537698-5305611,"1,066.00",JA GILSON (AGRICULTURAL CONTRACTORS) LTD.
Regeneration and Local Services,Technical Services,Third Party Payments 4THIRD,430127,Rendered by Private Contractors,10/01/2019,3537698-5305615,"2,939.00",JA GILSON (AGRICULTURAL CONTRACTORS) LTD.
Children and Young Peoples Services,Head of Education and Skills,Transport,230009,Contract Hire,10/01/2019,3537699-0654,"1,027.00",JACKSON`S TAXI.
Children and Young Peoples Services,Head of Education and Skills,Transport,230008,Contract Hire,10/01/2019,3537699-0655,990.00,JACKSON`S TAXI.
Children and Young Peoples Services,Head of Education and Skills,Transport,230008,Contract Hire,10/01/2019,3537699-0656,"1,440.00",JACKSON`S TAXI.
Children and Young Peoples Services,Head of Education and Skills,Transport,230009,Contract Hire,10/01/2019,3537699-0657,570.00,JACKSON`S TAXI.
Adult and Health Services,Head of Adults,Supplies and Services,338365,Services,10/01/2019,3537704-18494,"1,479.89",JC MAINTENANCE SERVICES LTD.
Transformation and Partnerships,Communications Management,Supplies and Services,336005,Advertising E336,10/01/2019,3537705-SF/I108004,"1,550.00",JCDECAUX UK LTD.
Regeneration and Local Services,Culture & Sport,Supplies and Services,304259,Equipment and Materials,10/01/2019,3537707-S6635,748.50,JEFF DOBSON MARQUEE HIRE.
Children and Young Peoples Services,Head of Education and Skills,Transport,230008,Contract Hire,10/01/2019,3537710-20/12/18A,"2,070.00",JL EBDON. T/A DIAL-A-CAB.
Children and Young Peoples Services,Head of Education and Skills,Transport,230008,Contract Hire,10/01/2019,3537710-20/12/18B,"1,639.65",JL EBDON. T/A DIAL-A-CAB.
Children and Young Peoples Services,Head of Education and Skills,Transport,230008,Contract Hire,10/01/2019,3537710-20/12/18C,900.00,JL EBDON. T/A DIAL-A-CAB.
Children and Young Peoples Services,Head of Education and Skills,Transport,230008,Contract Hire,10/01/2019,3537710-20/12/18D,"1,470.00",JL EBDON. T/A DIAL-A-CAB.
Children and Young Peoples Services,Head of Education and Skills,Transport,230008,Contract Hire,10/01/2019,3537710-20/12/18E,"1,320.00",JL EBDON. T/A DIAL-A-CAB.
Children and Young Peoples Services,Head of Education and Skills,Transport,230012,Contract Hire,10/01/2019,3537710-20/12/18F,900.00,JL EBDON. T/A DIAL-A-CAB.
Children and Young Peoples Services,Head of Education and Skills,Transport,230007,Contract Hire,10/01/2019,3537710-20/12/18G,840.00,JL EBDON. T/A DIAL-A-CAB.
Dedicated Schools Grant,DSG High Needs Block,Transport,230010,Contract Hire,10/01/2019,3537711-00011,"1,800.00",JOHN GARLAND.
Children and Young Peoples Services,Head of Education and Skills,Transport,230008,Contract Hire,10/01/2019,3537711-0008,840.00,JOHN GARLAND.
Children and Young Peoples Services,Head of Education and Skills,Transport,230008,Contract Hire,10/01/2019,3537711-0009,960.00,JOHN GARLAND.
Adult and Health Services,Head of Adults,Transport,230005,Contract Hire,10/01/2019,3537712-01122018,600.00,JOHN HUBBLE T/A HUBB`S TAXIS.
Children and Young Peoples Services,Head of Education and Skills,Transport,230008,Contract Hire,10/01/2019,3537713-CORPTRAVDEC18,540.00,JOHN W CROOK T/A CORPORATE TRAVEL.
Children and Young Peoples Services,Head of Education and Skills,Transport,230008,Contract Hire,10/01/2019,3537718-E055-NOV,"1,540.00",K & R TAXIS (STANLEY).
Children and Young Peoples Services,Head of Education and Skills,Transport,230006,Contract Hire,10/01/2019,3537718-F782-DEC,"2,160.00",K & R TAXIS (STANLEY).
Children and Young Peoples Services,Head of Education and Skills,Transport,230008,Contract Hire,10/01/2019,3537718-M053-DEC,"2,358.15",K & R TAXIS (STANLEY).
Children and Young Peoples Services,Head of Education and Skills,Transport,230008,Contract Hire,10/01/2019,3537718-N307-DEC,"2,589.45",K & R TAXIS (STANLEY).
Adult and Health Services,Head of Adults,Transport,230005,Contract Hire,10/01/2019,3537718-NCL014-DEC,"1,650.00",K & R TAXIS (STANLEY).
Children and Young Peoples Services,Head of Education and Skills,Transport,230008,Contract Hire,10/01/2019,3537719-4-N083,"1,395.00",KD TAXIS.
Adult and Health Services,Head of Adults,Transport,230005,Contract Hire,10/01/2019,3537720-004-SED117,"1,702.60",KEVIN HALL T/A KDH TAXIS.
Children and Young Peoples Services,Head of Education and Skills,Transport,230009,Contract Hire,10/01/2019,3537727-04,947.20,KULDEEP MAHIL T/A KOLARS CAB.
Children and Young Peoples Services,Head of Education and Skills,Transport,230007,Contract Hire,10/01/2019,3537730-1703,"1,200.00",LD TAXIS.
Children and Young Peoples Services,Head of Education and Skills,Transport,230006,Contract Hire,10/01/2019,3537730-1704,540.00,LD TAXIS.
Adult and Health Services,Head of Adults,Transport,230005,Contract Hire,10/01/2019,3537730-1705,"1,260.00",LD TAXIS.
Children and Young Peoples Services,Head of Education and Skills,Transport,230008,Contract Hire,10/01/2019,3537730-1706,"1,860.00",LD TAXIS.
Children and Young Peoples Services,Head of Education and Skills,Transport,230008,Contract Hire,10/01/2019,3537730-1707,"1,200.00",LD TAXIS.
Children and Young Peoples Services,Head of Education and Skills,Transport,230008,Contract Hire,10/01/2019,3537732-245,552.00,LEE`S TAXIS (SACRISTON).
Children and Young Peoples Services,Head of Education and Skills,Transport,230008,Contract Hire,10/01/2019,3537732-246,"2,093.00",LEE`S TAXIS (SACRISTON).
Children and Young Peoples Services,Head of Education and Skills,Transport,230007,Contract Hire,10/01/2019,3537734-DEC4384,"1,464.00",LION CABS.
Regeneration and Local Services,Direct Services,Construction work A908,908105,Construction work,10/01/2019,3537738-298947,"4,607.12",LOW FELL REMOVALS.
Children and Young Peoples Services,Head of Education and Skills,Transport,230008,Contract Hire,10/01/2019,3537739-136,"1,125.00",M BUTCHER T/A M & M`S TAXIS.
Children and Young Peoples Services,Head of Education and Skills,Transport,230008,Contract Hire,10/01/2019,3537740-25,"1,665.00",M&C`S CABS LTD.
Children and Young Peoples Services,Head of Education and Skills,Transport,230008,Contract Hire,10/01/2019,3537741-47,"1,200.00",MALCOLM CARR T/A CARLY CABS.
Dedicated Schools Grant,DSG High Needs Block,Transport,230010,Contract Hire,10/01/2019,3537743-INV12/1802,"1,973.40",MARK & JOHN CHISHOLM T/A (CHEVRON).
Dedicated Schools Grant,DSG High Needs Block,Transport,230010,Contract Hire,10/01/2019,3537743-INV12/1803,"2,160.00",MARK & JOHN CHISHOLM T/A (CHEVRON).
Dedicated Schools Grant,DSG High Needs Block,Transport,230010,Contract Hire,10/01/2019,3537743-INV12/1804,"3,280.00",MARK & JOHN CHISHOLM T/A (CHEVRON).
Dedicated Schools Grant,DSG High Needs Block,Transport,230010,Contract Hire,10/01/2019,3537743-INV12/1805,"3,025.00",MARK & JOHN CHISHOLM T/A (CHEVRON).
Children and Young Peoples Services,Head of Education and Skills,Transport,230008,Contract Hire,10/01/2019,3537743-INV12/1806,"1,410.00",MARK & JOHN CHISHOLM T/A (CHEVRON).
Children and Young Peoples Services,Head of Education and Skills,Transport,230008,Contract Hire,10/01/2019,3537743-INV12/1807,"2,062.50",MARK & JOHN CHISHOLM T/A (CHEVRON).
Children and Young Peoples Services,Head of Education and Skills,Transport,230008,Contract Hire,10/01/2019,3537743-INV12/1808,"1,391.40",MARK & JOHN CHISHOLM T/A (CHEVRON).
Children and Young Peoples Services,Head of Education and Skills,Transport,230007,Contract Hire,10/01/2019,3537743-INV12/1812,"1,020.00",MARK & JOHN CHISHOLM T/A (CHEVRON).
Children and Young Peoples Services,Head of Education and Skills,Transport,230007,Contract Hire,10/01/2019,3537743-INV12/1813,900.00,MARK & JOHN CHISHOLM T/A (CHEVRON).
Dedicated Schools Grant,DSG High Needs Block,Transport,230010,Contract Hire,10/01/2019,3537743-INV12/1814,"1,710.00",MARK & JOHN CHISHOLM T/A (CHEVRON).
Children and Young Peoples Services,Head of Education and Skills,Transport,230008,Contract Hire,10/01/2019,3537743-INV12/1817,"1,095.00",MARK & JOHN CHISHOLM T/A (CHEVRON).
Dedicated Schools Grant,DSG High Needs Block,Transport,230010,Contract Hire,10/01/2019,3537743-INV12/1819,"1,716.00",MARK & JOHN CHISHOLM T/A (CHEVRON).
Children and Young Peoples Services,Head of Education and Skills,Transport,230008,Contract Hire,10/01/2019,3537749-MCD37852,"1,110.00",MCDONALD TRAVEL.
Children and Young Peoples Services,Head of Education and Skills,Transport,230008,Contract Hire,10/01/2019,3537749-MCD37853,"1,577.00",MCDONALD TRAVEL.
Regeneration and Local Services,Direct Services,Supplies and Services,304245,Equipment and Materials,10/01/2019,3537750-NE184218,"1,125.08",MCNAUGHTON BLAIR LTD T/A LLOYD WORRALL (NEWCASTLE UPON TYNE) LTD.
Children and Young Peoples Services,Head of Education and Skills,Transport,230008,Contract Hire,10/01/2019,3537752-0002,"1,200.00",MGD TAXIS.
Children and Young Peoples Services,Head of Education and Skills,Transport,230008,Contract Hire,10/01/2019,3537754-4A,720.00,MICHAEL A BODDY T/A MBS TAXIS.
Children and Young Peoples Services,Head of Education and Skills,Transport,230008,Contract Hire,10/01/2019,3537756-00967,"2,295.00",MICHAELS TRAVEL.
Children and Young Peoples Services,Head of Education and Skills,Transport,230008,Contract Hire,10/01/2019,3537756-00968,"1,980.00",MICHAELS TRAVEL.
Children and Young Peoples Services,Head of Education and Skills,Transport,230012,Contract Hire,10/01/2019,3537757-KDC-011218,"1,650.00",MJ TIMNEY T/A KDC & C&M TAXIS.
Children and Young Peoples Services,Head of Education and Skills,Transport,230008,Contract Hire,10/01/2019,3537758-001/A004,"1,890.00",MOLLY`S TAXIS LTD.
Regeneration and Local Services,Culture & Sport,Supplies and Services,324117,Provisions E324,10/01/2019,3537759-904890546,"1,555.73",MOLSON COORS BREWING COMPANY (UK) LTD.
Children and Young Peoples Services,Head of Education and Skills,Transport,230007,Contract Hire,10/01/2019,3537762-932,"1,305.00",MR AD HOWARD T/A TOFT HILL TAXIS.
Children and Young Peoples Services,Head of Education and Skills,Transport,230006,Contract Hire,10/01/2019,3537764-4,746.00,MR BRIAN HANN T/A BRY`S TAXIS (BOWBURN).
Children and Young Peoples Services,Head of Education and Skills,Transport,230006,Contract Hire,10/01/2019,3537765-204A-204B,"1,115.20",MR BRIAN JOHNSON T/A BRYS TAXIS.
Children and Young Peoples Services,Head of Education and Skills,Transport,230012,Contract Hire,10/01/2019,3537766-CHPK12-18,"1,476.00",MR CT WALKER T/A CW TAXIS.
Children and Young Peoples Services,Head of Education and Skills,Transport,230008,Contract Hire,10/01/2019,3537766-DT112-18,556.48,MR CT WALKER T/A CW TAXIS.
Children and Young Peoples Services,Head of Education and Skills,Transport,230008,Contract Hire,10/01/2019,3537766-DT212-18,649.50,MR CT WALKER T/A CW TAXIS.
Adult and Health Services,Head of Adults,Transport,230005,Contract Hire,10/01/2019,3537766-EDB112-18,747.00,MR CT WALKER T/A CW TAXIS.
Children and Young Peoples Services,Head of Education and Skills,Transport,230008,Contract Hire,10/01/2019,3537766-EL112-18,"1,133.55",MR CT WALKER T/A CW TAXIS.
Children and Young Peoples Services,Head of Education and Skills,Transport,230008,Contract Hire,10/01/2019,3537766-EL212-18,"1,475.10",MR CT WALKER T/A CW TAXIS.
Children and Young Peoples Services,Head of Education and Skills,Transport,230008,Contract Hire,10/01/2019,3537766-EL312-18,"1,510.32",MR CT WALKER T/A CW TAXIS.
Adult and Health Services,Head of Adults,Transport,230005,Contract Hire,10/01/2019,3537767-1218,750.00,MR D DONNELLY.
Children and Young Peoples Services,Head of Education and Skills,Transport,230008,Contract Hire,10/01/2019,3537769-A088-DEC,"1,050.00",MR DAVID P BRACE T/A JAFFAS TAXIS.
Children and Young Peoples Services,Head of Education and Skills,Transport,230008,Contract Hire,10/01/2019,3537770-219,"2,120.00",MR G FREELAND T/A HUNWICK CARS.
Children and Young Peoples Services,Head of Education and Skills,Transport,230008,Contract Hire,10/01/2019,3537771-023-2/1/19,"1,050.00",MR GN ROBBINS T/A GNR MINIBUS HIRE.
Children and Young Peoples Services,Head of Education and Skills,Transport,230006,Contract Hire,10/01/2019,3537773-97,"1,090.40",MR JOHN ALLINSON T/A AALPHA TAXIS.
Children and Young Peoples Services,Head of Education and Skills,Transport,230007,Contract Hire,10/01/2019,3537773-98,765.00,MR JOHN ALLINSON T/A AALPHA TAXIS.
Children and Young Peoples Services,Head of Education and Skills,Transport,230008,Contract Hire,10/01/2019,3537774-89,"1,275.00",MR JOHN KNIGHTON T/A JK TAXIS.
Children and Young Peoples Services,Head of Education and Skills,Transport,230008,Contract Hire,10/01/2019,3537774-90,"1,800.00",MR JOHN KNIGHTON T/A JK TAXIS.
Adult and Health Services,Head of Adults,Transport,230005,Contract Hire,10/01/2019,3537774-93,"1,080.00",MR JOHN KNIGHTON T/A JK TAXIS.
Adult and Health Services,Head of Adults,Transport,230005,Contract Hire,10/01/2019,3537775-201848,504.00,MR JR FORT T/A JRF TAXIS.
Children and Young Peoples Services,Head of Education and Skills,Transport,230007,Contract Hire,10/01/2019,3537776-02,900.00,MR MARK WILE T/A HARRY`S TAXIS.
Children and Young Peoples Services,Head of Education and Skills,Transport,230008,Contract Hire,10/01/2019,3537777-1710,"1,216.00",MR PETER YOUNG.
Children and Young Peoples Services,Head of Education and Skills,Transport,230007,Contract Hire,10/01/2019,3537777-1711,"1,263.50",MR PETER YOUNG.
Children and Young Peoples Services,Head of Education and Skills,Transport,230008,Contract Hire,10/01/2019,3537778-13A-DEC18,"1,140.00",MR RAYMOND RENWICK T/A RAY`S TAXIS & MINIBUSES.
Children and Young Peoples Services,Head of Education and Skills,Transport,230008,Contract Hire,10/01/2019,3537778-13B-N043,"1,200.00",MR RAYMOND RENWICK T/A RAY`S TAXIS & MINIBUSES.
Children and Young Peoples Services,Head of Education and Skills,Transport,230008,Contract Hire,10/01/2019,3537780-3058,"1,440.00",MR S BOWERS T/A DH7 TAXIS.
Children and Young Peoples Services,Head of Education and Skills,Transport,230008,Contract Hire,10/01/2019,3537780-3059,"2,685.00",MR S BOWERS T/A DH7 TAXIS.
Children and Young Peoples Services,Head of Education and Skills,Transport,230006,Contract Hire,10/01/2019,3537780-3061,810.00,MR S BOWERS T/A DH7 TAXIS.
Children and Young Peoples Services,Head of Education and Skills,Transport,230007,Contract Hire,10/01/2019,3537783-2-3294,600.00,NC TAXI`S.
Children and Young Peoples Services,Head of Education and Skills,Transport,230008,Contract Hire,10/01/2019,3537784-239,"1,200.00",NEVILLE FORBES T/A FORBES TAXIS.
Dedicated Schools Grant,DSG High Needs Block,Central Support and Other Recharges,615208,Support Services,10/01/2019,3537785-RES-01-2019-019,"1,463.70",NEW COLLEGE ACADEMIES TRUST - CONSETT ACADEMY.
Regeneration and Local Services,Economic Development and Housing,Supplies and Services,336005,Advertising E336,10/01/2019,3537787-27612210,750.00,NEWSQUEST (YORKSHIRE & NORTH EAST) LTD.
Children and Young Peoples Services,Head of Education and Skills,Transport,230003,Contract Hire,10/01/2019,3537792-5559,"1,875.00",NORTH EAST COACHWAYS LTD.
Children and Young Peoples Services,Head of Education and Skills,Transport,230007,Contract Hire,10/01/2019,3537792-5560,"1,770.00",NORTH EAST COACHWAYS LTD.
Children and Young Peoples Services,Head of Education and Skills,Transport,230007,Contract Hire,10/01/2019,3537792-5561,"1,785.00",NORTH EAST COACHWAYS LTD.
Children and Young Peoples Services,Head of Education and Skills,Transport,230007,Contract Hire,10/01/2019,3537792-5562,"1,650.00",NORTH EAST COACHWAYS LTD.
Children and Young Peoples Services,Head of Education and Skills,Transport,230007,Contract Hire,10/01/2019,3537792-INV-5563,"2,128.00",NORTH EAST COACHWAYS LTD.
Regeneration and Local Services,Direct Services,Supplies and Services,304259,Equipment and Materials,10/01/2019,3537795-67780,"2,553.00",NORTHERN TOOLS & ACCESSORIES.
Regeneration and Local Services,Direct Services,Transport,215022,Running Costs of Vehicles,10/01/2019,3537798-376741,"5,541.22",OIL NRG LTD.
Regeneration and Local Services,Direct Services,Transport,215005,Running Costs of Vehicles,10/01/2019,3537798-382409,"12,680.20",OIL NRG LTD.
Regeneration and Local Services,Direct Services,Transport,215005,Running Costs of Vehicles,10/01/2019,3537798-382413,"35,012.22",OIL NRG LTD.
Regeneration and Local Services,Direct Services,Transport,215005,Running Costs of Vehicles,10/01/2019,3537798-382662,"17,526.07",OIL NRG LTD.
Regeneration and Local Services,Technical Services,Third Party Payments 4THIRD,430100,Rendered by Private Contractors,10/01/2019,3537799-20977,560.00,OLIVERS TREE SERVICES LTD.
Children and Young Peoples Services,Head of Education and Skills,Transport,230008,Contract Hire,10/01/2019,3537800-7600,"1,966.80",OVERLANDER LTD.
Children and Young Peoples Services,Head of Education and Skills,Transport,230008,Contract Hire,10/01/2019,3537800-7668,"1,341.00",OVERLANDER LTD.
Children and Young Peoples Services,Head of Education and Skills,Transport,230003,Contract Hire,10/01/2019,3537800-7670,"1,560.00",OVERLANDER LTD.
Regeneration and Local Services,Direct Services,Third Party Payments 4THIRD,430100,Rendered by Private Contractors,10/01/2019,3537803-1865,"1,120.00",PARAMOUNT CEILINGS & PARTITIONS.
Regeneration and Local Services,Direct Services,Third Party Payments 4THIRD,430100,Rendered by Private Contractors,10/01/2019,3537803-1887,"1,752.50",PARAMOUNT CEILINGS & PARTITIONS.
Children and Young Peoples Services,Head of Education and Skills,Transport,230006,Contract Hire,10/01/2019,3537806-484950,"1,470.00",PAUL B TAXIS.
Children and Young Peoples Services,Head of Education and Skills,Transport,230008,Contract Hire,10/01/2019,3537808-1696,"2,250.00",PAUL WATSON TRAVEL.
Children and Young Peoples Services,Head of Education and Skills,Transport,230007,Contract Hire,10/01/2019,3537808-1697,"1,650.00",PAUL WATSON TRAVEL.
Children and Young Peoples Services,Head of Education and Skills,Transport,230007,Contract Hire,10/01/2019,3537808-1698,"1,800.00",PAUL WATSON TRAVEL.
Children and Young Peoples Services,Head of Education and Skills,Transport,230006,Contract Hire,10/01/2019,3537809-F675/12,"1,059.00",PAUL WILSON.
Children and Young Peoples Services,Head of Education and Skills,Transport,230008,Contract Hire,10/01/2019,3537813-0717,"1,830.00",PETER`S PRIVATE HIRE/PETER BEST.
Children and Young Peoples Services,Head of Education and Skills,Transport,230009,Contract Hire,10/01/2019,3537814-7360/12,600.00,PETER`S TAXIS.
Children and Young Peoples Services,Head of Education and Skills,Transport,230006,Contract Hire,10/01/2019,3537814-F721/12,"1,275.00",PETER`S TAXIS.
Children and Young Peoples Services,Head of Education and Skills,Transport,230008,Contract Hire,10/01/2019,3537816-008A,"1,245.00",PHILS TAXIS.
Regeneration and Local Services,Technical Services,Third Party Payments 4THIRD,430100,Rendered by Private Contractors,10/01/2019,3537819-5319,"5,673.01",PINKNEY BUILDING CONTRACTORS LTD.
Regeneration and Local Services,Technical Services,Third Party Payments 4THIRD,430100,Rendered by Private Contractors,10/01/2019,3537819-5327,"7,342.34",PINKNEY BUILDING CONTRACTORS LTD.
Regeneration and Local Services,Technical Services,Third Party Payments 4THIRD,430100,Rendered by Private Contractors,10/01/2019,3537819-5330,"5,673.01",PINKNEY BUILDING CONTRACTORS LTD.
Regeneration and Local Services,Technical Services,Third Party Payments 4THIRD,430100,Rendered by Private Contractors,10/01/2019,3537819-5334,"3,468.51",PINKNEY BUILDING CONTRACTORS LTD.
Regeneration and Local Services,Technical Services,Third Party Payments 4THIRD,430100,Rendered by Private Contractors,10/01/2019,3537819-5343,"5,673.01",PINKNEY BUILDING CONTRACTORS LTD.
Regeneration and Local Services,Technical Services,Third Party Payments 4THIRD,430100,Rendered by Private Contractors,10/01/2019,3537819-5350,"5,263.20",PINKNEY BUILDING CONTRACTORS LTD.
Regeneration and Local Services,Technical Services,Third Party Payments 4THIRD,430100,Rendered by Private Contractors,10/01/2019,3537819-5354,"2,555.39",PINKNEY BUILDING CONTRACTORS LTD.
Regeneration and Local Services,Technical Services,Third Party Payments 4THIRD,430100,Rendered by Private Contractors,10/01/2019,3537819-5364,"5,134.44",PINKNEY BUILDING CONTRACTORS LTD.
Regeneration and Local Services,Technical Services,Third Party Payments 4THIRD,430100,Rendered by Private Contractors,10/01/2019,3537819-5365,"4,506.40",PINKNEY BUILDING CONTRACTORS LTD.
Children and Young Peoples Services,Head of Education and Skills,Transport,230012,Contract Hire,10/01/2019,3537821-1301,930.00,PODA TAXIS LTD.
Children and Young Peoples Services,Head of Education and Skills,Transport,230008,Contract Hire,10/01/2019,3537821-1302,"1,575.00",PODA TAXIS LTD.
Children and Young Peoples Services,Head of Education and Skills,Transport,230008,Contract Hire,10/01/2019,3537821-1303,900.00,PODA TAXIS LTD.
Regeneration and Local Services,Direct Services,Supplies and Services,304221,Equipment and Materials,10/01/2019,3537822-INV230337,"2,560.88",POINTER FIRE LTD.
Non-Service Specific,Non Service Specific-Financing,Central Support and Other Recharges,690900,Unclassified E690,10/01/2019,33-NCB-01-2019-001,"3,254.50",PROMETHEAN LTD.
Children and Young Peoples Services,Head of Education and Skills,Transport,230007,Contract Hire,10/01/2019,3537827-RDS043,600.00,RDS TAXI.
Children and Young Peoples Services,Head of Childrens Social Care,Third Party Payments 4THIRD,425021,Rendered by Voluntary Organisations,10/01/2019,3537836-4728,"17,254.94",REACH-OUT CARE SUPPORT NETWORK LTD.
Children and Young Peoples Services,Head of Education and Skills,Transport,230007,Contract Hire,10/01/2019,3537837-1768,876.00,RON`S TAXIS (FISHBURN).
Children and Young Peoples Services,Head of Education and Skills,Transport,230008,Contract Hire,10/01/2019,3537837-1770,"2,810.00",RON`S TAXIS (FISHBURN).
Adult and Health Services,Head of Adults,Transport,230005,Contract Hire,10/01/2019,3537837-1771,990.00,RON`S TAXIS (FISHBURN).
Children and Young Peoples Services,Head of Education and Skills,Transport,230008,Contract Hire,10/01/2019,3537839-4B,835.06,ROUTE 1.
Children and Young Peoples Services,Head of Education and Skills,Transport,230003,Contract Hire,10/01/2019,3537840-ROXDCC63,"3,720.00",ROXBYS BUS HIRE.
Children and Young Peoples Services,Head of Education and Skills,Transport,230003,Contract Hire,10/01/2019,3537843-3208/26,"1,525.00",S & S TRAVEL LTD.
Children and Young Peoples Services,Head of Education and Skills,Transport,230008,Contract Hire,10/01/2019,3537843-S017/27,"1,260.00",S & S TRAVEL LTD.
Children and Young Peoples Services,Head of Education and Skills,Transport,230008,Contract Hire,10/01/2019,3537843-S020/15,"1,425.00",S & S TRAVEL LTD.
Children and Young Peoples Services,Head of Education and Skills,Transport,230008,Contract Hire,10/01/2019,3537843-W010/01,"1,800.00",S & S TRAVEL LTD.
Children and Young Peoples Services,Head of Education and Skills,Transport,230008,Contract Hire,10/01/2019,3537843-W045/04,750.00,S & S TRAVEL LTD.
Children and Young Peoples Services,Head of Education and Skills,Transport,230008,Contract Hire,10/01/2019,3537843-W056/26,"1,420.00",S & S TRAVEL LTD.
Regeneration and Local Services,Culture & Sport,Employees,080030,Agency Staff,10/01/2019,3537844-A11/181218,578.00,SABINE SCHINDLER.
Regeneration and Local Services,Spatial Policy Planning Assets & Environment,Premises,108099,Service Repairs and Maintenance,10/01/2019,3537845-4405,"1,780.00",SAFE STRIP UK LTD.
Regeneration and Local Services,Culture & Sport,Construction work A908,908105,Construction work,10/01/2019,3537845-4421,"1,020.74",SAFE STRIP UK LTD.
Regeneration and Local Services,Spatial Policy Planning Assets & Environment,Construction work A908,908105,Construction work,10/01/2019,3537845-4425,"1,180.00",SAFE STRIP UK LTD.
Resources,Corporate Finance & Commercial Services,Supplies and Services,372009,Subscriptions E372,10/01/2019,3537848-SIN281579,"1,000.00",SELLICK PARTNERSHIP GROUP LTD.
Children and Young Peoples Services,Head of Education and Skills,Transport,230008,Contract Hire,10/01/2019,3537851-013-DEC18,"1,200.00",SHOEY`S TAXIS.
Children and Young Peoples Services,Head of Education and Skills,Transport,230008,Contract Hire,10/01/2019,3537852-74404,"1,807.18",SHOTTON PRIVATE HIRE.
Children and Young Peoples Services,Head of Education and Skills,Transport,230008,Contract Hire,10/01/2019,3537855-1200,670.00,SIMONS TAXIS.
Children and Young Peoples Services,Head of Education and Skills,Transport,230009,Contract Hire,10/01/2019,3537855-1301,730.00,SIMONS TAXIS.
Children and Young Peoples Services,Head of Education and Skills,Transport,230012,Contract Hire,10/01/2019,3537855-1301/W054,906.00,SIMONS TAXIS.
Adult and Health Services,Commissioning inc Supporting People,Supplies and Services,372009,Subscriptions E372,10/01/2019,3537857-181201,"1,406.58",SOCIAL CARE INFORMATION & LEARNING SERVICES (SCILS).
Children and Young Peoples Services,Head of Education and Skills,Transport,230008,Contract Hire,10/01/2019,3537861-BKD20186008,"1,755.00",SPENNYMOOR TAXIS.
Children and Young Peoples Services,Head of Education and Skills,Transport,230008,Contract Hire,10/01/2019,3537861-JJD201800010,"1,331.10",SPENNYMOOR TAXIS.
Children and Young Peoples Services,Head of Education and Skills,Transport,230008,Contract Hire,10/01/2019,3537861-SACRM201800011,"1,200.00",SPENNYMOOR TAXIS.
Dedicated Schools Grant,DSG High Needs Block,Supplies and Services,338075,Services,10/01/2019,3537863-CAS-10-2018-096,"1,800.00",STANLEY LEARNING PARTNERSHIP.
Adult and Health Services,Head of Adults,Transport,230005,Contract Hire,10/01/2019,3537865-115/SLD017,"1,014.00",STEPHEN COXON.
Adult and Health Services,Head of Adults,Transport,230005,Contract Hire,10/01/2019,3537865-116/SLD017,"1,716.00",STEPHEN COXON.
Adult and Health Services,Head of Adults,Transport,230005,Contract Hire,10/01/2019,3537865-117/SLD017,"1,092.00",STEPHEN COXON.
Children and Young Peoples Services,Head of Education and Skills,Transport,230007,Contract Hire,10/01/2019,3537870-65,540.00,STEVEN HENDERSON T/A HENDYS TAXIS.
Children and Young Peoples Services,Head of Education and Skills,Transport,230007,Contract Hire,10/01/2019,3537870-66,645.00,STEVEN HENDERSON T/A HENDYS TAXIS.
Children and Young Peoples Services,Head of Education and Skills,Transport,230006,Contract Hire,10/01/2019,3537871-00099,580.50,STEVES TAXIS.
Regeneration and Local Services,Technical Services,Supplies and Services,304221,Equipment and Materials,10/01/2019,3537872-112533,567.92,STONEGRAVE AGGREGATES LTD.
Resources,Legal & Democratic Services,Supplies and Services,338025,Services,10/01/2019,3537873-10824,630.00,STUART WRIGHT FUNERAL SERVICE LTD.
Regeneration and Local Services,Culture & Sport,Supplies and Services,328041,Clothing uniforms and laundry E328,10/01/2019,3537877-IN158397,540.25,SWIFT INDUSTRIAL SUPPLIES LTD.
Children and Young Peoples Services,Head of Education and Skills,Transport,230008,Contract Hire,10/01/2019,3537881-12/2018/006,675.00,TARNS TAXIS LTD.
Children and Young Peoples Services,Head of Education and Skills,Transport,230008,Contract Hire,10/01/2019,3537881-12/2018/008,960.00,TARNS TAXIS LTD.
Children and Young Peoples Services,Head of Education and Skills,Transport,230008,Contract Hire,10/01/2019,3537882-016,"1,785.00",TAXZ.
Children and Young Peoples Services,Head of Education and Skills,Transport,230008,Contract Hire,10/01/2019,3537885-DCC/2018/061,"1,188.00",TAYLOR`S TAXIS.
Children and Young Peoples Services,Head of Education and Skills,Transport,230008,Contract Hire,10/01/2019,3537885-DCC/2018/062,"1,320.00",TAYLOR`S TAXIS.
Children and Young Peoples Services,Head of Education and Skills,Transport,230008,Contract Hire,10/01/2019,3537885-DCC/2018/063,"1,365.00",TAYLOR`S TAXIS.
Dedicated Schools Grant,DSG High Needs Block,Transport,230010,Contract Hire,10/01/2019,3537885-DCC/2018/064,"2,799.72",TAYLOR`S TAXIS.
Children and Young Peoples Services,Head of Education and Skills,Transport,230008,Contract Hire,10/01/2019,3537885-DCC/2018/065,"1,755.15",TAYLOR`S TAXIS.
Children and Young Peoples Services,Head of Education and Skills,Transport,230007,Contract Hire,10/01/2019,3537889-EA4,975.00,TED WILFORD COACHES.
Children and Young Peoples Services,Head of Education and Skills,Transport,230003,Contract Hire,10/01/2019,3537889-SB4,900.00,TED WILFORD COACHES.
Children and Young Peoples Services,Head of Education and Skills,Transport,230007,Contract Hire,10/01/2019,3537889-SV4,"1,875.00",TED WILFORD COACHES.
Regeneration and Local Services,Technical Services,Third Party Payments 4THIRD,460503,Contract Payments,10/01/2019,3537891-22651,"9,252.35",TEXTUREBLAST LTD.
Regeneration and Local Services,Culture & Sport,Supplies and Services,338047,Services,10/01/2019,3537897-SINRNT1002281,717.78,THE ROYAL NATIONAL THEATRE.
Children and Young Peoples Services,Head of Education and Skills,Transport,230004,Contract Hire,10/01/2019,3537899-23,916.50,THOMAS GLEN.
Children and Young Peoples Services,Head of Education and Skills,Transport,230006,Contract Hire,10/01/2019,3537899-25,888.00,THOMAS GLEN.
Regeneration and Local Services,Technical Services,Stock A926,926900,Stock in hand-Inventory system,10/01/2019,3537900-NSIN00002942,"2,231.19",THOMAS OWEN & SONS (NEWCASTLE) LTD.
Regeneration and Local Services,Technical Services,Stock A926,926900,Stock in hand-Inventory system,10/01/2019,3537900-NSIN00002943,"1,885.52",THOMAS OWEN & SONS (NEWCASTLE) LTD.
Regeneration and Local Services,Technical Services,Stock A926,926900,Stock in hand-Inventory system,10/01/2019,3537900-NSIN00002944,849.80,THOMAS OWEN & SONS (NEWCASTLE) LTD.
Children and Young Peoples Services,Head of Education and Skills,Transport,230008,Contract Hire,10/01/2019,3537902-0002026,"1,800.00",TONY RIDLEY T/A COLORS TAXIS LTD.
Adult and Health Services,Head of Adults,Transport,230005,Contract Hire,10/01/2019,3537902-0002026-SLD014,"1,425.00",TONY RIDLEY T/A COLORS TAXIS LTD.
Children and Young Peoples Services,Head of Education and Skills,Transport,230008,Contract Hire,10/01/2019,3537903-TS21/26,720.00,TOP STAR TRAVEL.
Children and Young Peoples Services,Head of Education and Skills,Transport,230012,Contract Hire,10/01/2019,3537903-TS22-15,810.00,TOP STAR TRAVEL.
Children and Young Peoples Services,Head of Education and Skills,Transport,230008,Contract Hire,10/01/2019,3537903-TS40/26,780.00,TOP STAR TRAVEL.
Children and Young Peoples Services,Head of Education and Skills,Transport,230007,Contract Hire,10/01/2019,3537905-SC10004,900.00,TRAVEL 6.
Regeneration and Local Services,Transport and Contracted Services,Supplies and Services,304245,Equipment and Materials,10/01/2019,3537909-3IN/10329545,"6,000.00",TUNSTALL HEALTHCARE (UK) LTD.
Regeneration and Local Services,Technical Services,Supplies and Services,304221,Equipment and Materials,10/01/2019,3537911-194646,658.03,TYNEDALE ROADSTONE LTD.
Regeneration and Local Services,Technical Services,Supplies and Services,304221,Equipment and Materials,10/01/2019,3537911-194707,727.04,TYNEDALE ROADSTONE LTD.
Children and Young Peoples Services,Head of Education and Skills,Transfer Payments,510028,School Children,10/01/2019,3537918-CAS-01-2019-048,"20,000.00",WEARDALE AM/PM SCAMPS LTD.
Children and Young Peoples Services,Head of Education and Skills,Transport,230007,Contract Hire,10/01/2019,3537922-1539013,742.50,WENDYS` TAXIS.
Resources,Digital and Customer Services,Supplies and Services,332029,Printing Stationery and Gen Off Exps,10/01/2019,3537928-900180976,"28,565.25",XEROX FINANCE LTD.
Regeneration and Local Services,Direct Services,Supplies and Services,304259,Equipment and Materials,10/01/2019,3537930-0000308496,940.50,YORK SURVEY SUPPLY CENTRE LTD.
Regeneration and Local Services,Culture & Sport,Supplies and Services,304337,Equipment and Materials,10/01/2019,3537935-I-0547753,773.65,ZOGGS INTERNATIONAL LTD.
Regeneration and Local Services,Culture & Sport,Supplies and Services,304337,Equipment and Materials,10/01/2019,3537935-I-0548938,800.15,ZOGGS INTERNATIONAL LTD.
Regeneration and Local Services,Culture & Sport,Supplies and Services,304337,Equipment and Materials,10/01/2019,3537936-I-0530996,556.90,ZOGGS INTERNATIONAL LTD.
Regeneration and Local Services,Culture & Sport,Supplies and Services,304259,Equipment and Materials,11/01/2019,3537945-116342857,"3,865.00",AC ENTERTAINMENT TECHNOLOGIES.
Adult and Health Services,Head of Adults,Third Party Payments 4THIRD,478151,Purchase of Care,11/01/2019,3537946-750,"4,247.00",ACCEPT CARE LTD.
Regeneration and Local Services,Economic Development and Housing,Premises,106082,Centrally Controlled Rep and Maint,11/01/2019,3537947-IN5158,"8,132.15",ACROL AIR CONDITIONING CO LTD.
Children and Young Peoples Services,Head of Childrens Social Care,Third Party Payments 4THIRD,425041,Rendered by Voluntary Organisations,11/01/2019,3537949-5473,"50,000.00",ADOPTIONPLUS LTD.
Children and Young Peoples Services,Head of Education and Skills,Premises,108099,Service Repairs and Maintenance,11/01/2019,3537950-40214175-61,573.98,ADT FIRE & SECURITY PLC.
Children and Young Peoples Services,Head of Childrens Social Care,Supplies and Services,338044,Services,11/01/2019,3537952-MWAF611218,"2,490.44",ADVANCED CHILD CARE ASSESSMENTS LTD.
Children and Young Peoples Services,Head of Childrens Social Care,Supplies and Services,338044,Services,11/01/2019,3537952-MWLC651218,513.18,ADVANCED CHILD CARE ASSESSMENTS LTD.
Regeneration and Local Services,Technical Services,Supplies and Services,304221,Equipment and Materials,11/01/2019,3537954-27624147,781.76,AGGREGATE INDUSTRIES UK LTD.
Regeneration and Local Services,Technical Services,Supplies and Services,304221,Equipment and Materials,11/01/2019,3537954-27624150,978.44,AGGREGATE INDUSTRIES UK LTD.
Transformation and Partnerships,Partnerships & Community Engagement Div.,Supplies and Services,338099,Services,11/01/2019,3537956-2362,"2,980.00",ALAN HILLARY EVENTS LTD.
Children and Young Peoples Services,"Head of Early Help, Inclusion and Vulnerable Children",Premises,108251,Service Repairs and Maintenance,11/01/2019,3537958-52615,600.00,ALARM RADIO MONITORING LTD.
Resources,Digital and Customer Services,Supplies and Services,308011,Furniture,11/01/2019,3537959-164223,"10,245.00",ALBANY OFFICE EQUIPMENT (WHOLESALE) LTD.
Regeneration and Local Services,Culture & Sport,Supplies and Services,304259,Equipment and Materials,11/01/2019,3537959-164247,"2,225.00",ALBANY OFFICE EQUIPMENT (WHOLESALE) LTD.
Regeneration and Local Services,Culture & Sport,Supplies and Services,312013,Newspapers books and periodicals E312,11/01/2019,3537968-5928118,530.72,ASKEWS & HOLTS LIBRARY SERVICES LTD.
Regeneration and Local Services,Direct Services,Fees,901002,Professional fees 901002,11/01/2019,3537971-16030230,"2,689.51",ATKINS GLOBAL.
Children and Young Peoples Services,Head of Education and Skills,Supplies and Services,338001,Services,11/01/2019,3537971-18051451,"6,000.00",ATKINS GLOBAL.
Regeneration and Local Services,Direct Services,Third Party Payments 4THIRD,430100,Rendered by Private Contractors,11/01/2019,3537972-6734,"1,280.00",ATLAS WASHROOM SYSTEMS LTD.
Regeneration and Local Services,Direct Services,Third Party Payments 4THIRD,430100,Rendered by Private Contractors,11/01/2019,3537980-6335,800.00,BELL CONTROL SOLUTIONS LTD.
Children and Young Peoples Services,"Head of Early Help, Inclusion and Vulnerable Children",Premises,108135,Service Repairs and Maintenance,11/01/2019,3537985-30892,"1,220.00",BIOCHEMICA GROUP LTD.
Regeneration and Local Services,Direct Services,Supplies and Services,304259,Equipment and Materials,11/01/2019,3537991-139470,611.50,BOWMONK LTD.
Regeneration and Local Services,Direct Services,Supplies and Services,304259,Equipment and Materials,11/01/2019,3537991-139495,611.50,BOWMONK LTD.
Regeneration and Local Services,Technical Services,Third Party Payments 4THIRD,430100,Rendered by Private Contractors,11/01/2019,3537999-44438,"10,479.74",BRIDGEWAY CONSULTING LTD.
Dedicated Schools Grant,DSG High Needs Block,Third Party Payments 4THIRD,425005,Rendered by Voluntary Organisations,11/01/2019,3538003-CHI042869,"13,833.33",CAMBIAN WHINFELL SCHOOL LTD.
Dedicated Schools Grant,DSG High Needs Block,Third Party Payments 4THIRD,425005,Rendered by Voluntary Organisations,11/01/2019,3538003-CHI042870,"13,833.33",CAMBIAN WHINFELL SCHOOL LTD.
Dedicated Schools Grant,DSG High Needs Block,Third Party Payments 4THIRD,440080,Other third party payments E440,11/01/2019,3538003-WHI010647,"34,165.79",CAMBIAN WHINFELL SCHOOL LTD.
Regeneration and Local Services,Direct Services,Supplies and Services,304221,Equipment and Materials,11/01/2019,3538008-851803376,"2,113.00",CARLISLE CONSTRUCTION MATERIALS LTD.
Regeneration and Local Services,Direct Services,Premises,106082,Centrally Controlled Rep and Maint,11/01/2019,3538011-5088,"1,131.71",CATHEDRAL LOCK & SAFE SERVICES LTD.
Regeneration and Local Services,Direct Services,Premises,106082,Centrally Controlled Rep and Maint,11/01/2019,3538011-5166,580.13,CATHEDRAL LOCK & SAFE SERVICES LTD.
Regeneration and Local Services,Economic Development and Housing,Supplies and Services,308011,Furniture,11/01/2019,3538011-5272,"7,660.33",CATHEDRAL LOCK & SAFE SERVICES LTD.
Regeneration and Local Services,Spatial Policy Planning Assets & Environment,Premises,106082,Centrally Controlled Rep and Maint,11/01/2019,3538011-5327,580.13,CATHEDRAL LOCK & SAFE SERVICES LTD.
Children and Young Peoples Services,Head of Childrens Social Care,Third Party Payments 4THIRD,486044,Service level agreements E486,11/01/2019,3538023-3910015622,"3,403.53",CO DURHAM & DARLINGTON NHS FOUNDATION TRUST.
Resources,Legal & Democratic Services,Supplies and Services,384151,Miscellaneous Expenses,11/01/2019,3538023-3980032513,"21,174.72",CO DURHAM & DARLINGTON NHS FOUNDATION TRUST.
Regeneration and Local Services,Technical Services,Third Party Payments 4THIRD,430100,Rendered by Private Contractors,11/01/2019,3538025-I18Z0116,524.47,COLAS LTD.
Dedicated Schools Grant,DSG High Needs Block,Supplies and Services,304259,Equipment and Materials,11/01/2019,3538028-111845,"1,213.00",CORECARE GLOBAL LTD T/A YORKSHIRE CARE EQUIPMENT.
Regeneration and Local Services,Spatial Policy Planning Assets & Environment,Supplies and Services,338027,Services,11/01/2019,3538032-INV-0173,750.00,CP VIABILITY LTD.
Regeneration and Local Services,Direct Services,Premises,120037,Energy Costs,11/01/2019,3538035-1064615,"1,104.00",CROWN OIL LTD.
Children and Young Peoples Services,Head of Education and Skills,Supplies and Services,336005,Advertising E336,11/01/2019,3538037-1-6142,"2,362.82",CSMS PRINT SOLUTIONS LTD.
Children and Young Peoples Services,Head of Education and Skills,Transfer Payments,510026,School Children,11/01/2019,3538045-19/12/18,918.00,DAWN TILL DUSK CHILDCARE.
Regeneration and Local Services,Culture & Sport,Supplies and Services,304259,Equipment and Materials,11/01/2019,3538050-3786,"2,552.00",DEMETER LTD.
Adult and Health Services,Head of Adults,Supplies and Services,338066,Services,11/01/2019,3538057-0301201910012019,"1,247.42",DR HEMANTH NAGARATHNAM.
Adult and Health Services,Head of Adults,Supplies and Services,338066,Services,11/01/2019,3538058-0301201910012019,541.70,DR IMRAN MUNIR.
Children and Young Peoples Services,Head of Childrens Social Care,Supplies and Services,338044,Services,11/01/2019,3538060-SI-64,612.40,DR SUSAN COOPER.
Children and Young Peoples Services,"Head of Early Help, Inclusion and Vulnerable Children",Employees,080025,Agency Staff,11/01/2019,3538065-0000044723,900.00,EAST DURHAM COLLEGE.
Regeneration and Local Services,Direct Services,Supplies and Services,304221,Equipment and Materials,11/01/2019,3538072-059-236305,"1,553.26",EDMUNDSON ELECTRICAL LTD.
Regeneration and Local Services,Culture & Sport,Supplies and Services,338047,Services,11/01/2019,3538076-GALA34,"2,440.14",EMILY BAXENDALE.
Regeneration and Local Services,Direct Services,Transport,230005,Contract Hire,11/01/2019,3538078-20028078,801.65,ENTERPRISE FLEX-E-RENT T/A BURNT TREE GROUP LTD.
Regeneration and Local Services,Direct Services,Transport,230005,Contract Hire,11/01/2019,3538079-8148693,609.50,ENTERPRISE FLEX-E-RENT T/A BURNT TREE GROUP LTD.
Resources,Digital and Customer Services,Supplies and Services,342051,Computers and Communications,11/01/2019,3538082-5596,"121,382.55",ESSENTIALNET LTD.
Regeneration and Local Services,Technical Services,Third Party Payments 4THIRD,430128,Rendered by Private Contractors,11/01/2019,3538086-249,624.00,F WARD FARM.
Regeneration and Local Services,Technical Services,Third Party Payments 4THIRD,430128,Rendered by Private Contractors,11/01/2019,3538086-250,624.00,F WARD FARM.
Children and Young Peoples Services,Head of Childrens Social Care,Supplies and Services,338044,Services,11/01/2019,3538090-33846,"1,004.00",FORENSIC TESTING SERVICE LTD.
Regeneration and Local Services,Direct Services,Third Party Payments 4THIRD,430100,Rendered by Private Contractors,11/01/2019,3538093-10889,"16,440.00",FROSTREE LTD.
Children and Young Peoples Services,"Head of Early Help, Inclusion and Vulnerable Children",Premises,108099,Service Repairs and Maintenance,11/01/2019,3538094-13588,506.53,FT LEISURE LTD.
Regeneration and Local Services,Culture & Sport,Premises,106080,Centrally Controlled Rep and Maint,11/01/2019,3538094-13619,"1,100.00",FT LEISURE LTD.
Regeneration and Local Services,Culture & Sport,Premises,106082,Centrally Controlled Rep and Maint,11/01/2019,3538094-13747,500.00,FT LEISURE LTD.
Children and Young Peoples Services,Childrens Services Operational Support,Supplies and Services,338099,Services,11/01/2019,3538097-105121594,"1,500.00",GATESHEAD COUNCIL.
Regeneration and Local Services,Culture & Sport,Supplies and Services,384956,Miscellaneous Expenses,11/01/2019,3538103-04009736,"1,772.00",GLADSTONE MRM LTD.
Regeneration and Local Services,Direct Services,Premises,106082,Centrally Controlled Rep and Maint,11/01/2019,3538108-17399,960.00,GREEN ZONE SURVEYS (UK) LTD.
Regeneration and Local Services,Direct Services,Premises,106082,Centrally Controlled Rep and Maint,11/01/2019,3538108-17402,590.00,GREEN ZONE SURVEYS (UK) LTD.
Resources,Finance & Transactional Services,Supplies and Services,338045,Services,11/01/2019,3538110-612195,"1,005.00",GREENHALGH KERR.
Regeneration and Local Services,Direct Services,Supplies and Services,304221,Equipment and Materials,11/01/2019,3538109-214467,"1,750.00",GREEN-TECH LTD.
Regeneration and Local Services,Direct Services,Third Party Payments 4THIRD,430119,Rendered by Private Contractors,11/01/2019,3538120-109592,"2,756.70",HARPERS ENVIRONMENTAL LTD.
Dedicated Schools Grant,DSG High Needs Block,Third Party Payments 4THIRD,440080,Other third party payments E440,11/01/2019,3538123-SIN069056,"20,882.62",HENSHAWS SOCIETY FOR BLIND PEOPLE.
Adult and Health Services,Public Health,Third Party Payments 4THIRD,460803,Contract Payments,11/01/2019,3538130-561/19/1801,"374,815.58",HUMANKIND CHARITY.
Regeneration and Local Services,Direct Services,Third Party Payments 4THIRD,430100,Rendered by Private Contractors,11/01/2019,3538141-7222,"1,305.00",INGLEFORD SCAFFOLDING LTD.
Resources,Digital and Customer Services,Stock A926,926900,Stock in hand-Inventory system,11/01/2019,3538134-4185454,516.80,INSIGHT DIRECT (UK) LTD.
Regeneration and Local Services,Technical Services,Construction work A908,908105,Construction work,11/01/2019,3538139-22537,"1,952.40",JACK COUPE & SONS LTD T/A COUPE LINE.
Children and Young Peoples Services,"Head of Early Help, Inclusion and Vulnerable Children",Supplies and Services,304259,Equipment and Materials,11/01/2019,3538140-34574,"1,041.60",JAMES FLETCHER LTD T/A JAMES FLETCHER MARQUEES.
Children and Young Peoples Services,"Head of Early Help, Inclusion and Vulnerable Children",Premises,108135,Service Repairs and Maintenance,11/01/2019,3538144-18628,"3,880.00",JC MAINTENANCE SERVICES LTD.
Regeneration and Local Services,Direct Services,Premises,108099,Service Repairs and Maintenance,11/01/2019,3538144-18657,"14,718.10",JC MAINTENANCE SERVICES LTD.
Regeneration and Local Services,Direct Services,Supplies and Services,304221,Equipment and Materials,11/01/2019,3538155-GOI1386/D,"6,858.66",JT DOVE LTD.
Regeneration and Local Services,Direct Services,Supplies and Services,304221,Equipment and Materials,11/01/2019,3538155-GOI1394/D,"3,793.00",JT DOVE LTD.
Regeneration and Local Services,Direct Services,Supplies and Services,304221,Equipment and Materials,11/01/2019,3538155-PHBII42405,854.85,JT DOVE LTD.
Regeneration and Local Services,Spatial Policy Planning Assets & Environment,Supplies and Services,338066,Services,11/01/2019,3538156-038511,"1,912.50",JUMP UP LTD (DIGITAL INTERPRETATION).
Children and Young Peoples Services,Head of Education and Skills,Supplies and Services,384199,Miscellaneous Expenses,11/01/2019,3538162-INV-0028,"1,000.00",KM10 LTD.
Dedicated Schools Grant,DSG High Needs Block,Supplies and Services,304259,Equipment and Materials,11/01/2019,3538172-INV-4038,"2,608.00",LYNCH HEALTHCARE LTD.
Regeneration and Local Services,Technical Services,Third Party Payments 4THIRD,430127,Rendered by Private Contractors,11/01/2019,3538175-5692,"1,332.00",MAKEPEACE MOTORS.
Regeneration and Local Services,Technical Services,Third Party Payments 4THIRD,430127,Rendered by Private Contractors,11/01/2019,3538175-5693,"1,169.00",MAKEPEACE MOTORS.
Regeneration and Local Services,Technical Services,Third Party Payments 4THIRD,430127,Rendered by Private Contractors,11/01/2019,3538175-5695,"2,691.00",MAKEPEACE MOTORS.
Regeneration and Local Services,Technical Services,Third Party Payments 4THIRD,430127,Rendered by Private Contractors,11/01/2019,3538175-5696,"2,691.00",MAKEPEACE MOTORS.
Regeneration and Local Services,Technical Services,Third Party Payments 4THIRD,430128,Rendered by Private Contractors,11/01/2019,3538175-5697,600.00,MAKEPEACE MOTORS.
Transformation and Partnerships,Communications Management,Supplies and Services,336005,Advertising E336,11/01/2019,3538177-DCC-0009,600.00,MASON & MASON CONSULTING LTD.
Resources - C A C,Centrally Administered costs,Supplies and Services,338013,Services,11/01/2019,3538180-1489152,"48,257.00",MAZARS LLP.
Regeneration and Local Services,Culture & Sport,Supplies and Services,324001,Provisions E324,11/01/2019,3538185-904970946,"2,601.60",MOLSON COORS BREWING COMPANY (UK) LTD.
Children and Young Peoples Services,Head of Childrens Social Care,Supplies and Services,338044,Services,11/01/2019,3538192-270318-1-2018015,"1,578.50",MR PG RICHARDS (CONSULTANT).
Regeneration and Local Services,Direct Services,Supplies and Services,352001,Conference Expenses,11/01/2019,3538198-50070863,"2,400.00",NEW COLLEGE DURHAM.
Regeneration and Local Services,Direct Services,Supplies and Services,304221,Equipment and Materials,11/01/2019,3538199-064383,"2,602.20",NEW ROW FARM NURSERIES.
Regeneration and Local Services,EnvironmentHealth & Consumer Protection,Supplies and Services,384540,Miscellaneous Expenses,11/01/2019,3538201-27613990,690.87,NEWSQUEST (YORKSHIRE & NORTH EAST) LTD.
Regeneration and Local Services,Technical Services,Supplies and Services,304221,Equipment and Materials,11/01/2019,3538203-179966,547.50,NORTH EAST CONCRETE LTD.
Resources,Legal & Democratic Services,Supplies and Services,384199,Miscellaneous Expenses,11/01/2019,3538207-21555955,"6,248.90",NORTH TYNESIDE COUNCIL.
Regeneration and Local Services,Spatial Policy Planning Assets & Environment,Supplies and Services,338027,Services,11/01/2019,3538211-INVLUK001568,"1,000.00",OBJECTIVE KEYSTONE LTD.
Regeneration and Local Services,Direct Services,Third Party Payments 4THIRD,430100,Rendered by Private Contractors,11/01/2019,3538212-10348,"1,650.00",OCTANE HOLDING GROUP LTD.
Regeneration and Local Services,Culture & Sport,Premises,106082,Centrally Controlled Rep and Maint,11/01/2019,3538214-01334933,"7,075.92",OTIS LTD T/A MOVEMAN SKG.
Regeneration and Local Services,Culture & Sport,Supplies and Services,338047,Services,11/01/2019,3538216-R2190997,721.99,PARAMOUNT PICTURES UK.
Regeneration and Local Services,Technical Services,Stock A926,926900,Stock in hand-Inventory system,11/01/2019,3538218-XL233870,"1,806.00",PARK ELECTRICAL DISTRIBUTORS LTD.
Dedicated Schools Grant,DSG High Needs Block,Third Party Payments 4THIRD,425005,Rendered by Voluntary Organisations,11/01/2019,3538219-GD/SE/JP/BF/PHS2019,"32,574.00",PARKSIDE HOUSE SCHOOL.
Regeneration and Local Services,Culture & Sport,Supplies and Services,304259,Equipment and Materials,11/01/2019,3538224-77292,720.00,PETERLEE FIRE CO LTD.
Adult and Health Services,Public Health,Third Party Payments 4THIRD,460803,Contract Payments,11/01/2019,3538229-16114/14,"5,462.93",PIONEERING CARE PARTNERSHIP.
Adult and Health Services,Commissioning inc Supporting People,Third Party Payments 4THIRD,479111,Purchase of Care,11/01/2019,3538229-16116/14,"49,400.00",PIONEERING CARE PARTNERSHIP.
Resources,Digital and Customer Services,Supplies and Services,304245,Equipment and Materials,11/01/2019,3538233-9554675,533.20,PREMIER PAPER GROUP LTD.
Dedicated Schools Grant,DSG High Needs Block,Employees,080025,Agency Staff,11/01/2019,3538236-51357176,979.45,PROTOCOL EDUCATION LTD.
Dedicated Schools Grant,DSG High Needs Block,Employees,080025,Agency Staff,11/01/2019,3538236-51357178,512.48,PROTOCOL EDUCATION LTD.
Dedicated Schools Grant,DSG High Needs Block,Employees,080025,Agency Staff,11/01/2019,3538236-51357179,527.63,PROTOCOL EDUCATION LTD.
Children and Young Peoples Services,Head of Education and Skills,Supplies and Services,384540,Miscellaneous Expenses,11/01/2019,3538244-INV-6465,"1,012.50",REVOLUTION MARKETING LTD.
Regeneration and Local Services,Direct Services,Supplies and Services,304221,Equipment and Materials,11/01/2019,3538246-0000050356,"1,035.70",RINNAI UK LTD.
Regeneration and Local Services,Spatial Policy Planning Assets & Environment,Supplies and Services,338005,Services,11/01/2019,3538256-NEW10902,738.26,SANDERSON WEATHERALL LLP.
Adult and Health Services,Head of Adults,Supplies and Services,338066,Services,11/01/2019,3538264-0301201910012019,525.00,SHAN MEDICAL SERVICES LTD.
Adult and Health Services,Head of Adults,Third Party Payments 4THIRD,470101,Purchase of Care,11/01/2019,3538274-1001522777,"140,111.92",SOUTH LANARKSHIRE COUNCIL.
Resources,Finance & Transactional Services,Supplies and Services,342013,Computers and Communications,11/01/2019,3538282-113886,985.00,STANDING STONE DRAWING OFFICE SUPPLIES LTD.
Children and Young Peoples Services,Head of Education and Skills,Supplies and Services,384159,Miscellaneous Expenses,11/01/2019,3538285-13682-2018,"9,190.84",STEADFAST SECURITY SYSTEMS LTD.
Regeneration and Local Services,Technical Services,Supplies and Services,304221,Equipment and Materials,11/01/2019,3538289-112487,761.60,STONEGRAVE AGGREGATES LTD.
Regeneration and Local Services,Technical Services,Construction work A908,908105,Construction work,11/01/2019,3538295-8940,"1,950.00",SURVEY & MARKETING SERVICES LTD T/A SMS MARKET RESEARCH.
Dedicated Schools Grant,DSG High Needs Block,Third Party Payments 4THIRD,425005,Rendered by Voluntary Organisations,11/01/2019,3538298-725,"7,692.31",TALBOT HOUSE TRUST NORTH EAST.
Dedicated Schools Grant,DSG High Needs Block,Third Party Payments 4THIRD,425005,Rendered by Voluntary Organisations,11/01/2019,3538298-726,"7,692.31",TALBOT HOUSE TRUST NORTH EAST.
Children and Young Peoples Services,"Head of Early Help, Inclusion and Vulnerable Children",Employees,080025,Agency Staff,11/01/2019,3538301-2242050,590.00,TEACHING PERSONNEL LTD.
Dedicated Schools Grant,DSG High Needs Block,Supplies and Services,304259,Equipment and Materials,11/01/2019,3538302-8012055,"3,630.00",TECHNO-VISION SYSTEMS LTD.
Resources,Digital and Customer Services,Supplies and Services,344015,Telephones,11/01/2019,3538342-LR29518,582.00,VODAFONE LTD.
Resources,Digital and Customer Services,Supplies and Services,344015,Telephones,11/01/2019,3538342-LR29519,880.00,VODAFONE LTD.
Regeneration and Local Services,Culture & Sport,Supplies and Services,338047,Services,11/01/2019,3538344-1713692,"5,240.75",WALT DISNEY CO LTD.
Regeneration and Local Services,Culture & Sport,Supplies and Services,338047,Services,11/01/2019,3538344-1714203,"5,440.75",WALT DISNEY CO LTD.
Regeneration and Local Services,Technical Services,Supplies and Services,304221,Equipment and Materials,11/01/2019,3538345-22478,531.90,WARD TIMBER LTD.
Regeneration and Local Services,Technical Services,Supplies and Services,304221,Equipment and Materials,11/01/2019,3538345-22480,819.60,WARD TIMBER LTD.
Regeneration and Local Services,Culture & Sport,Supplies and Services,338047,Services,11/01/2019,3538346-22723633,990.34,WARNER BROS ENTERTAINMENT UK LTD.
Regeneration and Local Services,Direct Services,Premises,150015,Apportioned Exps of Operational Blds,11/01/2019,3538349-844173,737.10,WERNICK HIRE LTD.
Dedicated Schools Grant,DSG High Needs Block,Third Party Payments 4THIRD,425005,Rendered by Voluntary Organisations,11/01/2019,3538352-208,"18,880.30",WITHERSLACK GROUP LTD..
Dedicated Schools Grant,DSG High Needs Block,Third Party Payments 4THIRD,425005,Rendered by Voluntary Organisations,11/01/2019,3538352-210,"19,874.00",WITHERSLACK GROUP LTD..
Dedicated Schools Grant,DSG High Needs Block,Third Party Payments 4THIRD,425005,Rendered by Voluntary Organisations,11/01/2019,3538352-211,"19,874.00",WITHERSLACK GROUP LTD..
Dedicated Schools Grant,DSG High Needs Block,Third Party Payments 4THIRD,425005,Rendered by Voluntary Organisations,11/01/2019,3538352-215,"19,874.00",WITHERSLACK GROUP LTD..
Dedicated Schools Grant,DSG High Needs Block,Third Party Payments 4THIRD,425005,Rendered by Voluntary Organisations,11/01/2019,3538352-220,"21,824.66",WITHERSLACK GROUP LTD..
Dedicated Schools Grant,DSG High Needs Block,Third Party Payments 4THIRD,425005,Rendered by Voluntary Organisations,11/01/2019,3538352-226,"19,874.00",WITHERSLACK GROUP LTD..
Dedicated Schools Grant,DSG High Needs Block,Third Party Payments 4THIRD,425005,Rendered by Voluntary Organisations,11/01/2019,3538352-227,"19,874.00",WITHERSLACK GROUP LTD..
Dedicated Schools Grant,DSG High Needs Block,Third Party Payments 4THIRD,425005,Rendered by Voluntary Organisations,11/01/2019,3538352-238,"20,867.66",WITHERSLACK GROUP LTD..
Resources,Finance & Transactional Services,Intangible Assets,917003,Software capitalised implementation fees,11/01/2019,3538208-94560580,"12,408.60",ZELLIS UK LTD.
Regeneration and Local Services,Culture & Sport,Supplies and Services,304259,Equipment and Materials,11/01/2019,3538362-I-0549144,575.85,ZOGGS INTERNATIONAL LTD.
Children and Young Peoples Services,Head of Education and Skills,Transport,230008,Contract Hire,14/01/2019,3538366-N58311218,"1,950.00",1ST AID COMMERCIALS LTD.
Children and Young Peoples Services,Head of Education and Skills,Transport,230007,Contract Hire,14/01/2019,3538372-121801,"1,350.00",24/7 TAXI SERVICES LTD.
Children and Young Peoples Services,Head of Education and Skills,Transport,230007,Contract Hire,14/01/2019,3538372-121802,560.00,24/7 TAXI SERVICES LTD.
Children and Young Peoples Services,Head of Education and Skills,Transport,230009,Contract Hire,14/01/2019,3538372-121803,525.00,24/7 TAXI SERVICES LTD.
Children and Young Peoples Services,Head of Education and Skills,Transport,230008,Contract Hire,14/01/2019,3538372-121804,"1,335.00",24/7 TAXI SERVICES LTD.
Dedicated Schools Grant,DSG High Needs Block,Transport,230008,Contract Hire,14/01/2019,3538372-121805,"1,200.00",24/7 TAXI SERVICES LTD.
Children and Young Peoples Services,Head of Education and Skills,Transport,230008,Contract Hire,14/01/2019,3538372-121806,"2,145.00",24/7 TAXI SERVICES LTD.
Children and Young Peoples Services,Head of Education and Skills,Transport,230008,Contract Hire,14/01/2019,3538372-121807,960.00,24/7 TAXI SERVICES LTD.
Children and Young Peoples Services,Head of Education and Skills,Transport,230008,Contract Hire,14/01/2019,3538372-121808,600.00,24/7 TAXI SERVICES LTD.
Children and Young Peoples Services,Head of Education and Skills,Transport,230008,Contract Hire,14/01/2019,3538372-121809,840.00,24/7 TAXI SERVICES LTD.
Children and Young Peoples Services,Head of Education and Skills,Transport,230006,Contract Hire,14/01/2019,3538372-121811,"1,014.00",24/7 TAXI SERVICES LTD.
Children and Young Peoples Services,Head of Education and Skills,Transport,230006,Contract Hire,14/01/2019,3538372-121812,"1,275.00",24/7 TAXI SERVICES LTD.
Dedicated Schools Grant,DSG High Needs Block,Transport,230009,Contract Hire,14/01/2019,3538372-121813,"1,400.00",24/7 TAXI SERVICES LTD.
Children and Young Peoples Services,Head of Education and Skills,Transport,230008,Contract Hire,14/01/2019,3538372-121814,"1,410.00",24/7 TAXI SERVICES LTD.
Dedicated Schools Grant,DSG High Needs Block,Transport,230010,Contract Hire,14/01/2019,3538387-DECEMBER01,"1,149.15",A & P TAXIS.
Children and Young Peoples Services,Head of Education and Skills,Transport,230007,Contract Hire,14/01/2019,3538387-DECEMBER02,"1,500.00",A & P TAXIS.
Children and Young Peoples Services,Head of Education and Skills,Transport,230009,Contract Hire,14/01/2019,3538387-DECEMBER03-7357,700.00,A & P TAXIS.
Children and Young Peoples Services,Head of Education and Skills,Transport,230012,Contract Hire,14/01/2019,3538389-C11/SS,960.00,AABAT TAXIS.
Children and Young Peoples Services,Head of Education and Skills,Transport,230008,Contract Hire,14/01/2019,3538389-C13/SV,"1,350.00",AABAT TAXIS.
Adult and Health Services,Head of Adults,Transport,230005,Contract Hire,14/01/2019,3538389-C14/SW,630.00,AABAT TAXIS.
Dedicated Schools Grant,DSG High Needs Block,Transport,230010,Contract Hire,14/01/2019,3538389-C15/SX,"1,350.00",AABAT TAXIS.
Children and Young Peoples Services,Head of Education and Skills,Transport,230008,Contract Hire,14/01/2019,3538389-C7/SK,"1,123.90",AABAT TAXIS.
Children and Young Peoples Services,Head of Education and Skills,Transport,230008,Contract Hire,14/01/2019,3538389-C8/SL,"1,425.00",AABAT TAXIS.
Resources,Legal & Democratic Services,Supplies and Services,332029,Printing Stationery and Gen Off Exps,14/01/2019,3538392-PSI0078161,950.00,ADARE SEC LTD.
Children and Young Peoples Services,Head of Education and Skills,Supplies and Services,304259,Equipment and Materials,14/01/2019,3538395-WHSI2,550.00,ADVANCE LEARNING PARTNERSHIP.
Regeneration and Local Services,Technical Services,Supplies and Services,304221,Equipment and Materials,14/01/2019,3538397-27530027,"1,948.44",AGGREGATE INDUSTRIES UK LTD.
Regeneration and Local Services,Technical Services,Supplies and Services,304221,Equipment and Materials,14/01/2019,3538397-27530034,"1,224.06",AGGREGATE INDUSTRIES UK LTD.
Regeneration and Local Services,Technical Services,Supplies and Services,304221,Equipment and Materials,14/01/2019,3538397-27545751,"2,302.60",AGGREGATE INDUSTRIES UK LTD.
Regeneration and Local Services,Technical Services,Supplies and Services,304221,Equipment and Materials,14/01/2019,3538397-27556485,564.82,AGGREGATE INDUSTRIES UK LTD.
Regeneration and Local Services,Technical Services,Supplies and Services,304221,Equipment and Materials,14/01/2019,3538397-27569225,"1,466.40",AGGREGATE INDUSTRIES UK LTD.
Regeneration and Local Services,Technical Services,Supplies and Services,304221,Equipment and Materials,14/01/2019,3538397-27583347,596.24,AGGREGATE INDUSTRIES UK LTD.
Regeneration and Local Services,Technical Services,Supplies and Services,304221,Equipment and Materials,14/01/2019,3538397-27583348,584.80,AGGREGATE INDUSTRIES UK LTD.
Regeneration and Local Services,Technical Services,Supplies and Services,304221,Equipment and Materials,14/01/2019,3538397-27617929,"2,157.54",AGGREGATE INDUSTRIES UK LTD.
Regeneration and Local Services,Technical Services,Supplies and Services,304221,Equipment and Materials,14/01/2019,3538397-27624149,"1,840.30",AGGREGATE INDUSTRIES UK LTD.
Resources,Digital and Customer Services,Supplies and Services,332029,Printing Stationery and Gen Off Exps,14/01/2019,3538398-121370,"1,840.35",AGNE LTD T/A ALPHAGRAPHICS.
Resources,Digital and Customer Services,Supplies and Services,332029,Printing Stationery and Gen Off Exps,14/01/2019,3538398-121371,"1,158.69",AGNE LTD T/A ALPHAGRAPHICS.
Adult and Health Services,Head of Adults,Transport,230005,Contract Hire,14/01/2019,3538399-0016,"1,120.00",AIRPORT TAXIS 4U.
Resources,Legal & Democratic Services,Supplies and Services,338057,Services,14/01/2019,3538401-0000032110,820.00,ALERE FORENSICS.
Regeneration and Local Services,Culture & Sport,Supplies and Services,384199,Miscellaneous Expenses,14/01/2019,3538402-17-1815,832.00,ALEX SNEATH.
Regeneration and Local Services,Economic Development and Housing,Supplies and Services,342053,Computers and Communications,14/01/2019,3538410-9943698,902.95,ANCHOR COMPUTER SYSTEMS LTD.
Regeneration and Local Services,Technical Services,Supplies and Services,352001,Conference Expenses,14/01/2019,3538415-1819/1576,"1,717.50",APSE.
Children and Young Peoples Services,Head of Education and Skills,Transport,230012,Contract Hire,14/01/2019,3538418-DEC2018-01,753.20,ARMSTRONG`S TAXIS.
Children and Young Peoples Services,Head of Education and Skills,Supplies and Services,338001,Services,14/01/2019,3538419-18051704,"11,700.00",ATKINS GLOBAL.
Children and Young Peoples Services,Head of Education and Skills,Supplies and Services,338001,Services,14/01/2019,3538419-18052503,"31,500.00",ATKINS GLOBAL.
Children and Young Peoples Services,Head of Education and Skills,Supplies and Services,338001,Services,14/01/2019,3538419-18052506,"3,500.00",ATKINS GLOBAL.
Children and Young Peoples Services,"Head of Early Help, Inclusion and Vulnerable Children",Supplies and Services,304083,Equipment and Materials,14/01/2019,3538421-CH101218,770.00,AUTONUMIS LTD.
Children and Young Peoples Services,Head of Education and Skills,Transport,230007,Contract Hire,14/01/2019,3538423-4-4379,885.00,BENNETTS TAXIS.
Regeneration and Local Services,Culture & Sport,Supplies and Services,324117,Provisions E324,14/01/2019,3538427-84508488,848.79,BIDFOOD.
Regeneration and Local Services,Culture & Sport,Supplies and Services,324117,Provisions E324,14/01/2019,3538427-84508504,"1,029.72",BIDFOOD.
Children and Young Peoples Services,Head of Education and Skills,Transport,230008,Contract Hire,14/01/2019,3538432-19A,"1,020.00",BL CARS.
Children and Young Peoples Services,Head of Education and Skills,Transport,230008,Contract Hire,14/01/2019,3538432-19B,660.00,BL CARS.
Children and Young Peoples Services,"Head of Early Help, Inclusion and Vulnerable Children",Transport,230007,Contract Hire,14/01/2019,3538436-75B,"1,645.00",BOBS TAXIS.
Resources,Legal & Democratic Services,Premises,120021,Energy Costs,14/01/2019,3538437-12420,"1,020.63",BRADLEY HALL LTD.
Regeneration and Local Services,Culture & Sport,Premises,145023,Cleaning and Domestic Supplies,14/01/2019,3538438-22SI2243822,803.00,BRENNTAG UK LTD.
Children and Young Peoples Services,Head of Education and Skills,Supplies and Services,338094,Services,14/01/2019,3538440-18-565,"1,245.00",BULLION COMMUNITY RESOURCE CENTRE.
Regeneration and Local Services,Transport and Contracted Services,Construction work A908,908105,Construction work,14/01/2019,3538441-25393,"2,733.48",BUS SHELTERS LTD.
Adult and Health Services,Head of Adults,Supplies and Services,338366,Services,14/01/2019,3538446-55375,"1,931.10",CARE ABILITY HEALTHCARE LTD.
Children and Young Peoples Services,Head of Education and Skills,Transport,230007,Contract Hire,14/01/2019,3538450-2/2018,975.00,CARR`S CARS (TAXIS).
Children and Young Peoples Services,Head of Childrens Social Care,Supplies and Services,338044,Services,14/01/2019,3538451-146446,"1,119.75",CARTER BROWN THE EXPERT SERVICE LTD.*
Resources,Corporate Finance & Commercial Services,Third Party Payments 4THIRD,479112,Purchase of Care,14/01/2019,3538464-67414,"1,718.75",CONNECT HEALTH LTD.
Resources,Corporate Finance & Commercial Services,Third Party Payments 4THIRD,479112,Purchase of Care,14/01/2019,3538464-67415,"1,833.13",CONNECT HEALTH LTD.
Regeneration and Local Services,Transport and Contracted Services,Supplies and Services,342225,Computers and Communications,14/01/2019,3538468-87860,697.48,CORPORATE COMPUTER SUPPLIES LTD.
Children and Young Peoples Services,Head of Education and Skills,Transport,230008,Contract Hire,14/01/2019,3538474-1086555,"2,050.65",CROFT BUSINESS SERVICES (UK) LTD T/A CROFT TAXIS.
Children and Young Peoples Services,Head of Education and Skills,Transport,230008,Contract Hire,14/01/2019,3538474-108656,"2,129.52",CROFT BUSINESS SERVICES (UK) LTD T/A CROFT TAXIS.
Resources,Digital and Customer Services,Stock A926,926900,Stock in hand-Inventory system,14/01/2019,3538485-7402494030,"2,916.00",DELL COMPUTER CORPORATION LTD.
